{"text_format":"3","workbook":"xlsx","n_sheets":5,"sheets":["MULAI","RENCANA PENGELUARAN","PENGELUARAN AKTUAL","SELISIH PENGELUARAN","ANALISIS PENGELUARAN"],"not_rendered":{"charts":3,"images":3,"defined_names":1},"read":"whole","date_system":"1900"}

{"sheet":"MULAI","index":0,"n_rows":8,"n_cols":2,"rows_kept":8}
[null,"TENTANG TEMPLAT INI"]
[null,"Gunakan buku kerja Anggaran Pengeluaran Bisnis ini untuk melacak Rencana Pengeluaran, Pengeluaran Aktual, dan Selisih."]
[null,"Masukkan Nama Perusahaan dan tambahkan Logo."]
[null,"Masukkan detail ke dalam tabel di lembar kerja Rencana Pengeluaran dan Pengeluaran Aktual."]
[null,"Tabel secara otomatis akan diperbarui dalam lembar kerja Selisih Pengeluaran, demikian juga bagan di lembar kerja Analisis Pengeluaran"]
[null,"Catatan: "]
[null,"Instruksi tambahan telah tersedia di kolom A dalam setiap lembar kerja. Teks ini disembunyikan secara sengaja. Untuk menghapus teks, pilih kolom A, lalu pilih HAPUS. Untuk memperlihatkan teks, pilih kolom A, lalu ubah warna font."]
[null,"Untuk mempelajari selengkapnya tentang tabel, tekan SHIFT kemudian F10 di dalam tabel, pilih opsi TABEL, lalu pilih TEKS ALTERNATIF"]

{"sheet":"RENCANA PENGELUARAN","index":1,"n_rows":37,"n_cols":18,"rows_kept":37,"merged":[[1,1,2,3],[1,10,1,12],[1,13,2,14],[2,10,2,12],[3,17,12,19],[8,1,8,2],[19,1,19,2],[28,1,28,2],[33,1,33,2]]}
["Masukkan Rencana Biaya Karyawan, Biaya Kantor, Biaya Pemasaran, dan Biaya Pelatihan atau Perjalanan di tabel masing-masing dalam lembar kerja ini. Total akan dihitung secara otomatis. Instruksi bermanfaat tentang cara menggunakan lembar kerja berada dalam sel di kolom ini Tekan panah bawah untuk memulai.",{"$nulls":14}," "]
["Masukkan Nama Perusahaan dalam sel di sebelah kanan dan Logo dalam sel N2. Judul lembar kerja ini berada dalam sel K2.","Nama Perusahaan",{"$nulls":8},"Detail Perkiraan Pengeluaran",null,null,"Tempat penampung Logo berada dalam sel ini."]
["Tips berada dalam sel K3.",{"$nulls":9},"Sel berwarna pucat adalah hitungan."]
["Label Rencana Pengeluaran berada dalam sel di sebelah kanan, bulan dalam sel C4 hingga N4, label Tahun di O4, dan instruksi Cara menggunakan templat ini dalam sel R4.","RENCANA PENGELUARAN","JAN","FEB","MAR","APR","MEI","JUN","JUL","AGU","SEP","OKT","NOV","DES","TAHUN",null,null,"Tips: CARA MENGGUNAKAN TEMPLAT INI\nInput data ke dalam sel kosong di lembar kerja RENCANA PENGELUARAN dan PENGELUARAN AKTUAL. SELISIH PENGELUARAN dan ANALISIS PENGELUARAN akan dihitung untuk Anda. Jika Anda menambahkan baris di salah satu lembar, lembar lainnya harus disesuaikan."]
["Masukkan Biaya Karyawan dalam tabel Rencana Karyawan mulai dari sel di sebelah kanan. Instruksi berikutnya berada dalam sel A10.","Biaya Karyawan","Jan","Feb","Mar","Apr","Mei","Jun","Jul","Agu","Sep","Okt","Nov","Des","TAHUN"]
[null,"Gaji",{"v":85000,"d":"Rp85,000.00"},{"v":85000,"d":"Rp85,000.00"},{"v":85000,"d":"Rp85,000.00"},{"v":87500,"d":"Rp87,500.00"},{"v":87500,"d":"Rp87,500.00"},{"v":87500,"d":"Rp87,500.00"},{"v":87500,"d":"Rp87,500.00"},{"v":92400,"d":"Rp92,400.00"},{"v":92400,"d":"Rp92,400.00"},{"v":92400,"d":"Rp92,400.00"},{"v":92400,"d":"Rp92,400.00"},{"v":92400,"d":"Rp92,400.00"},{"$f":"SUM(C6:N6)","v":{"v":1067000,"d":"Rp1,067,000.00"}}]
[null,"Fasilitas",{"$f":"C6*0.27","v":{"v":22950,"d":"Rp22,950.00"}},{"v":22950,"d":"Rp22,950.00"},{"v":22950,"d":"Rp22,950.00"},{"v":23625,"d":"Rp23,625.00"},{"v":23625,"d":"Rp23,625.00"},{"v":23625,"d":"Rp23,625.00"},{"v":23625,"d":"Rp23,625.00"},{"v":24948,"d":"Rp24,948.00"},{"v":24948,"d":"Rp24,948.00"},{"v":24948,"d":"Rp24,948.00"},{"v":24948,"d":"Rp24,948.00"},{"v":24948,"d":"Rp24,948.00"},{"$f":"SUM(C7:N7)","v":{"v":288090,"d":"Rp288,090.00"}}]
[null,"Subtotal",{"$f":"SUBTOTAL(109,RencanaKaryawan[Jan])","v":{"v":107950,"d":"Rp107,950.00"}},{"$f":"SUBTOTAL(109,RencanaKaryawan[Feb])","v":{"v":107950,"d":"Rp107,950.00"}},{"$f":"SUBTOTAL(109,RencanaKaryawan[Mar])","v":{"v":107950,"d":"Rp107,950.00"}},{"$f":"SUBTOTAL(109,RencanaKaryawan[Apr])","v":{"v":111125,"d":"Rp111,125.00"}},{"$f":"SUBTOTAL(109,RencanaKaryawan[Mei])","v":{"v":111125,"d":"Rp111,125.00"}},{"$f":"SUBTOTAL(109,RencanaKaryawan[Jun])","v":{"v":111125,"d":"Rp111,125.00"}},{"$f":"SUBTOTAL(109,RencanaKaryawan[Jul])","v":{"v":111125,"d":"Rp111,125.00"}},{"$f":"SUBTOTAL(109,RencanaKaryawan[Agu])","v":{"v":117348,"d":"Rp117,348.00"}},{"$f":"SUBTOTAL(109,RencanaKaryawan[Sep])","v":{"v":117348,"d":"Rp117,348.00"}},{"$f":"SUBTOTAL(109,RencanaKaryawan[Okt])","v":{"v":117348,"d":"Rp117,348.00"}},{"$f":"SUBTOTAL(109,RencanaKaryawan[Nov])","v":{"v":117348,"d":"Rp117,348.00"}},{"$f":"SUBTOTAL(109,RencanaKaryawan[Des])","v":{"v":117348,"d":"Rp117,348.00"}},{"$f":"SUBTOTAL(109,RencanaKaryawan[TAHUN])","v":{"v":1355090,"d":"Rp1,355,090.00"}}]
[]
["Masukkan Biaya Kantor dalam tabel Rencana Kantor mulai dari sel di sebelah kanan. Instruksi berikutnya berada dalam sel A21.","Biaya Kantor","Jan","Feb","Mar","Apr","Mei","Jun","Jul","Agu","Sep","Okt","Nov","Des","TAHUN"]
[null,"Sewa kantor",{"v":9800,"d":"Rp9,800.00"},{"v":9800,"d":"Rp9,800.00"},{"v":9800,"d":"Rp9,800.00"},{"v":9800,"d":"Rp9,800.00"},{"v":9800,"d":"Rp9,800.00"},{"v":9800,"d":"Rp9,800.00"},{"v":9800,"d":"Rp9,800.00"},{"v":9800,"d":"Rp9,800.00"},{"v":9800,"d":"Rp9,800.00"},{"v":9800,"d":"Rp9,800.00"},{"v":9800,"d":"Rp9,800.00"},{"v":9800,"d":"Rp9,800.00"},{"$f":"SUM(C11:N11)","v":{"v":117600,"d":"Rp117,600.00"}}]
[null,"Bahan bakar",null,{"v":400,"d":"Rp400.00"},{"v":400,"d":"Rp400.00"},{"v":100,"d":"Rp100.00"},{"v":100,"d":"Rp100.00"},{"v":100,"d":"Rp100.00"},{"v":100,"d":"Rp100.00"},{"v":100,"d":"Rp100.00"},{"v":100,"d":"Rp100.00"},{"v":100,"d":"Rp100.00"},{"v":400,"d":"Rp400.00"},{"v":400,"d":"Rp400.00"},{"v":2300,"d":"Rp2,300.00"}]
[null,"Listrik",{"v":300,"d":"Rp300.00"},{"v":300,"d":"Rp300.00"},{"v":300,"d":"Rp300.00"},{"v":300,"d":"Rp300.00"},{"v":300,"d":"Rp300.00"},{"v":300,"d":"Rp300.00"},{"v":300,"d":"Rp300.00"},{"v":300,"d":"Rp300.00"},{"v":300,"d":"Rp300.00"},{"v":300,"d":"Rp300.00"},{"v":300,"d":"Rp300.00"},{"v":300,"d":"Rp300.00"},{"v":3600,"d":"Rp3,600.00"}]
[null,"Air",{"v":40,"d":"Rp40.00"},{"v":40,"d":"Rp40.00"},{"v":40,"d":"Rp40.00"},{"v":40,"d":"Rp40.00"},{"v":40,"d":"Rp40.00"},{"v":40,"d":"Rp40.00"},{"v":40,"d":"Rp40.00"},{"v":40,"d":"Rp40.00"},{"v":40,"d":"Rp40.00"},{"v":40,"d":"Rp40.00"},{"v":40,"d":"Rp40.00"},{"v":40,"d":"Rp40.00"},{"v":480,"d":"Rp480.00"}]
[null,"Telepon",{"v":250,"d":"Rp250.00"},{"v":250,"d":"Rp250.00"},{"v":250,"d":"Rp250.00"},{"v":250,"d":"Rp250.00"},{"v":250,"d":"Rp250.00"},{"v":250,"d":"Rp250.00"},{"v":250,"d":"Rp250.00"},{"v":250,"d":"Rp250.00"},{"v":250,"d":"Rp250.00"},{"v":250,"d":"Rp250.00"},{"v":250,"d":"Rp250.00"},{"v":250,"d":"Rp250.00"},{"v":3000,"d":"Rp3,000.00"}]
[null,"Akses internet",{"v":180,"d":"Rp180.00"},{"v":180,"d":"Rp180.00"},{"v":180,"d":"Rp180.00"},{"v":180,"d":"Rp180.00"},{"v":180,"d":"Rp180.00"},{"v":180,"d":"Rp180.00"},{"v":180,"d":"Rp180.00"},{"v":180,"d":"Rp180.00"},{"v":180,"d":"Rp180.00"},{"v":180,"d":"Rp180.00"},{"v":180,"d":"Rp180.00"},{"v":180,"d":"Rp180.00"},{"v":2160,"d":"Rp2,160.00"}]
[null,"Perlengkapan kantor",{"v":200,"d":"Rp200.00"},{"v":200,"d":"Rp200.00"},{"v":200,"d":"Rp200.00"},{"v":200,"d":"Rp200.00"},{"v":200,"d":"Rp200.00"},{"v":200,"d":"Rp200.00"},{"v":200,"d":"Rp200.00"},{"v":200,"d":"Rp200.00"},{"v":200,"d":"Rp200.00"},{"v":200,"d":"Rp200.00"},{"v":200,"d":"Rp200.00"},{"v":200,"d":"Rp200.00"},{"v":2400,"d":"Rp2,400.00"}]
[null,"Keamanan",{"v":600,"d":"Rp600.00"},{"v":600,"d":"Rp600.00"},{"v":600,"d":"Rp600.00"},{"v":600,"d":"Rp600.00"},{"v":600,"d":"Rp600.00"},{"v":600,"d":"Rp600.00"},{"v":600,"d":"Rp600.00"},{"v":600,"d":"Rp600.00"},{"v":600,"d":"Rp600.00"},{"v":600,"d":"Rp600.00"},{"v":600,"d":"Rp600.00"},{"v":600,"d":"Rp600.00"},{"v":7200,"d":"Rp7,200.00"}]
[null,"Subtotal",{"$f":"SUBTOTAL(109,RencanaKantor[Jan])","v":{"v":11370,"d":"Rp11,370.00"}},{"$f":"SUBTOTAL(109,RencanaKantor[Feb])","v":{"v":11770,"d":"Rp11,770.00"}},{"$f":"SUBTOTAL(109,RencanaKantor[Mar])","v":{"v":11770,"d":"Rp11,770.00"}},{"$f":"SUBTOTAL(109,RencanaKantor[Apr])","v":{"v":11470,"d":"Rp11,470.00"}},{"$f":"SUBTOTAL(109,RencanaKantor[Mei])","v":{"v":11470,"d":"Rp11,470.00"}},{"$f":"SUBTOTAL(109,RencanaKantor[Jun])","v":{"v":11470,"d":"Rp11,470.00"}},{"$f":"SUBTOTAL(109,RencanaKantor[Jul])","v":{"v":11470,"d":"Rp11,470.00"}},{"$f":"SUBTOTAL(109,RencanaKantor[Agu])","v":{"v":11470,"d":"Rp11,470.00"}},{"$f":"SUBTOTAL(109,RencanaKantor[Sep])","v":{"v":11470,"d":"Rp11,470.00"}},{"$f":"SUBTOTAL(109,RencanaKantor[Okt])","v":{"v":11470,"d":"Rp11,470.00"}},{"$f":"SUBTOTAL(109,RencanaKantor[Nov])","v":{"v":11770,"d":"Rp11,770.00"}},{"$f":"SUBTOTAL(109,RencanaKantor[Des])","v":{"v":11770,"d":"Rp11,770.00"}},{"$f":"SUBTOTAL(109,RencanaKantor[TAHUN])","v":{"v":138740,"d":"Rp138,740.00"}}]
[]
["Masukkan Biaya Pemasaran dalam tabel Rencana Pemasaran mulai dari sel di sebelah kanan. Instruksi berikutnya berada dalam sel A30.","Biaya Pemasaran","Jan","Feb","Mar","Apr","Mei","Jun","Jul","Agu","Sep","Okt","Nov","Des","TAHUN"]
[null,"Hosting situs web",{"v":500,"d":"Rp500.00"},{"v":500,"d":"Rp500.00"},{"v":500,"d":"Rp500.00"},{"v":500,"d":"Rp500.00"},{"v":500,"d":"Rp500.00"},{"v":500,"d":"Rp500.00"},{"v":500,"d":"Rp500.00"},{"v":500,"d":"Rp500.00"},{"v":500,"d":"Rp500.00"},{"v":500,"d":"Rp500.00"},{"v":500,"d":"Rp500.00"},{"v":500,"d":"Rp500.00"},{"$f":"SUM(C22:N22)","v":{"v":6000,"d":"Rp6,000.00"}}]
[null,"Pembaruan situs web",{"v":200,"d":"Rp200.00"},{"v":200,"d":"Rp200.00"},{"v":200,"d":"Rp200.00"},{"v":200,"d":"Rp200.00"},{"v":200,"d":"Rp200.00"},{"v":1000,"d":"Rp1,000.00"},{"v":200,"d":"Rp200.00"},{"v":200,"d":"Rp200.00"},{"v":200,"d":"Rp200.00"},{"v":200,"d":"Rp200.00"},{"v":200,"d":"Rp200.00"},{"v":1000,"d":"Rp1,000.00"},{"v":4000,"d":"Rp4,000.00"}]
[null,"Persiapan media pendukung",{"v":5000,"d":"Rp5,000.00"},{"v":0,"d":"Rp0.00"},{"v":0,"d":"Rp0.00"},{"v":5000,"d":"Rp5,000.00"},{"v":0,"d":"Rp0.00"},{"v":0,"d":"Rp0.00"},{"v":5000,"d":"Rp5,000.00"},{"v":0,"d":"Rp0.00"},{"v":0,"d":"Rp0.00"},{"v":5000,"d":"Rp5,000.00"},{"v":0,"d":"Rp0.00"},{"v":0,"d":"Rp0.00"},{"v":20000,"d":"Rp20,000.00"}]
[null,"Pencetakan media pendukung",{"v":200,"d":"Rp200.00"},{"v":200,"d":"Rp200.00"},{"v":200,"d":"Rp200.00"},{"v":200,"d":"Rp200.00"},{"v":200,"d":"Rp200.00"},{"v":200,"d":"Rp200.00"},{"v":200,"d":"Rp200.00"},{"v":200,"d":"Rp200.00"},{"v":200,"d":"Rp200.00"},{"v":200,"d":"Rp200.00"},{"v":200,"d":"Rp200.00"},{"v":200,"d":"Rp200.00"},{"v":2400,"d":"Rp2,400.00"}]
[null,"Acara pemasaran",{"v":2000,"d":"Rp2,000.00"},{"v":2000,"d":"Rp2,000.00"},{"v":2000,"d":"Rp2,000.00"},{"v":5000,"d":"Rp5,000.00"},{"v":2000,"d":"Rp2,000.00"},{"v":2000,"d":"Rp2,000.00"},{"v":2000,"d":"Rp2,000.00"},{"v":5000,"d":"Rp5,000.00"},{"v":2000,"d":"Rp2,000.00"},{"v":2000,"d":"Rp2,000.00"},{"v":2000,"d":"Rp2,000.00"},{"v":5000,"d":"Rp5,000.00"},{"v":33000,"d":"Rp33,000.00"}]
[null,"Pengeluaran lainnya",{"v":200,"d":"Rp200.00"},{"v":200,"d":"Rp200.00"},{"v":200,"d":"Rp200.00"},{"v":200,"d":"Rp200.00"},{"v":200,"d":"Rp200.00"},{"v":200,"d":"Rp200.00"},{"v":200,"d":"Rp200.00"},{"v":200,"d":"Rp200.00"},{"v":200,"d":"Rp200.00"},{"v":200,"d":"Rp200.00"},{"v":200,"d":"Rp200.00"},{"v":200,"d":"Rp200.00"},{"v":2400,"d":"Rp2,400.00"}]
[null,"Subtotal",{"$f":"SUBTOTAL(109,RencanaPemasaran[Jan])","v":{"v":8100,"d":"Rp8,100.00"}},{"$f":"SUBTOTAL(109,RencanaPemasaran[Feb])","v":{"v":3100,"d":"Rp3,100.00"}},{"$f":"SUBTOTAL(109,RencanaPemasaran[Mar])","v":{"v":3100,"d":"Rp3,100.00"}},{"$f":"SUBTOTAL(109,RencanaPemasaran[Apr])","v":{"v":11100,"d":"Rp11,100.00"}},{"$f":"SUBTOTAL(109,RencanaPemasaran[Mei])","v":{"v":3100,"d":"Rp3,100.00"}},{"$f":"SUBTOTAL(109,RencanaPemasaran[Jun])","v":{"v":3900,"d":"Rp3,900.00"}},{"$f":"SUBTOTAL(109,RencanaPemasaran[Jul])","v":{"v":8100,"d":"Rp8,100.00"}},{"$f":"SUBTOTAL(109,RencanaPemasaran[Agu])","v":{"v":6100,"d":"Rp6,100.00"}},{"$f":"SUBTOTAL(109,RencanaPemasaran[Sep])","v":{"v":3100,"d":"Rp3,100.00"}},{"$f":"SUBTOTAL(109,RencanaPemasaran[Okt])","v":{"v":8100,"d":"Rp8,100.00"}},{"$f":"SUBTOTAL(109,RencanaPemasaran[Nov])","v":{"v":3100,"d":"Rp3,100.00"}},{"$f":"SUBTOTAL(109,RencanaPemasaran[Des])","v":{"v":6900,"d":"Rp6,900.00"}},{"$f":"SUBTOTAL(109,RencanaPemasaran[TAHUN])","v":{"v":67800,"d":"Rp67,800.00"}}]
[]
["Masukkan Biaya Pelatihan dan Perjalanan dalam tabel Rencana Pelatihan dan Perjalanan mulai dari sel di sebelah kanan. Instruksi berikutnya berada dalam sel A35.","Pelatihan/Perjalanan","Jan","Feb","Mar","Apr","Mei","Jun","Jul","Agu","Sep","Okt","Nov","Des","TAHUN"]
[null,"Kelas pelatihan",{"v":2000,"d":"Rp2,000.00"},{"v":2000,"d":"Rp2,000.00"},{"v":2000,"d":"Rp2,000.00"},{"v":2000,"d":"Rp2,000.00"},{"v":2000,"d":"Rp2,000.00"},{"v":2000,"d":"Rp2,000.00"},{"v":2000,"d":"Rp2,000.00"},{"v":2000,"d":"Rp2,000.00"},{"v":2000,"d":"Rp2,000.00"},{"v":2000,"d":"Rp2,000.00"},{"v":2000,"d":"Rp2,000.00"},{"v":2000,"d":"Rp2,000.00"},{"$f":"SUM(C31:N31)","v":{"v":24000,"d":"Rp24,000.00"}}]
[null,"Biaya perjalanan terkait pelatihan",{"v":2000,"d":"Rp2,000.00"},{"v":2000,"d":"Rp2,000.00"},{"v":2000,"d":"Rp2,000.00"},{"v":2000,"d":"Rp2,000.00"},{"v":2000,"d":"Rp2,000.00"},{"v":2000,"d":"Rp2,000.00"},{"v":2000,"d":"Rp2,000.00"},{"v":2000,"d":"Rp2,000.00"},{"v":2000,"d":"Rp2,000.00"},{"v":2000,"d":"Rp2,000.00"},{"v":2000,"d":"Rp2,000.00"},{"v":2000,"d":"Rp2,000.00"},{"$f":"SUM(C32:N32)","v":{"v":24000,"d":"Rp24,000.00"}}]
[null,"Subtotal",{"$f":"SUBTOTAL(109,RencanaPelatihanDanPerjalanan[Jan])","v":{"v":4000,"d":"Rp4,000.00"}},{"$f":"SUBTOTAL(109,RencanaPelatihanDanPerjalanan[Feb])","v":{"v":4000,"d":"Rp4,000.00"}},{"$f":"SUBTOTAL(109,RencanaPelatihanDanPerjalanan[Mar])","v":{"v":4000,"d":"Rp4,000.00"}},{"$f":"SUBTOTAL(109,RencanaPelatihanDanPerjalanan[Apr])","v":{"v":4000,"d":"Rp4,000.00"}},{"$f":"SUBTOTAL(109,RencanaPelatihanDanPerjalanan[Mei])","v":{"v":4000,"d":"Rp4,000.00"}},{"$f":"SUBTOTAL(109,RencanaPelatihanDanPerjalanan[Jun])","v":{"v":4000,"d":"Rp4,000.00"}},{"$f":"SUBTOTAL(109,RencanaPelatihanDanPerjalanan[Jul])","v":{"v":4000,"d":"Rp4,000.00"}},{"$f":"SUBTOTAL(109,RencanaPelatihanDanPerjalanan[Agu])","v":{"v":4000,"d":"Rp4,000.00"}},{"$f":"SUBTOTAL(109,RencanaPelatihanDanPerjalanan[Sep])","v":{"v":4000,"d":"Rp4,000.00"}},{"$f":"SUBTOTAL(109,RencanaPelatihanDanPerjalanan[Okt])","v":{"v":4000,"d":"Rp4,000.00"}},{"$f":"SUBTOTAL(109,RencanaPelatihanDanPerjalanan[Nov])","v":{"v":4000,"d":"Rp4,000.00"}},{"$f":"SUBTOTAL(109,RencanaPelatihanDanPerjalanan[Des])","v":{"v":4000,"d":"Rp4,000.00"}},{"$f":"SUBTOTAL(109,RencanaPelatihanDanPerjalanan[TAHUN])","v":{"v":48000,"d":"Rp48,000.00"}}]
[]
["Total akan dihitung secara otomatis dalam tabel Total Rencana mulai dari sel di sebelah kanan.","TOTAL","Jan","Feb","Mar","Apr","Mei","Jun","Jul","Agu","Sep","Okt","Nov","Des","Tahun"]
[null,"Rencana Pengeluaran Bulanan",{"$f":"RencanaPelatihanDanPerjalanan[[#Totals],[Jan]]+RencanaPemasaran[[#Totals],[Jan]]+RencanaKantor[[#Totals],[Jan]]+RencanaKaryawan[[#Totals],[Jan]]","v":{"v":131420,"d":"Rp131,420.00"}},{"$f":"RencanaPelatihanDanPerjalanan[[#Totals],[Feb]]+RencanaPemasaran[[#Totals],[Feb]]+RencanaKantor[[#Totals],[Feb]]+RencanaKaryawan[[#Totals],[Feb]]","v":{"v":126820,"d":"Rp126,820.00"}},{"$f":"RencanaPelatihanDanPerjalanan[[#Totals],[Mar]]+RencanaPemasaran[[#Totals],[Mar]]+RencanaKantor[[#Totals],[Mar]]+RencanaKaryawan[[#Totals],[Mar]]","v":{"v":126820,"d":"Rp126,820.00"}},{"$f":"RencanaPelatihanDanPerjalanan[[#Totals],[Apr]]+RencanaPemasaran[[#Totals],[Apr]]+RencanaKantor[[#Totals],[Apr]]+RencanaKaryawan[[#Totals],[Apr]]","v":{"v":137695,"d":"Rp137,695.00"}},{"$f":"RencanaPelatihanDanPerjalanan[[#Totals],[Mei]]+RencanaPemasaran[[#Totals],[Mei]]+RencanaKantor[[#Totals],[Mei]]+RencanaKaryawan[[#Totals],[Mei]]","v":{"v":129695,"d":"Rp129,695.00"}},{"$f":"RencanaPelatihanDanPerjalanan[[#Totals],[Jun]]+RencanaPemasaran[[#Totals],[Jun]]+RencanaKantor[[#Totals],[Jun]]+RencanaKaryawan[[#Totals],[Jun]]","v":{"v":130495,"d":"Rp130,495.00"}},{"$f":"RencanaPelatihanDanPerjalanan[[#Totals],[Jul]]+RencanaPemasaran[[#Totals],[Jul]]+RencanaKantor[[#Totals],[Jul]]+RencanaKaryawan[[#Totals],[Jul]]","v":{"v":134695,"d":"Rp134,695.00"}},{"$f":"RencanaPelatihanDanPerjalanan[[#Totals],[Agu]]+RencanaPemasaran[[#Totals],[Agu]]+RencanaKantor[[#Totals],[Agu]]+RencanaKaryawan[[#Totals],[Agu]]","v":{"v":138918,"d":"Rp138,918.00"}},{"$f":"RencanaPelatihanDanPerjalanan[[#Totals],[Sep]]+RencanaPemasaran[[#Totals],[Sep]]+RencanaKantor[[#Totals],[Sep]]+RencanaKaryawan[[#Totals],[Sep]]","v":{"v":135918,"d":"Rp135,918.00"}},{"$f":"RencanaPelatihanDanPerjalanan[[#Totals],[Okt]]+RencanaPemasaran[[#Totals],[Okt]]+RencanaKantor[[#Totals],[Okt]]+RencanaKaryawan[[#Totals],[Okt]]","v":{"v":140918,"d":"Rp140,918.00"}},{"$f":"RencanaPelatihanDanPerjalanan[[#Totals],[Nov]]+RencanaPemasaran[[#Totals],[Nov]]+RencanaKantor[[#Totals],[Nov]]+RencanaKaryawan[[#Totals],[Nov]]","v":{"v":136218,"d":"Rp136,218.00"}},{"$f":"RencanaPelatihanDanPerjalanan[[#Totals],[Des]]+RencanaPemasaran[[#Totals],[Des]]+RencanaKantor[[#Totals],[Des]]+RencanaKaryawan[[#Totals],[Des]]","v":{"v":140018,"d":"Rp140,018.00"}},{"$f":"RencanaPelatihanDanPerjalanan[[#Totals],[TAHUN]]+RencanaPemasaran[[#Totals],[TAHUN]]+RencanaKantor[[#Totals],[TAHUN]]+RencanaKaryawan[[#Totals],[TAHUN]]","v":{"v":1609630,"d":"Rp1,609,630.00"}}]
[null,"TOTAL Rencana Pengeluaran",{"$f":"SUM($C$36:C36)","v":{"v":131420,"d":"Rp131,420.00"}},{"$f":"SUM($C$36:D36)","v":{"v":258240,"d":"Rp258,240.00"}},{"$f":"SUM($C$36:E36)","v":{"v":385060,"d":"Rp385,060.00"}},{"$f":"SUM($C$36:F36)","v":{"v":522755,"d":"Rp522,755.00"}},{"$f":"SUM($C$36:G36)","v":{"v":652450,"d":"Rp652,450.00"}},{"$f":"SUM($C$36:H36)","v":{"v":782945,"d":"Rp782,945.00"}},{"$f":"SUM($C$36:I36)","v":{"v":917640,"d":"Rp917,640.00"}},{"$f":"SUM($C$36:J36)","v":{"v":1056558,"d":"Rp1,056,558.00"}},{"$f":"SUM($C$36:K36)","v":{"v":1192476,"d":"Rp1,192,476.00"}},{"$f":"SUM($C$36:L36)","v":{"v":1333394,"d":"Rp1,333,394.00"}},{"$f":"SUM($C$36:M36)","v":{"v":1469612,"d":"Rp1,469,612.00"}},{"$f":"SUM($C$36:N36)","v":{"v":1609630,"d":"Rp1,609,630.00"}}]

{"sheet":"PENGELUARAN AKTUAL","index":2,"n_rows":37,"n_cols":16,"rows_kept":37,"merged":[[1,1,2,3],[1,10,1,12],[1,13,2,14],[2,10,2,12],[8,1,8,2],[19,1,19,2],[28,1,28,2],[33,1,33,2]]}
["Masukkan Biaya Karyawan, Biaya Kantor, Biaya Pemasaran, dan Biaya Pelatihan atau Perjalanan Aktual di tabel masing-masing dalam lembar kerja ini. Total akan dihitung secara otomatis. Instruksi bermanfaat tentang cara menggunakan lembar kerja berada dalam sel di kolom ini Tekan panah bawah untuk memulai.",{"$nulls":14}," "]
["Nama Perusahaan akan diperbarui secara otomatis dalam sel di sebelah kanan. Judul lembar kerja ini berada dalam sel K2. Masukkan Logo dalam sel N2.",{"$f":"'RENCANA PENGELUARAN'!B2:D3","v":"Nama Perusahaan"},{"$nulls":8},{"$f":"judul_lembar_kerja","v":"Detail Perkiraan Pengeluaran"},null,null,"Tempat penampung Logo berada dalam sel ini."]
["Tips berada dalam sel K3.",{"$nulls":9},"Sel berwarna pucat adalah hitungan."]
["Label Pengeluaran Aktual berada dalam sel di sebelah kanan, bulan dalam sel C4 hingga N4, dan label Tahun di O4.","PENGELUARAN AKTUAL","JAN","FEB","MAR","APR","MEI","JUN","JUL","AGU","SEP","OKT","NOV","DES","TAHUN"]
["Masukkan Biaya Karyawan dalam tabel Aktual Karyawan mulai dari sel di sebelah kanan. Instruksi berikutnya berada dalam sel A10.","Biaya Karyawan","Jan","Feb","Mar","Apr","Mei","Jun","Jul","Agu","Sep","Okt","Nov","Des","TAHUN"]
[null,"Gaji",{"v":85000,"d":"Rp85,000.00"},{"v":85000,"d":"Rp85,000.00"},{"v":85000,"d":"Rp85,000.00"},{"v":88000,"d":"Rp88,000.00"},{"v":88000,"d":"Rp88,000.00"},{"v":88000,"d":"Rp88,000.00"},{"$nulls":6},{"$f":"SUM(C6:N6)","v":{"v":519000,"d":"Rp519,000.00"}}]
[null,"Fasilitas",{"$f":"C6*0.27","v":{"v":22950,"d":"Rp22,950.00"}},{"v":22950,"d":"Rp22,950.00"},{"v":22950,"d":"Rp22,950.00"},{"v":23760,"d":"Rp23,760.00"},{"v":23760,"d":"Rp23,760.00"},{"v":23760,"d":"Rp23,760.00"},{"v":0,"d":"Rp0.00"},{"v":0,"d":"Rp0.00"},{"v":0,"d":"Rp0.00"},{"v":0,"d":"Rp0.00"},{"v":0,"d":"Rp0.00"},{"v":0,"d":"Rp0.00"},{"$f":"SUM(C7:N7)","v":{"v":140130,"d":"Rp140,130.00"}}]
[null,"Subtotal",{"$f":"SUBTOTAL(109,AktualKaryawan[Jan])","v":{"v":107950,"d":"Rp107,950.00"}},{"$f":"SUBTOTAL(109,AktualKaryawan[Feb])","v":{"v":107950,"d":"Rp107,950.00"}},{"$f":"SUBTOTAL(109,AktualKaryawan[Mar])","v":{"v":107950,"d":"Rp107,950.00"}},{"$f":"SUBTOTAL(109,AktualKaryawan[Apr])","v":{"v":111760,"d":"Rp111,760.00"}},{"$f":"SUBTOTAL(109,AktualKaryawan[Mei])","v":{"v":111760,"d":"Rp111,760.00"}},{"$f":"SUBTOTAL(109,AktualKaryawan[Jun])","v":{"v":111760,"d":"Rp111,760.00"}},{"$f":"SUBTOTAL(109,AktualKaryawan[Jul])","v":{"v":0,"d":"Rp0.00"}},{"$f":"SUBTOTAL(109,AktualKaryawan[Agu])","v":{"v":0,"d":"Rp0.00"}},{"$f":"SUBTOTAL(109,AktualKaryawan[Sep])","v":{"v":0,"d":"Rp0.00"}},{"$f":"SUBTOTAL(109,AktualKaryawan[Okt])","v":{"v":0,"d":"Rp0.00"}},{"$f":"SUBTOTAL(109,AktualKaryawan[Nov])","v":{"v":0,"d":"Rp0.00"}},{"$f":"SUBTOTAL(109,AktualKaryawan[Des])","v":{"v":0,"d":"Rp0.00"}},{"$f":"SUBTOTAL(109,AktualKaryawan[TAHUN])","v":{"v":659130,"d":"Rp659,130.00"}}]
[]
["Masukkan Biaya Kantor dalam tabel Aktual Kantor mulai dari sel di sebelah kanan. Instruksi berikutnya berada dalam sel A21.","Biaya Kantor","Jan","Feb","Mar","Apr","Mei","Jun","Jul","Agu","Sep","Okt","Nov","Des","TAHUN"]
[null,"Sewa kantor",{"v":9800,"d":"Rp9,800.00"},{"v":9800,"d":"Rp9,800.00"},{"v":9800,"d":"Rp9,800.00"},{"v":9800,"d":"Rp9,800.00"},{"v":9800,"d":"Rp9,800.00"},{"v":9800,"d":"Rp9,800.00"},{"$nulls":6},{"$f":"SUM(C11:N11)","v":{"v":58800,"d":"Rp58,800.00"}}]
[null,"Bahan bakar",{"v":4,"d":"Rp4.00"},{"v":430,"d":"Rp430.00"},{"v":385,"d":"Rp385.00"},{"v":230,"d":"Rp230.00"},{"v":87,"d":"Rp87.00"},{"v":88,"d":"Rp88.00"},{"$nulls":6},{"v":1224,"d":"Rp1,224.00"}]
[null,"Listrik",{"v":288,"d":"Rp288.00"},{"v":278,"d":"Rp278.00"},{"v":268,"d":"Rp268.00"},{"v":299,"d":"Rp299.00"},{"v":306,"d":"Rp306.00"},{"v":290,"d":"Rp290.00"},{"$nulls":6},{"v":1729,"d":"Rp1,729.00"}]
[null,"Air",{"v":35,"d":"Rp35.00"},{"v":33,"d":"Rp33.00"},{"v":34,"d":"Rp34.00"},{"v":36,"d":"Rp36.00"},{"v":34,"d":"Rp34.00"},{"v":36,"d":"Rp36.00"},{"$nulls":6},{"v":208,"d":"Rp208.00"}]
[null,"Telepon",{"v":224,"d":"Rp224.00"},{"v":235,"d":"Rp235.00"},{"v":265,"d":"Rp265.00"},{"v":245,"d":"Rp245.00"},{"v":245,"d":"Rp245.00"},{"v":220,"d":"Rp220.00"},{"$nulls":6},{"v":1434,"d":"Rp1,434.00"}]
[null,"Akses internet",{"v":180,"d":"Rp180.00"},{"v":180,"d":"Rp180.00"},{"v":180,"d":"Rp180.00"},{"v":180,"d":"Rp180.00"},{"v":180,"d":"Rp180.00"},{"v":180,"d":"Rp180.00"},{"$nulls":6},{"v":1080,"d":"Rp1,080.00"}]
[null,"Perlengkapan kantor",{"v":256,"d":"Rp256.00"},{"v":142,"d":"Rp142.00"},{"v":160,"d":"Rp160.00"},{"v":221,"d":"Rp221.00"},{"v":256,"d":"Rp256.00"},{"v":240,"d":"Rp240.00"},{"$nulls":6},{"v":1275,"d":"Rp1,275.00"}]
[null,"Keamanan",{"v":600,"d":"Rp600.00"},{"v":600,"d":"Rp600.00"},{"v":600,"d":"Rp600.00"},{"v":600,"d":"Rp600.00"},{"v":600,"d":"Rp600.00"},{"v":600,"d":"Rp600.00"},{"$nulls":6},{"v":3600,"d":"Rp3,600.00"}]
[null,"Subtotal",{"$f":"SUBTOTAL(109,AktualKantor[Jan])","v":{"v":11387,"d":"Rp11,387.00"}},{"$f":"SUBTOTAL(109,AktualKantor[Feb])","v":{"v":11698,"d":"Rp11,698.00"}},{"$f":"SUBTOTAL(109,AktualKantor[Mar])","v":{"v":11692,"d":"Rp11,692.00"}},{"$f":"SUBTOTAL(109,AktualKantor[Apr])","v":{"v":11611,"d":"Rp11,611.00"}},{"$f":"SUBTOTAL(109,AktualKantor[Mei])","v":{"v":11508,"d":"Rp11,508.00"}},{"$f":"SUBTOTAL(109,AktualKantor[Jun])","v":{"v":11454,"d":"Rp11,454.00"}},{"$f":"SUBTOTAL(109,AktualKantor[Jul])","v":{"v":0,"d":"Rp0.00"}},{"$f":"SUBTOTAL(109,AktualKantor[Agu])","v":{"v":0,"d":"Rp0.00"}},{"$f":"SUBTOTAL(109,AktualKantor[Sep])","v":{"v":0,"d":"Rp0.00"}},{"$f":"SUBTOTAL(109,AktualKantor[Okt])","v":{"v":0,"d":"Rp0.00"}},{"$f":"SUBTOTAL(109,AktualKantor[Nov])","v":{"v":0,"d":"Rp0.00"}},{"$f":"SUBTOTAL(109,AktualKantor[Des])","v":{"v":0,"d":"Rp0.00"}},{"$f":"SUBTOTAL(109,AktualKantor[TAHUN])","v":{"v":69350,"d":"Rp69,350.00"}}]
[]
["Masukkan Biaya Pemasaran dalam tabel Aktual Pemasaran mulai dari sel di sebelah kanan. Instruksi berikutnya berada dalam sel A30.","Biaya Pemasaran","Jan","Feb","Mar","Apr","Mei","Jun","Jul","Agu","Sep","Okt","Nov","Des","TAHUN"]
[null,"Hosting situs web",{"v":500,"d":"Rp500.00"},{"v":500,"d":"Rp500.00"},{"v":500,"d":"Rp500.00"},{"v":500,"d":"Rp500.00"},{"v":500,"d":"Rp500.00"},{"v":500,"d":"Rp500.00"},{"$nulls":6},{"$f":"SUM(C22:N22)","v":{"v":3000,"d":"Rp3,000.00"}}]
[null,"Pembaruan situs web",{"v":200,"d":"Rp200.00"},{"v":200,"d":"Rp200.00"},{"v":200,"d":"Rp200.00"},{"v":200,"d":"Rp200.00"},{"v":200,"d":"Rp200.00"},{"v":1500,"d":"Rp1,500.00"},{"$nulls":6},{"v":2500,"d":"Rp2,500.00"}]
[null,"Persiapan media pendukung",{"v":4800,"d":"Rp4,800.00"},{"v":0,"d":"Rp0.00"},{"v":0,"d":"Rp0.00"},{"v":5500,"d":"Rp5,500.00"},{"v":0,"d":"Rp0.00"},{"v":0,"d":"Rp0.00"},{"$nulls":6},{"v":10300,"d":"Rp10,300.00"}]
[null,"Pencetakan media pendukung",{"v":100,"d":"Rp100.00"},{"v":500,"d":"Rp500.00"},{"v":100,"d":"Rp100.00"},{"v":100,"d":"Rp100.00"},{"v":600,"d":"Rp600.00"},{"v":180,"d":"Rp180.00"},{"$nulls":6},{"v":1580,"d":"Rp1,580.00"}]
[null,"Acara pemasaran",{"v":1800,"d":"Rp1,800.00"},{"v":2200,"d":"Rp2,200.00"},{"v":2200,"d":"Rp2,200.00"},{"v":4700,"d":"Rp4,700.00"},{"v":1500,"d":"Rp1,500.00"},{"v":2300,"d":"Rp2,300.00"},{"$nulls":6},{"v":14700,"d":"Rp14,700.00"}]
[null,"Pengeluaran lainnya",{"v":145,"d":"Rp145.00"},{"v":156,"d":"Rp156.00"},{"v":123,"d":"Rp123.00"},{"v":223,"d":"Rp223.00"},{"v":187,"d":"Rp187.00"},{"v":245,"d":"Rp245.00"},{"$nulls":6},{"v":1079,"d":"Rp1,079.00"}]
[null,"Subtotal",{"$f":"SUBTOTAL(109,AktualPemasaran[Jan])","v":{"v":7545,"d":"Rp7,545.00"}},{"$f":"SUBTOTAL(109,AktualPemasaran[Feb])","v":{"v":3556,"d":"Rp3,556.00"}},{"$f":"SUBTOTAL(109,AktualPemasaran[Mar])","v":{"v":3123,"d":"Rp3,123.00"}},{"$f":"SUBTOTAL(109,AktualPemasaran[Apr])","v":{"v":11223,"d":"Rp11,223.00"}},{"$f":"SUBTOTAL(109,AktualPemasaran[Mei])","v":{"v":2987,"d":"Rp2,987.00"}},{"$f":"SUBTOTAL(109,AktualPemasaran[Jun])","v":{"v":4725,"d":"Rp4,725.00"}},{"$f":"SUBTOTAL(109,AktualPemasaran[Jul])","v":{"v":0,"d":"Rp0.00"}},{"$f":"SUBTOTAL(109,AktualPemasaran[Agu])","v":{"v":0,"d":"Rp0.00"}},{"$f":"SUBTOTAL(109,AktualPemasaran[Sep])","v":{"v":0,"d":"Rp0.00"}},{"$f":"SUBTOTAL(109,AktualPemasaran[Okt])","v":{"v":0,"d":"Rp0.00"}},{"$f":"SUBTOTAL(109,AktualPemasaran[Nov])","v":{"v":0,"d":"Rp0.00"}},{"$f":"SUBTOTAL(109,AktualPemasaran[Des])","v":{"v":0,"d":"Rp0.00"}},{"$f":"SUBTOTAL(109,AktualPemasaran[TAHUN])","v":{"v":33159,"d":"Rp33,159.00"}}]
[]
["Masukkan Biaya Pelatihan atau Perjalanan dalam tabel Aktual Pelatihan dan Perjalanan mulai dari sel di sebelah kanan. Instruksi berikutnya berada dalam sel A35.","Pelatihan/Perjalanan","Jan","Feb","Mar","Apr","Mei","Jun","Jul","Agu","Sep","Okt","Nov","Des","TAHUN"]
[null,"Kelas pelatihan",{"v":1600,"d":"Rp1,600.00"},{"v":2400,"d":"Rp2,400.00"},{"v":1400,"d":"Rp1,400.00"},{"v":1600,"d":"Rp1,600.00"},{"v":1200,"d":"Rp1,200.00"},{"v":2800,"d":"Rp2,800.00"},{"$nulls":6},{"$f":"SUM(C31:N31)","v":{"v":11000,"d":"Rp11,000.00"}}]
[null,"Biaya perjalanan terkait pelatihan",{"v":1200,"d":"Rp1,200.00"},{"v":2200,"d":"Rp2,200.00"},{"v":1400,"d":"Rp1,400.00"},{"v":1200,"d":"Rp1,200.00"},{"v":800,"d":"Rp800.00"},{"v":3500,"d":"Rp3,500.00"},{"$nulls":6},{"$f":"SUM(C32:N32)","v":{"v":10300,"d":"Rp10,300.00"}}]
[null,"Subtotal",{"$f":"SUBTOTAL(109,AktualPelatihanDanPerjalanan[Jan])","v":{"v":2800,"d":"Rp2,800.00"}},{"$f":"SUBTOTAL(109,AktualPelatihanDanPerjalanan[Feb])","v":{"v":4600,"d":"Rp4,600.00"}},{"$f":"SUBTOTAL(109,AktualPelatihanDanPerjalanan[Mar])","v":{"v":2800,"d":"Rp2,800.00"}},{"$f":"SUBTOTAL(109,AktualPelatihanDanPerjalanan[Apr])","v":{"v":2800,"d":"Rp2,800.00"}},{"$f":"SUBTOTAL(109,AktualPelatihanDanPerjalanan[Mei])","v":{"v":2000,"d":"Rp2,000.00"}},{"$f":"SUBTOTAL(109,AktualPelatihanDanPerjalanan[Jun])","v":{"v":6300,"d":"Rp6,300.00"}},{"$f":"SUBTOTAL(109,AktualPelatihanDanPerjalanan[Jul])","v":{"v":0,"d":"Rp0.00"}},{"$f":"SUBTOTAL(109,AktualPelatihanDanPerjalanan[Agu])","v":{"v":0,"d":"Rp0.00"}},{"$f":"SUBTOTAL(109,AktualPelatihanDanPerjalanan[Sep])","v":{"v":0,"d":"Rp0.00"}},{"$f":"SUBTOTAL(109,AktualPelatihanDanPerjalanan[Okt])","v":{"v":0,"d":"Rp0.00"}},{"$f":"SUBTOTAL(109,AktualPelatihanDanPerjalanan[Nov])","v":{"v":0,"d":"Rp0.00"}},{"$f":"SUBTOTAL(109,AktualPelatihanDanPerjalanan[Des])","v":{"v":0,"d":"Rp0.00"}},{"$f":"SUBTOTAL(109,AktualPelatihanDanPerjalanan[TAHUN])","v":{"v":21300,"d":"Rp21,300.00"}}]
[]
["Total Pengeluaran Aktual akan dihitung secara otomatis dalam tabel Total Aktual mulai dari sel di sebelah kanan.","TOTAL Rencana Pengeluaran","Jan","Feb","Mar","Apr","Mei","Jun","Jul","Agu","Sep","Okt","Nov","Des","Tahun"]
[null,"Pengeluaran Aktual Bulanan",{"$f":"AktualPelatihanDanPerjalanan[[#Totals],[Jan]]+AktualPemasaran[[#Totals],[Jan]]+AktualKantor[[#Totals],[Jan]]+AktualKaryawan[[#Totals],[Jan]]","v":{"v":129682,"d":"Rp129,682.00"}},{"$f":"AktualPelatihanDanPerjalanan[[#Totals],[Feb]]+AktualPemasaran[[#Totals],[Feb]]+AktualKantor[[#Totals],[Feb]]+AktualKaryawan[[#Totals],[Feb]]","v":{"v":127804,"d":"Rp127,804.00"}},{"$f":"AktualPelatihanDanPerjalanan[[#Totals],[Mar]]+AktualPemasaran[[#Totals],[Mar]]+AktualKantor[[#Totals],[Mar]]+AktualKaryawan[[#Totals],[Mar]]","v":{"v":125565,"d":"Rp125,565.00"}},{"$f":"AktualPelatihanDanPerjalanan[[#Totals],[Apr]]+AktualPemasaran[[#Totals],[Apr]]+AktualKantor[[#Totals],[Apr]]+AktualKaryawan[[#Totals],[Apr]]","v":{"v":137394,"d":"Rp137,394.00"}},{"$f":"AktualPelatihanDanPerjalanan[[#Totals],[Mei]]+AktualPemasaran[[#Totals],[Mei]]+AktualKantor[[#Totals],[Mei]]+AktualKaryawan[[#Totals],[Mei]]","v":{"v":128255,"d":"Rp128,255.00"}},{"$f":"AktualPelatihanDanPerjalanan[[#Totals],[Jun]]+AktualPemasaran[[#Totals],[Jun]]+AktualKantor[[#Totals],[Jun]]+AktualKaryawan[[#Totals],[Jun]]","v":{"v":134239,"d":"Rp134,239.00"}},{"$f":"AktualPelatihanDanPerjalanan[[#Totals],[Jul]]+AktualPemasaran[[#Totals],[Jul]]+AktualKantor[[#Totals],[Jul]]+AktualKaryawan[[#Totals],[Jul]]","v":{"v":0,"d":"Rp0.00"}},{"$f":"AktualPelatihanDanPerjalanan[[#Totals],[Agu]]+AktualPemasaran[[#Totals],[Agu]]+AktualKantor[[#Totals],[Agu]]+AktualKaryawan[[#Totals],[Agu]]","v":{"v":0,"d":"Rp0.00"}},{"$f":"AktualPelatihanDanPerjalanan[[#Totals],[Sep]]+AktualPemasaran[[#Totals],[Sep]]+AktualKantor[[#Totals],[Sep]]+AktualKaryawan[[#Totals],[Sep]]","v":{"v":0,"d":"Rp0.00"}},{"$f":"AktualPelatihanDanPerjalanan[[#Totals],[Okt]]+AktualPemasaran[[#Totals],[Okt]]+AktualKantor[[#Totals],[Okt]]+AktualKaryawan[[#Totals],[Okt]]","v":{"v":0,"d":"Rp0.00"}},{"$f":"AktualPelatihanDanPerjalanan[[#Totals],[Nov]]+AktualPemasaran[[#Totals],[Nov]]+AktualKantor[[#Totals],[Nov]]+AktualKaryawan[[#Totals],[Nov]]","v":{"v":0,"d":"Rp0.00"}},{"$f":"AktualPelatihanDanPerjalanan[[#Totals],[Des]]+AktualPemasaran[[#Totals],[Des]]+AktualKantor[[#Totals],[Des]]+AktualKaryawan[[#Totals],[Des]]","v":{"v":0,"d":"Rp0.00"}},{"$f":"AktualPelatihanDanPerjalanan[[#Totals],[TAHUN]]+AktualPemasaran[[#Totals],[TAHUN]]+AktualKantor[[#Totals],[TAHUN]]+AktualKaryawan[[#Totals],[TAHUN]]","v":{"v":782939,"d":"Rp782,939.00"}}]
[null,"TOTAL Pengeluaran Aktual",{"$f":"SUM($C$36:C36)","v":{"v":129682,"d":"Rp129,682.00"}},{"$f":"SUM($C$36:D36)","v":{"v":257486,"d":"Rp257,486.00"}},{"$f":"SUM($C$36:E36)","v":{"v":383051,"d":"Rp383,051.00"}},{"$f":"SUM($C$36:F36)","v":{"v":520445,"d":"Rp520,445.00"}},{"$f":"SUM($C$36:G36)","v":{"v":648700,"d":"Rp648,700.00"}},{"$f":"SUM($C$36:H36)","v":{"v":782939,"d":"Rp782,939.00"}},{"$f":"SUM($C$36:I36)","v":{"v":782939,"d":"Rp782,939.00"}},{"$f":"SUM($C$36:J36)","v":{"v":782939,"d":"Rp782,939.00"}},{"$f":"SUM($C$36:K36)","v":{"v":782939,"d":"Rp782,939.00"}},{"$f":"SUM($C$36:L36)","v":{"v":782939,"d":"Rp782,939.00"}},{"$f":"SUM($C$36:M36)","v":{"v":782939,"d":"Rp782,939.00"}},{"$f":"SUM($C$36:N36)","v":{"v":782939,"d":"Rp782,939.00"}}]

{"sheet":"SELISIH PENGELUARAN","index":3,"n_rows":37,"n_cols":16,"rows_kept":37,"merged":[[1,1,2,3],[1,10,1,12],[1,13,2,14],[2,10,2,12],[8,1,8,2],[19,1,19,2],[28,1,28,2],[33,1,33,2]]}
["Selisih Pengeluaran akan dihitung secara otomatis di lembar kerja ini untuk Biaya Karyawan, Biaya Kantor, Biaya Pemasaran, dan Biaya Pelatihan atau Perjalanan di tabel masing-masing dalam lembar kerja ini. Instruksi bermanfaat tentang cara menggunakan lembar kerja berada dalam sel di kolom ini Tekan panah bawah untuk memulai.",{"$nulls":14}," "]
["Nama Perusahaan akan diperbarui secara otomatis dalam sel di sebelah kanan. Judul lembar kerja ini berada dalam sel K2. Masukkan Logo dalam sel N2.",{"$f":"'RENCANA PENGELUARAN'!B2:D3","v":"Nama Perusahaan"},{"$nulls":8},{"$f":"judul_lembar_kerja","v":"Detail Perkiraan Pengeluaran"},null,null,"Tempat penampung Logo berada dalam sel ini."]
["Tips berada dalam sel K3.",{"$nulls":9},"Sel berwarna pucat adalah hitungan."]
["Label Selisih Pengeluaran berada dalam sel di sebelah kanan, bulan dalam sel C4 hingga N4, dan label Tahun di O4.","SELISIH PENGELUARAN","JAN","FEB","MAR","APR","MEI","JUN","JUL","AGU","SEP","OKT","NOV","DES","TAHUN"]
["Selisih dalam Biaya Karyawan akan dihitung secara otomatis dalam tabel Selisih Karyawan mulai dari sel di sebelah kanan. Instruksi berikutnya berada dalam sel A10.","Biaya Karyawan","Jan","Feb","Mar","Apr","Mei","Jun","Jul","Agu","Sep","Okt","Nov","Des","TAHUN"]
[null,"Gaji",{"$f":"INDEX(RencanaKaryawan[],MATCH(INDEX(SelisihKaryawan[],ROW()-ROW(SelisihKaryawan[[#Headers],[Jan]]),1),INDEX(RencanaKaryawan[],,1),0),MATCH(SelisihKaryawan[[#Headers],[Jan]],RencanaKaryawan[#Headers],0))-INDEX(AktualKaryawan[],MATCH(INDEX(SelisihKaryawan[],ROW()-ROW(SelisihKaryawan[[#Headers],[Jan]]),1),INDEX(RencanaKaryawan[],,1),0),MATCH(SelisihKaryawan[[#Headers],[Jan]],AktualKaryawan[#Headers],0))","v":{"v":0,"d":"Rp0.00"}},{"$f":"INDEX(RencanaKaryawan[],MATCH(INDEX(SelisihKaryawan[],ROW()-ROW(SelisihKaryawan[[#Headers],[Feb]]),1),INDEX(RencanaKaryawan[],,1),0),MATCH(SelisihKaryawan[[#Headers],[Feb]],RencanaKaryawan[#Headers],0))-INDEX(AktualKaryawan[],MATCH(INDEX(SelisihKaryawan[],ROW()-ROW(SelisihKaryawan[[#Headers],[Feb]]),1),INDEX(RencanaKaryawan[],,1),0),MATCH(SelisihKaryawan[[#Headers],[Feb]],AktualKaryawan[#Headers],0))","v":{"v":0,"d":"Rp0.00"}},{"$f":"INDEX(RencanaKaryawan[],MATCH(INDEX(SelisihKaryawan[],ROW()-ROW(SelisihKaryawan[[#Headers],[Mar]]),1),INDEX(RencanaKaryawan[],,1),0),MATCH(SelisihKaryawan[[#Headers],[Mar]],RencanaKaryawan[#Headers],0))-INDEX(AktualKaryawan[],MATCH(INDEX(SelisihKaryawan[],ROW()-ROW(SelisihKaryawan[[#Headers],[Mar]]),1),INDEX(RencanaKaryawan[],,1),0),MATCH(SelisihKaryawan[[#Headers],[Mar]],AktualKaryawan[#Headers],0))","v":{"v":0,"d":"Rp0.00"}},{"$f":"INDEX(RencanaKaryawan[],MATCH(INDEX(SelisihKaryawan[],ROW()-ROW(SelisihKaryawan[[#Headers],[Apr]]),1),INDEX(RencanaKaryawan[],,1),0),MATCH(SelisihKaryawan[[#Headers],[Apr]],RencanaKaryawan[#Headers],0))-INDEX(AktualKaryawan[],MATCH(INDEX(SelisihKaryawan[],ROW()-ROW(SelisihKaryawan[[#Headers],[Apr]]),1),INDEX(RencanaKaryawan[],,1),0),MATCH(SelisihKaryawan[[#Headers],[Apr]],AktualKaryawan[#Headers],0))","v":{"v":-500,"d":"-Rp500.00"}},{"$f":"INDEX(RencanaKaryawan[],MATCH(INDEX(SelisihKaryawan[],ROW()-ROW(SelisihKaryawan[[#Headers],[Mei]]),1),INDEX(RencanaKaryawan[],,1),0),MATCH(SelisihKaryawan[[#Headers],[Mei]],RencanaKaryawan[#Headers],0))-INDEX(AktualKaryawan[],MATCH(INDEX(SelisihKaryawan[],ROW()-ROW(SelisihKaryawan[[#Headers],[Mei]]),1),INDEX(RencanaKaryawan[],,1),0),MATCH(SelisihKaryawan[[#Headers],[Mei]],AktualKaryawan[#Headers],0))","v":{"v":-500,"d":"-Rp500.00"}},{"$f":"INDEX(RencanaKaryawan[],MATCH(INDEX(SelisihKaryawan[],ROW()-ROW(SelisihKaryawan[[#Headers],[Jun]]),1),INDEX(RencanaKaryawan[],,1),0),MATCH(SelisihKaryawan[[#Headers],[Jun]],RencanaKaryawan[#Headers],0))-INDEX(AktualKaryawan[],MATCH(INDEX(SelisihKaryawan[],ROW()-ROW(SelisihKaryawan[[#Headers],[Jun]]),1),INDEX(RencanaKaryawan[],,1),0),MATCH(SelisihKaryawan[[#Headers],[Jun]],AktualKaryawan[#Headers],0))","v":{"v":-500,"d":"-Rp500.00"}},{"$f":"INDEX(RencanaKaryawan[],MATCH(INDEX(SelisihKaryawan[],ROW()-ROW(SelisihKaryawan[[#Headers],[Jul]]),1),INDEX(RencanaKaryawan[],,1),0),MATCH(SelisihKaryawan[[#Headers],[Jul]],RencanaKaryawan[#Headers],0))-INDEX(AktualKaryawan[],MATCH(INDEX(SelisihKaryawan[],ROW()-ROW(SelisihKaryawan[[#Headers],[Jul]]),1),INDEX(RencanaKaryawan[],,1),0),MATCH(SelisihKaryawan[[#Headers],[Jul]],AktualKaryawan[#Headers],0))","v":{"v":87500,"d":"Rp87,500.00"}},{"$f":"INDEX(RencanaKaryawan[],MATCH(INDEX(SelisihKaryawan[],ROW()-ROW(SelisihKaryawan[[#Headers],[Agu]]),1),INDEX(RencanaKaryawan[],,1),0),MATCH(SelisihKaryawan[[#Headers],[Agu]],RencanaKaryawan[#Headers],0))-INDEX(AktualKaryawan[],MATCH(INDEX(SelisihKaryawan[],ROW()-ROW(SelisihKaryawan[[#Headers],[Agu]]),1),INDEX(RencanaKaryawan[],,1),0),MATCH(SelisihKaryawan[[#Headers],[Agu]],AktualKaryawan[#Headers],0))","v":{"v":92400,"d":"Rp92,400.00"}},{"$f":"INDEX(RencanaKaryawan[],MATCH(INDEX(SelisihKaryawan[],ROW()-ROW(SelisihKaryawan[[#Headers],[Sep]]),1),INDEX(RencanaKaryawan[],,1),0),MATCH(SelisihKaryawan[[#Headers],[Sep]],RencanaKaryawan[#Headers],0))-INDEX(AktualKaryawan[],MATCH(INDEX(SelisihKaryawan[],ROW()-ROW(SelisihKaryawan[[#Headers],[Sep]]),1),INDEX(RencanaKaryawan[],,1),0),MATCH(SelisihKaryawan[[#Headers],[Sep]],AktualKaryawan[#Headers],0))","v":{"v":92400,"d":"Rp92,400.00"}},{"$f":"INDEX(RencanaKaryawan[],MATCH(INDEX(SelisihKaryawan[],ROW()-ROW(SelisihKaryawan[[#Headers],[Okt]]),1),INDEX(RencanaKaryawan[],,1),0),MATCH(SelisihKaryawan[[#Headers],[Okt]],RencanaKaryawan[#Headers],0))-INDEX(AktualKaryawan[],MATCH(INDEX(SelisihKaryawan[],ROW()-ROW(SelisihKaryawan[[#Headers],[Okt]]),1),INDEX(RencanaKaryawan[],,1),0),MATCH(SelisihKaryawan[[#Headers],[Okt]],AktualKaryawan[#Headers],0))","v":{"v":92400,"d":"Rp92,400.00"}},{"$f":"INDEX(RencanaKaryawan[],MATCH(INDEX(SelisihKaryawan[],ROW()-ROW(SelisihKaryawan[[#Headers],[Nov]]),1),INDEX(RencanaKaryawan[],,1),0),MATCH(SelisihKaryawan[[#Headers],[Nov]],RencanaKaryawan[#Headers],0))-INDEX(AktualKaryawan[],MATCH(INDEX(SelisihKaryawan[],ROW()-ROW(SelisihKaryawan[[#Headers],[Nov]]),1),INDEX(RencanaKaryawan[],,1),0),MATCH(SelisihKaryawan[[#Headers],[Nov]],AktualKaryawan[#Headers],0))","v":{"v":92400,"d":"Rp92,400.00"}},{"$f":"INDEX(RencanaKaryawan[],MATCH(INDEX(SelisihKaryawan[],ROW()-ROW(SelisihKaryawan[[#Headers],[Des]]),1),INDEX(RencanaKaryawan[],,1),0),MATCH(SelisihKaryawan[[#Headers],[Des]],RencanaKaryawan[#Headers],0))-INDEX(AktualKaryawan[],MATCH(INDEX(SelisihKaryawan[],ROW()-ROW(SelisihKaryawan[[#Headers],[Des]]),1),INDEX(RencanaKaryawan[],,1),0),MATCH(SelisihKaryawan[[#Headers],[Des]],AktualKaryawan[#Headers],0))","v":{"v":92400,"d":"Rp92,400.00"}},{"$f":"SUM(SelisihKaryawan[[#This Row],[Jan]:[Des]])","v":{"v":548000,"d":"Rp548,000.00"}}]
[null,"Fasilitas",{"$f":"INDEX(RencanaKaryawan[],MATCH(INDEX(SelisihKaryawan[],ROW()-ROW(SelisihKaryawan[[#Headers],[Jan]]),1),INDEX(RencanaKaryawan[],,1),0),MATCH(SelisihKaryawan[[#Headers],[Jan]],RencanaKaryawan[#Headers],0))-INDEX(AktualKaryawan[],MATCH(INDEX(SelisihKaryawan[],ROW()-ROW(SelisihKaryawan[[#Headers],[Jan]]),1),INDEX(RencanaKaryawan[],,1),0),MATCH(SelisihKaryawan[[#Headers],[Jan]],AktualKaryawan[#Headers],0))","v":{"v":0,"d":"Rp0.00"}},{"$f":"INDEX(RencanaKaryawan[],MATCH(INDEX(SelisihKaryawan[],ROW()-ROW(SelisihKaryawan[[#Headers],[Feb]]),1),INDEX(RencanaKaryawan[],,1),0),MATCH(SelisihKaryawan[[#Headers],[Feb]],RencanaKaryawan[#Headers],0))-INDEX(AktualKaryawan[],MATCH(INDEX(SelisihKaryawan[],ROW()-ROW(SelisihKaryawan[[#Headers],[Feb]]),1),INDEX(RencanaKaryawan[],,1),0),MATCH(SelisihKaryawan[[#Headers],[Feb]],AktualKaryawan[#Headers],0))","v":{"v":0,"d":"Rp0.00"}},{"$f":"INDEX(RencanaKaryawan[],MATCH(INDEX(SelisihKaryawan[],ROW()-ROW(SelisihKaryawan[[#Headers],[Mar]]),1),INDEX(RencanaKaryawan[],,1),0),MATCH(SelisihKaryawan[[#Headers],[Mar]],RencanaKaryawan[#Headers],0))-INDEX(AktualKaryawan[],MATCH(INDEX(SelisihKaryawan[],ROW()-ROW(SelisihKaryawan[[#Headers],[Mar]]),1),INDEX(RencanaKaryawan[],,1),0),MATCH(SelisihKaryawan[[#Headers],[Mar]],AktualKaryawan[#Headers],0))","v":{"v":0,"d":"Rp0.00"}},{"$f":"INDEX(RencanaKaryawan[],MATCH(INDEX(SelisihKaryawan[],ROW()-ROW(SelisihKaryawan[[#Headers],[Apr]]),1),INDEX(RencanaKaryawan[],,1),0),MATCH(SelisihKaryawan[[#Headers],[Apr]],RencanaKaryawan[#Headers],0))-INDEX(AktualKaryawan[],MATCH(INDEX(SelisihKaryawan[],ROW()-ROW(SelisihKaryawan[[#Headers],[Apr]]),1),INDEX(RencanaKaryawan[],,1),0),MATCH(SelisihKaryawan[[#Headers],[Apr]],AktualKaryawan[#Headers],0))","v":{"v":-135,"d":"-Rp135.00"}},{"$f":"INDEX(RencanaKaryawan[],MATCH(INDEX(SelisihKaryawan[],ROW()-ROW(SelisihKaryawan[[#Headers],[Mei]]),1),INDEX(RencanaKaryawan[],,1),0),MATCH(SelisihKaryawan[[#Headers],[Mei]],RencanaKaryawan[#Headers],0))-INDEX(AktualKaryawan[],MATCH(INDEX(SelisihKaryawan[],ROW()-ROW(SelisihKaryawan[[#Headers],[Mei]]),1),INDEX(RencanaKaryawan[],,1),0),MATCH(SelisihKaryawan[[#Headers],[Mei]],AktualKaryawan[#Headers],0))","v":{"v":-135,"d":"-Rp135.00"}},{"$f":"INDEX(RencanaKaryawan[],MATCH(INDEX(SelisihKaryawan[],ROW()-ROW(SelisihKaryawan[[#Headers],[Jun]]),1),INDEX(RencanaKaryawan[],,1),0),MATCH(SelisihKaryawan[[#Headers],[Jun]],RencanaKaryawan[#Headers],0))-INDEX(AktualKaryawan[],MATCH(INDEX(SelisihKaryawan[],ROW()-ROW(SelisihKaryawan[[#Headers],[Jun]]),1),INDEX(RencanaKaryawan[],,1),0),MATCH(SelisihKaryawan[[#Headers],[Jun]],AktualKaryawan[#Headers],0))","v":{"v":-135,"d":"-Rp135.00"}},{"$f":"INDEX(RencanaKaryawan[],MATCH(INDEX(SelisihKaryawan[],ROW()-ROW(SelisihKaryawan[[#Headers],[Jul]]),1),INDEX(RencanaKaryawan[],,1),0),MATCH(SelisihKaryawan[[#Headers],[Jul]],RencanaKaryawan[#Headers],0))-INDEX(AktualKaryawan[],MATCH(INDEX(SelisihKaryawan[],ROW()-ROW(SelisihKaryawan[[#Headers],[Jul]]),1),INDEX(RencanaKaryawan[],,1),0),MATCH(SelisihKaryawan[[#Headers],[Jul]],AktualKaryawan[#Headers],0))","v":{"v":23625,"d":"Rp23,625.00"}},{"$f":"INDEX(RencanaKaryawan[],MATCH(INDEX(SelisihKaryawan[],ROW()-ROW(SelisihKaryawan[[#Headers],[Agu]]),1),INDEX(RencanaKaryawan[],,1),0),MATCH(SelisihKaryawan[[#Headers],[Agu]],RencanaKaryawan[#Headers],0))-INDEX(AktualKaryawan[],MATCH(INDEX(SelisihKaryawan[],ROW()-ROW(SelisihKaryawan[[#Headers],[Agu]]),1),INDEX(RencanaKaryawan[],,1),0),MATCH(SelisihKaryawan[[#Headers],[Agu]],AktualKaryawan[#Headers],0))","v":{"v":24948,"d":"Rp24,948.00"}},{"$f":"INDEX(RencanaKaryawan[],MATCH(INDEX(SelisihKaryawan[],ROW()-ROW(SelisihKaryawan[[#Headers],[Sep]]),1),INDEX(RencanaKaryawan[],,1),0),MATCH(SelisihKaryawan[[#Headers],[Sep]],RencanaKaryawan[#Headers],0))-INDEX(AktualKaryawan[],MATCH(INDEX(SelisihKaryawan[],ROW()-ROW(SelisihKaryawan[[#Headers],[Sep]]),1),INDEX(RencanaKaryawan[],,1),0),MATCH(SelisihKaryawan[[#Headers],[Sep]],AktualKaryawan[#Headers],0))","v":{"v":24948,"d":"Rp24,948.00"}},{"$f":"INDEX(RencanaKaryawan[],MATCH(INDEX(SelisihKaryawan[],ROW()-ROW(SelisihKaryawan[[#Headers],[Okt]]),1),INDEX(RencanaKaryawan[],,1),0),MATCH(SelisihKaryawan[[#Headers],[Okt]],RencanaKaryawan[#Headers],0))-INDEX(AktualKaryawan[],MATCH(INDEX(SelisihKaryawan[],ROW()-ROW(SelisihKaryawan[[#Headers],[Okt]]),1),INDEX(RencanaKaryawan[],,1),0),MATCH(SelisihKaryawan[[#Headers],[Okt]],AktualKaryawan[#Headers],0))","v":{"v":24948,"d":"Rp24,948.00"}},{"$f":"INDEX(RencanaKaryawan[],MATCH(INDEX(SelisihKaryawan[],ROW()-ROW(SelisihKaryawan[[#Headers],[Nov]]),1),INDEX(RencanaKaryawan[],,1),0),MATCH(SelisihKaryawan[[#Headers],[Nov]],RencanaKaryawan[#Headers],0))-INDEX(AktualKaryawan[],MATCH(INDEX(SelisihKaryawan[],ROW()-ROW(SelisihKaryawan[[#Headers],[Nov]]),1),INDEX(RencanaKaryawan[],,1),0),MATCH(SelisihKaryawan[[#Headers],[Nov]],AktualKaryawan[#Headers],0))","v":{"v":24948,"d":"Rp24,948.00"}},{"$f":"INDEX(RencanaKaryawan[],MATCH(INDEX(SelisihKaryawan[],ROW()-ROW(SelisihKaryawan[[#Headers],[Des]]),1),INDEX(RencanaKaryawan[],,1),0),MATCH(SelisihKaryawan[[#Headers],[Des]],RencanaKaryawan[#Headers],0))-INDEX(AktualKaryawan[],MATCH(INDEX(SelisihKaryawan[],ROW()-ROW(SelisihKaryawan[[#Headers],[Des]]),1),INDEX(RencanaKaryawan[],,1),0),MATCH(SelisihKaryawan[[#Headers],[Des]],AktualKaryawan[#Headers],0))","v":{"v":24948,"d":"Rp24,948.00"}},{"$f":"SUM(SelisihKaryawan[[#This Row],[Jan]:[Des]])","v":{"v":147960,"d":"Rp147,960.00"}}]
[null,"Subtotal",{"$f":"SUBTOTAL(109,SelisihKaryawan[Jan])","v":{"v":0,"d":"Rp0.00"}},{"$f":"SUBTOTAL(109,SelisihKaryawan[Feb])","v":{"v":0,"d":"Rp0.00"}},{"$f":"SUBTOTAL(109,SelisihKaryawan[Mar])","v":{"v":0,"d":"Rp0.00"}},{"$f":"SUBTOTAL(109,SelisihKaryawan[Apr])","v":{"v":-635,"d":"-Rp635.00"}},{"$f":"SUBTOTAL(109,SelisihKaryawan[Mei])","v":{"v":-635,"d":"-Rp635.00"}},{"$f":"SUBTOTAL(109,SelisihKaryawan[Jun])","v":{"v":-635,"d":"-Rp635.00"}},{"$f":"SUBTOTAL(109,SelisihKaryawan[Jul])","v":{"v":111125,"d":"Rp111,125.00"}},{"$f":"SUBTOTAL(109,SelisihKaryawan[Agu])","v":{"v":117348,"d":"Rp117,348.00"}},{"$f":"SUBTOTAL(109,SelisihKaryawan[Sep])","v":{"v":117348,"d":"Rp117,348.00"}},{"$f":"SUBTOTAL(109,SelisihKaryawan[Okt])","v":{"v":117348,"d":"Rp117,348.00"}},{"$f":"SUBTOTAL(109,SelisihKaryawan[Nov])","v":{"v":117348,"d":"Rp117,348.00"}},{"$f":"SUBTOTAL(109,SelisihKaryawan[Des])","v":{"v":117348,"d":"Rp117,348.00"}},{"$f":"SUBTOTAL(109,SelisihKaryawan[TAHUN])","v":{"v":695960,"d":"Rp695,960.00"}}]
[]
["Selisih dalam Biaya Kantor akan dihitung secara otomatis dalam tabel Selisih Kantor mulai dari sel di sebelah kanan. Instruksi berikutnya berada dalam sel A21.","Biaya Kantor","Jan","Feb","Mar","Apr","Mei","Jun","Jul","Agu","Sep","Okt","Nov","Des","TAHUN"]
[null,"Sewa kantor",{"$f":"INDEX(RencanaKantor[],MATCH(INDEX(SelisihKantor[],ROW()-ROW(SelisihKantor[[#Headers],[Jan]]),1),INDEX(RencanaKantor[],,1),0),MATCH(SelisihKantor[[#Headers],[Jan]],RencanaKantor[#Headers],0))-INDEX(AktualKantor[],MATCH(INDEX(SelisihKantor[],ROW()-ROW(SelisihKantor[[#Headers],[Jan]]),1),INDEX(RencanaKantor[],,1),0),MATCH(SelisihKantor[[#Headers],[Jan]],AktualKantor[#Headers],0))","v":{"v":0,"d":"Rp0.00"}},{"$f":"INDEX(RencanaKantor[],MATCH(INDEX(SelisihKantor[],ROW()-ROW(SelisihKantor[[#Headers],[Feb]]),1),INDEX(RencanaKantor[],,1),0),MATCH(SelisihKantor[[#Headers],[Feb]],RencanaKantor[#Headers],0))-INDEX(AktualKantor[],MATCH(INDEX(SelisihKantor[],ROW()-ROW(SelisihKantor[[#Headers],[Feb]]),1),INDEX(RencanaKantor[],,1),0),MATCH(SelisihKantor[[#Headers],[Feb]],AktualKantor[#Headers],0))","v":{"v":0,"d":"Rp0.00"}},{"$f":"INDEX(RencanaKantor[],MATCH(INDEX(SelisihKantor[],ROW()-ROW(SelisihKantor[[#Headers],[Mar]]),1),INDEX(RencanaKantor[],,1),0),MATCH(SelisihKantor[[#Headers],[Mar]],RencanaKantor[#Headers],0))-INDEX(AktualKantor[],MATCH(INDEX(SelisihKantor[],ROW()-ROW(SelisihKantor[[#Headers],[Mar]]),1),INDEX(RencanaKantor[],,1),0),MATCH(SelisihKantor[[#Headers],[Mar]],AktualKantor[#Headers],0))","v":{"v":0,"d":"Rp0.00"}},{"$f":"INDEX(RencanaKantor[],MATCH(INDEX(SelisihKantor[],ROW()-ROW(SelisihKantor[[#Headers],[Apr]]),1),INDEX(RencanaKantor[],,1),0),MATCH(SelisihKantor[[#Headers],[Apr]],RencanaKantor[#Headers],0))-INDEX(AktualKantor[],MATCH(INDEX(SelisihKantor[],ROW()-ROW(SelisihKantor[[#Headers],[Apr]]),1),INDEX(RencanaKantor[],,1),0),MATCH(SelisihKantor[[#Headers],[Apr]],AktualKantor[#Headers],0))","v":{"v":0,"d":"Rp0.00"}},{"$f":"INDEX(RencanaKantor[],MATCH(INDEX(SelisihKantor[],ROW()-ROW(SelisihKantor[[#Headers],[Mei]]),1),INDEX(RencanaKantor[],,1),0),MATCH(SelisihKantor[[#Headers],[Mei]],RencanaKantor[#Headers],0))-INDEX(AktualKantor[],MATCH(INDEX(SelisihKantor[],ROW()-ROW(SelisihKantor[[#Headers],[Mei]]),1),INDEX(RencanaKantor[],,1),0),MATCH(SelisihKantor[[#Headers],[Mei]],AktualKantor[#Headers],0))","v":{"v":0,"d":"Rp0.00"}},{"$f":"INDEX(RencanaKantor[],MATCH(INDEX(SelisihKantor[],ROW()-ROW(SelisihKantor[[#Headers],[Jun]]),1),INDEX(RencanaKantor[],,1),0),MATCH(SelisihKantor[[#Headers],[Jun]],RencanaKantor[#Headers],0))-INDEX(AktualKantor[],MATCH(INDEX(SelisihKantor[],ROW()-ROW(SelisihKantor[[#Headers],[Jun]]),1),INDEX(RencanaKantor[],,1),0),MATCH(SelisihKantor[[#Headers],[Jun]],AktualKantor[#Headers],0))","v":{"v":0,"d":"Rp0.00"}},{"$f":"INDEX(RencanaKantor[],MATCH(INDEX(SelisihKantor[],ROW()-ROW(SelisihKantor[[#Headers],[Jul]]),1),INDEX(RencanaKantor[],,1),0),MATCH(SelisihKantor[[#Headers],[Jul]],RencanaKantor[#Headers],0))-INDEX(AktualKantor[],MATCH(INDEX(SelisihKantor[],ROW()-ROW(SelisihKantor[[#Headers],[Jul]]),1),INDEX(RencanaKantor[],,1),0),MATCH(SelisihKantor[[#Headers],[Jul]],AktualKantor[#Headers],0))","v":{"v":9800,"d":"Rp9,800.00"}},{"$f":"INDEX(RencanaKantor[],MATCH(INDEX(SelisihKantor[],ROW()-ROW(SelisihKantor[[#Headers],[Agu]]),1),INDEX(RencanaKantor[],,1),0),MATCH(SelisihKantor[[#Headers],[Agu]],RencanaKantor[#Headers],0))-INDEX(AktualKantor[],MATCH(INDEX(SelisihKantor[],ROW()-ROW(SelisihKantor[[#Headers],[Agu]]),1),INDEX(RencanaKantor[],,1),0),MATCH(SelisihKantor[[#Headers],[Agu]],AktualKantor[#Headers],0))","v":{"v":9800,"d":"Rp9,800.00"}},{"$f":"INDEX(RencanaKantor[],MATCH(INDEX(SelisihKantor[],ROW()-ROW(SelisihKantor[[#Headers],[Sep]]),1),INDEX(RencanaKantor[],,1),0),MATCH(SelisihKantor[[#Headers],[Sep]],RencanaKantor[#Headers],0))-INDEX(AktualKantor[],MATCH(INDEX(SelisihKantor[],ROW()-ROW(SelisihKantor[[#Headers],[Sep]]),1),INDEX(RencanaKantor[],,1),0),MATCH(SelisihKantor[[#Headers],[Sep]],AktualKantor[#Headers],0))","v":{"v":9800,"d":"Rp9,800.00"}},{"$f":"INDEX(RencanaKantor[],MATCH(INDEX(SelisihKantor[],ROW()-ROW(SelisihKantor[[#Headers],[Okt]]),1),INDEX(RencanaKantor[],,1),0),MATCH(SelisihKantor[[#Headers],[Okt]],RencanaKantor[#Headers],0))-INDEX(AktualKantor[],MATCH(INDEX(SelisihKantor[],ROW()-ROW(SelisihKantor[[#Headers],[Okt]]),1),INDEX(RencanaKantor[],,1),0),MATCH(SelisihKantor[[#Headers],[Okt]],AktualKantor[#Headers],0))","v":{"v":9800,"d":"Rp9,800.00"}},{"$f":"INDEX(RencanaKantor[],MATCH(INDEX(SelisihKantor[],ROW()-ROW(SelisihKantor[[#Headers],[Nov]]),1),INDEX(RencanaKantor[],,1),0),MATCH(SelisihKantor[[#Headers],[Nov]],RencanaKantor[#Headers],0))-INDEX(AktualKantor[],MATCH(INDEX(SelisihKantor[],ROW()-ROW(SelisihKantor[[#Headers],[Nov]]),1),INDEX(RencanaKantor[],,1),0),MATCH(SelisihKantor[[#Headers],[Nov]],AktualKantor[#Headers],0))","v":{"v":9800,"d":"Rp9,800.00"}},{"$f":"INDEX(RencanaKantor[],MATCH(INDEX(SelisihKantor[],ROW()-ROW(SelisihKantor[[#Headers],[Des]]),1),INDEX(RencanaKantor[],,1),0),MATCH(SelisihKantor[[#Headers],[Des]],RencanaKantor[#Headers],0))-INDEX(AktualKantor[],MATCH(INDEX(SelisihKantor[],ROW()-ROW(SelisihKantor[[#Headers],[Des]]),1),INDEX(RencanaKantor[],,1),0),MATCH(SelisihKantor[[#Headers],[Des]],AktualKantor[#Headers],0))","v":{"v":9800,"d":"Rp9,800.00"}},{"$f":"SUM(SelisihKantor[[#This Row],[Jan]:[Des]])","v":{"v":58800,"d":"Rp58,800.00"}}]
[null,"Bahan bakar",{"$f":"INDEX(RencanaKantor[],MATCH(INDEX(SelisihKantor[],ROW()-ROW(SelisihKantor[[#Headers],[Jan]]),1),INDEX(RencanaKantor[],,1),0),MATCH(SelisihKantor[[#Headers],[Jan]],RencanaKantor[#Headers],0))-INDEX(AktualKantor[],MATCH(INDEX(SelisihKantor[],ROW()-ROW(SelisihKantor[[#Headers],[Jan]]),1),INDEX(RencanaKantor[],,1),0),MATCH(SelisihKantor[[#Headers],[Jan]],AktualKantor[#Headers],0))","v":{"v":-4,"d":"-Rp4.00"}},{"$f":"INDEX(RencanaKantor[],MATCH(INDEX(SelisihKantor[],ROW()-ROW(SelisihKantor[[#Headers],[Feb]]),1),INDEX(RencanaKantor[],,1),0),MATCH(SelisihKantor[[#Headers],[Feb]],RencanaKantor[#Headers],0))-INDEX(AktualKantor[],MATCH(INDEX(SelisihKantor[],ROW()-ROW(SelisihKantor[[#Headers],[Feb]]),1),INDEX(RencanaKantor[],,1),0),MATCH(SelisihKantor[[#Headers],[Feb]],AktualKantor[#Headers],0))","v":{"v":-30,"d":"-Rp30.00"}},{"$f":"INDEX(RencanaKantor[],MATCH(INDEX(SelisihKantor[],ROW()-ROW(SelisihKantor[[#Headers],[Mar]]),1),INDEX(RencanaKantor[],,1),0),MATCH(SelisihKantor[[#Headers],[Mar]],RencanaKantor[#Headers],0))-INDEX(AktualKantor[],MATCH(INDEX(SelisihKantor[],ROW()-ROW(SelisihKantor[[#Headers],[Mar]]),1),INDEX(RencanaKantor[],,1),0),MATCH(SelisihKantor[[#Headers],[Mar]],AktualKantor[#Headers],0))","v":{"v":15,"d":"Rp15.00"}},{"$f":"INDEX(RencanaKantor[],MATCH(INDEX(SelisihKantor[],ROW()-ROW(SelisihKantor[[#Headers],[Apr]]),1),INDEX(RencanaKantor[],,1),0),MATCH(SelisihKantor[[#Headers],[Apr]],RencanaKantor[#Headers],0))-INDEX(AktualKantor[],MATCH(INDEX(SelisihKantor[],ROW()-ROW(SelisihKantor[[#Headers],[Apr]]),1),INDEX(RencanaKantor[],,1),0),MATCH(SelisihKantor[[#Headers],[Apr]],AktualKantor[#Headers],0))","v":{"v":-130,"d":"-Rp130.00"}},{"$f":"INDEX(RencanaKantor[],MATCH(INDEX(SelisihKantor[],ROW()-ROW(SelisihKantor[[#Headers],[Mei]]),1),INDEX(RencanaKantor[],,1),0),MATCH(SelisihKantor[[#Headers],[Mei]],RencanaKantor[#Headers],0))-INDEX(AktualKantor[],MATCH(INDEX(SelisihKantor[],ROW()-ROW(SelisihKantor[[#Headers],[Mei]]),1),INDEX(RencanaKantor[],,1),0),MATCH(SelisihKantor[[#Headers],[Mei]],AktualKantor[#Headers],0))","v":{"v":13,"d":"Rp13.00"}},{"$f":"INDEX(RencanaKantor[],MATCH(INDEX(SelisihKantor[],ROW()-ROW(SelisihKantor[[#Headers],[Jun]]),1),INDEX(RencanaKantor[],,1),0),MATCH(SelisihKantor[[#Headers],[Jun]],RencanaKantor[#Headers],0))-INDEX(AktualKantor[],MATCH(INDEX(SelisihKantor[],ROW()-ROW(SelisihKantor[[#Headers],[Jun]]),1),INDEX(RencanaKantor[],,1),0),MATCH(SelisihKantor[[#Headers],[Jun]],AktualKantor[#Headers],0))","v":{"v":12,"d":"Rp12.00"}},{"$f":"INDEX(RencanaKantor[],MATCH(INDEX(SelisihKantor[],ROW()-ROW(SelisihKantor[[#Headers],[Jul]]),1),INDEX(RencanaKantor[],,1),0),MATCH(SelisihKantor[[#Headers],[Jul]],RencanaKantor[#Headers],0))-INDEX(AktualKantor[],MATCH(INDEX(SelisihKantor[],ROW()-ROW(SelisihKantor[[#Headers],[Jul]]),1),INDEX(RencanaKantor[],,1),0),MATCH(SelisihKantor[[#Headers],[Jul]],AktualKantor[#Headers],0))","v":{"v":100,"d":"Rp100.00"}},{"$f":"INDEX(RencanaKantor[],MATCH(INDEX(SelisihKantor[],ROW()-ROW(SelisihKantor[[#Headers],[Agu]]),1),INDEX(RencanaKantor[],,1),0),MATCH(SelisihKantor[[#Headers],[Agu]],RencanaKantor[#Headers],0))-INDEX(AktualKantor[],MATCH(INDEX(SelisihKantor[],ROW()-ROW(SelisihKantor[[#Headers],[Agu]]),1),INDEX(RencanaKantor[],,1),0),MATCH(SelisihKantor[[#Headers],[Agu]],AktualKantor[#Headers],0))","v":{"v":100,"d":"Rp100.00"}},{"$f":"INDEX(RencanaKantor[],MATCH(INDEX(SelisihKantor[],ROW()-ROW(SelisihKantor[[#Headers],[Sep]]),1),INDEX(RencanaKantor[],,1),0),MATCH(SelisihKantor[[#Headers],[Sep]],RencanaKantor[#Headers],0))-INDEX(AktualKantor[],MATCH(INDEX(SelisihKantor[],ROW()-ROW(SelisihKantor[[#Headers],[Sep]]),1),INDEX(RencanaKantor[],,1),0),MATCH(SelisihKantor[[#Headers],[Sep]],AktualKantor[#Headers],0))","v":{"v":100,"d":"Rp100.00"}},{"$f":"INDEX(RencanaKantor[],MATCH(INDEX(SelisihKantor[],ROW()-ROW(SelisihKantor[[#Headers],[Okt]]),1),INDEX(RencanaKantor[],,1),0),MATCH(SelisihKantor[[#Headers],[Okt]],RencanaKantor[#Headers],0))-INDEX(AktualKantor[],MATCH(INDEX(SelisihKantor[],ROW()-ROW(SelisihKantor[[#Headers],[Okt]]),1),INDEX(RencanaKantor[],,1),0),MATCH(SelisihKantor[[#Headers],[Okt]],AktualKantor[#Headers],0))","v":{"v":100,"d":"Rp100.00"}},{"$f":"INDEX(RencanaKantor[],MATCH(INDEX(SelisihKantor[],ROW()-ROW(SelisihKantor[[#Headers],[Nov]]),1),INDEX(RencanaKantor[],,1),0),MATCH(SelisihKantor[[#Headers],[Nov]],RencanaKantor[#Headers],0))-INDEX(AktualKantor[],MATCH(INDEX(SelisihKantor[],ROW()-ROW(SelisihKantor[[#Headers],[Nov]]),1),INDEX(RencanaKantor[],,1),0),MATCH(SelisihKantor[[#Headers],[Nov]],AktualKantor[#Headers],0))","v":{"v":400,"d":"Rp400.00"}},{"$f":"INDEX(RencanaKantor[],MATCH(INDEX(SelisihKantor[],ROW()-ROW(SelisihKantor[[#Headers],[Des]]),1),INDEX(RencanaKantor[],,1),0),MATCH(SelisihKantor[[#Headers],[Des]],RencanaKantor[#Headers],0))-INDEX(AktualKantor[],MATCH(INDEX(SelisihKantor[],ROW()-ROW(SelisihKantor[[#Headers],[Des]]),1),INDEX(RencanaKantor[],,1),0),MATCH(SelisihKantor[[#Headers],[Des]],AktualKantor[#Headers],0))","v":{"v":400,"d":"Rp400.00"}},{"$f":"SUM(SelisihKantor[[#This Row],[Jan]:[Des]])","v":{"v":1076,"d":"Rp1,076.00"}}]
[null,"Listrik",{"$f":"INDEX(RencanaKantor[],MATCH(INDEX(SelisihKantor[],ROW()-ROW(SelisihKantor[[#Headers],[Jan]]),1),INDEX(RencanaKantor[],,1),0),MATCH(SelisihKantor[[#Headers],[Jan]],RencanaKantor[#Headers],0))-INDEX(AktualKantor[],MATCH(INDEX(SelisihKantor[],ROW()-ROW(SelisihKantor[[#Headers],[Jan]]),1),INDEX(RencanaKantor[],,1),0),MATCH(SelisihKantor[[#Headers],[Jan]],AktualKantor[#Headers],0))","v":{"v":12,"d":"Rp12.00"}},{"$f":"INDEX(RencanaKantor[],MATCH(INDEX(SelisihKantor[],ROW()-ROW(SelisihKantor[[#Headers],[Feb]]),1),INDEX(RencanaKantor[],,1),0),MATCH(SelisihKantor[[#Headers],[Feb]],RencanaKantor[#Headers],0))-INDEX(AktualKantor[],MATCH(INDEX(SelisihKantor[],ROW()-ROW(SelisihKantor[[#Headers],[Feb]]),1),INDEX(RencanaKantor[],,1),0),MATCH(SelisihKantor[[#Headers],[Feb]],AktualKantor[#Headers],0))","v":{"v":22,"d":"Rp22.00"}},{"$f":"INDEX(RencanaKantor[],MATCH(INDEX(SelisihKantor[],ROW()-ROW(SelisihKantor[[#Headers],[Mar]]),1),INDEX(RencanaKantor[],,1),0),MATCH(SelisihKantor[[#Headers],[Mar]],RencanaKantor[#Headers],0))-INDEX(AktualKantor[],MATCH(INDEX(SelisihKantor[],ROW()-ROW(SelisihKantor[[#Headers],[Mar]]),1),INDEX(RencanaKantor[],,1),0),MATCH(SelisihKantor[[#Headers],[Mar]],AktualKantor[#Headers],0))","v":{"v":32,"d":"Rp32.00"}},{"$f":"INDEX(RencanaKantor[],MATCH(INDEX(SelisihKantor[],ROW()-ROW(SelisihKantor[[#Headers],[Apr]]),1),INDEX(RencanaKantor[],,1),0),MATCH(SelisihKantor[[#Headers],[Apr]],RencanaKantor[#Headers],0))-INDEX(AktualKantor[],MATCH(INDEX(SelisihKantor[],ROW()-ROW(SelisihKantor[[#Headers],[Apr]]),1),INDEX(RencanaKantor[],,1),0),MATCH(SelisihKantor[[#Headers],[Apr]],AktualKantor[#Headers],0))","v":{"v":1,"d":"Rp1.00"}},{"$f":"INDEX(RencanaKantor[],MATCH(INDEX(SelisihKantor[],ROW()-ROW(SelisihKantor[[#Headers],[Mei]]),1),INDEX(RencanaKantor[],,1),0),MATCH(SelisihKantor[[#Headers],[Mei]],RencanaKantor[#Headers],0))-INDEX(AktualKantor[],MATCH(INDEX(SelisihKantor[],ROW()-ROW(SelisihKantor[[#Headers],[Mei]]),1),INDEX(RencanaKantor[],,1),0),MATCH(SelisihKantor[[#Headers],[Mei]],AktualKantor[#Headers],0))","v":{"v":-6,"d":"-Rp6.00"}},{"$f":"INDEX(RencanaKantor[],MATCH(INDEX(SelisihKantor[],ROW()-ROW(SelisihKantor[[#Headers],[Jun]]),1),INDEX(RencanaKantor[],,1),0),MATCH(SelisihKantor[[#Headers],[Jun]],RencanaKantor[#Headers],0))-INDEX(AktualKantor[],MATCH(INDEX(SelisihKantor[],ROW()-ROW(SelisihKantor[[#Headers],[Jun]]),1),INDEX(RencanaKantor[],,1),0),MATCH(SelisihKantor[[#Headers],[Jun]],AktualKantor[#Headers],0))","v":{"v":10,"d":"Rp10.00"}},{"$f":"INDEX(RencanaKantor[],MATCH(INDEX(SelisihKantor[],ROW()-ROW(SelisihKantor[[#Headers],[Jul]]),1),INDEX(RencanaKantor[],,1),0),MATCH(SelisihKantor[[#Headers],[Jul]],RencanaKantor[#Headers],0))-INDEX(AktualKantor[],MATCH(INDEX(SelisihKantor[],ROW()-ROW(SelisihKantor[[#Headers],[Jul]]),1),INDEX(RencanaKantor[],,1),0),MATCH(SelisihKantor[[#Headers],[Jul]],AktualKantor[#Headers],0))","v":{"v":300,"d":"Rp300.00"}},{"$f":"INDEX(RencanaKantor[],MATCH(INDEX(SelisihKantor[],ROW()-ROW(SelisihKantor[[#Headers],[Agu]]),1),INDEX(RencanaKantor[],,1),0),MATCH(SelisihKantor[[#Headers],[Agu]],RencanaKantor[#Headers],0))-INDEX(AktualKantor[],MATCH(INDEX(SelisihKantor[],ROW()-ROW(SelisihKantor[[#Headers],[Agu]]),1),INDEX(RencanaKantor[],,1),0),MATCH(SelisihKantor[[#Headers],[Agu]],AktualKantor[#Headers],0))","v":{"v":300,"d":"Rp300.00"}},{"$f":"INDEX(RencanaKantor[],MATCH(INDEX(SelisihKantor[],ROW()-ROW(SelisihKantor[[#Headers],[Sep]]),1),INDEX(RencanaKantor[],,1),0),MATCH(SelisihKantor[[#Headers],[Sep]],RencanaKantor[#Headers],0))-INDEX(AktualKantor[],MATCH(INDEX(SelisihKantor[],ROW()-ROW(SelisihKantor[[#Headers],[Sep]]),1),INDEX(RencanaKantor[],,1),0),MATCH(SelisihKantor[[#Headers],[Sep]],AktualKantor[#Headers],0))","v":{"v":300,"d":"Rp300.00"}},{"$f":"INDEX(RencanaKantor[],MATCH(INDEX(SelisihKantor[],ROW()-ROW(SelisihKantor[[#Headers],[Okt]]),1),INDEX(RencanaKantor[],,1),0),MATCH(SelisihKantor[[#Headers],[Okt]],RencanaKantor[#Headers],0))-INDEX(AktualKantor[],MATCH(INDEX(SelisihKantor[],ROW()-ROW(SelisihKantor[[#Headers],[Okt]]),1),INDEX(RencanaKantor[],,1),0),MATCH(SelisihKantor[[#Headers],[Okt]],AktualKantor[#Headers],0))","v":{"v":300,"d":"Rp300.00"}},{"$f":"INDEX(RencanaKantor[],MATCH(INDEX(SelisihKantor[],ROW()-ROW(SelisihKantor[[#Headers],[Nov]]),1),INDEX(RencanaKantor[],,1),0),MATCH(SelisihKantor[[#Headers],[Nov]],RencanaKantor[#Headers],0))-INDEX(AktualKantor[],MATCH(INDEX(SelisihKantor[],ROW()-ROW(SelisihKantor[[#Headers],[Nov]]),1),INDEX(RencanaKantor[],,1),0),MATCH(SelisihKantor[[#Headers],[Nov]],AktualKantor[#Headers],0))","v":{"v":300,"d":"Rp300.00"}},{"$f":"INDEX(RencanaKantor[],MATCH(INDEX(SelisihKantor[],ROW()-ROW(SelisihKantor[[#Headers],[Des]]),1),INDEX(RencanaKantor[],,1),0),MATCH(SelisihKantor[[#Headers],[Des]],RencanaKantor[#Headers],0))-INDEX(AktualKantor[],MATCH(INDEX(SelisihKantor[],ROW()-ROW(SelisihKantor[[#Headers],[Des]]),1),INDEX(RencanaKantor[],,1),0),MATCH(SelisihKantor[[#Headers],[Des]],AktualKantor[#Headers],0))","v":{"v":300,"d":"Rp300.00"}},{"$f":"SUM(SelisihKantor[[#This Row],[Jan]:[Des]])","v":{"v":1871,"d":"Rp1,871.00"}}]
[null,"Air",{"$f":"INDEX(RencanaKantor[],MATCH(INDEX(SelisihKantor[],ROW()-ROW(SelisihKantor[[#Headers],[Jan]]),1),INDEX(RencanaKantor[],,1),0),MATCH(SelisihKantor[[#Headers],[Jan]],RencanaKantor[#Headers],0))-INDEX(AktualKantor[],MATCH(INDEX(SelisihKantor[],ROW()-ROW(SelisihKantor[[#Headers],[Jan]]),1),INDEX(RencanaKantor[],,1),0),MATCH(SelisihKantor[[#Headers],[Jan]],AktualKantor[#Headers],0))","v":{"v":5,"d":"Rp5.00"}},{"$f":"INDEX(RencanaKantor[],MATCH(INDEX(SelisihKantor[],ROW()-ROW(SelisihKantor[[#Headers],[Feb]]),1),INDEX(RencanaKantor[],,1),0),MATCH(SelisihKantor[[#Headers],[Feb]],RencanaKantor[#Headers],0))-INDEX(AktualKantor[],MATCH(INDEX(SelisihKantor[],ROW()-ROW(SelisihKantor[[#Headers],[Feb]]),1),INDEX(RencanaKantor[],,1),0),MATCH(SelisihKantor[[#Headers],[Feb]],AktualKantor[#Headers],0))","v":{"v":7,"d":"Rp7.00"}},{"$f":"INDEX(RencanaKantor[],MATCH(INDEX(SelisihKantor[],ROW()-ROW(SelisihKantor[[#Headers],[Mar]]),1),INDEX(RencanaKantor[],,1),0),MATCH(SelisihKantor[[#Headers],[Mar]],RencanaKantor[#Headers],0))-INDEX(AktualKantor[],MATCH(INDEX(SelisihKantor[],ROW()-ROW(SelisihKantor[[#Headers],[Mar]]),1),INDEX(RencanaKantor[],,1),0),MATCH(SelisihKantor[[#Headers],[Mar]],AktualKantor[#Headers],0))","v":{"v":6,"d":"Rp6.00"}},{"$f":"INDEX(RencanaKantor[],MATCH(INDEX(SelisihKantor[],ROW()-ROW(SelisihKantor[[#Headers],[Apr]]),1),INDEX(RencanaKantor[],,1),0),MATCH(SelisihKantor[[#Headers],[Apr]],RencanaKantor[#Headers],0))-INDEX(AktualKantor[],MATCH(INDEX(SelisihKantor[],ROW()-ROW(SelisihKantor[[#Headers],[Apr]]),1),INDEX(RencanaKantor[],,1),0),MATCH(SelisihKantor[[#Headers],[Apr]],AktualKantor[#Headers],0))","v":{"v":4,"d":"Rp4.00"}},{"$f":"INDEX(RencanaKantor[],MATCH(INDEX(SelisihKantor[],ROW()-ROW(SelisihKantor[[#Headers],[Mei]]),1),INDEX(RencanaKantor[],,1),0),MATCH(SelisihKantor[[#Headers],[Mei]],RencanaKantor[#Headers],0))-INDEX(AktualKantor[],MATCH(INDEX(SelisihKantor[],ROW()-ROW(SelisihKantor[[#Headers],[Mei]]),1),INDEX(RencanaKantor[],,1),0),MATCH(SelisihKantor[[#Headers],[Mei]],AktualKantor[#Headers],0))","v":{"v":6,"d":"Rp6.00"}},{"$f":"INDEX(RencanaKantor[],MATCH(INDEX(SelisihKantor[],ROW()-ROW(SelisihKantor[[#Headers],[Jun]]),1),INDEX(RencanaKantor[],,1),0),MATCH(SelisihKantor[[#Headers],[Jun]],RencanaKantor[#Headers],0))-INDEX(AktualKantor[],MATCH(INDEX(SelisihKantor[],ROW()-ROW(SelisihKantor[[#Headers],[Jun]]),1),INDEX(RencanaKantor[],,1),0),MATCH(SelisihKantor[[#Headers],[Jun]],AktualKantor[#Headers],0))","v":{"v":4,"d":"Rp4.00"}},{"$f":"INDEX(RencanaKantor[],MATCH(INDEX(SelisihKantor[],ROW()-ROW(SelisihKantor[[#Headers],[Jul]]),1),INDEX(RencanaKantor[],,1),0),MATCH(SelisihKantor[[#Headers],[Jul]],RencanaKantor[#Headers],0))-INDEX(AktualKantor[],MATCH(INDEX(SelisihKantor[],ROW()-ROW(SelisihKantor[[#Headers],[Jul]]),1),INDEX(RencanaKantor[],,1),0),MATCH(SelisihKantor[[#Headers],[Jul]],AktualKantor[#Headers],0))","v":{"v":40,"d":"Rp40.00"}},{"$f":"INDEX(RencanaKantor[],MATCH(INDEX(SelisihKantor[],ROW()-ROW(SelisihKantor[[#Headers],[Agu]]),1),INDEX(RencanaKantor[],,1),0),MATCH(SelisihKantor[[#Headers],[Agu]],RencanaKantor[#Headers],0))-INDEX(AktualKantor[],MATCH(INDEX(SelisihKantor[],ROW()-ROW(SelisihKantor[[#Headers],[Agu]]),1),INDEX(RencanaKantor[],,1),0),MATCH(SelisihKantor[[#Headers],[Agu]],AktualKantor[#Headers],0))","v":{"v":40,"d":"Rp40.00"}},{"$f":"INDEX(RencanaKantor[],MATCH(INDEX(SelisihKantor[],ROW()-ROW(SelisihKantor[[#Headers],[Sep]]),1),INDEX(RencanaKantor[],,1),0),MATCH(SelisihKantor[[#Headers],[Sep]],RencanaKantor[#Headers],0))-INDEX(AktualKantor[],MATCH(INDEX(SelisihKantor[],ROW()-ROW(SelisihKantor[[#Headers],[Sep]]),1),INDEX(RencanaKantor[],,1),0),MATCH(SelisihKantor[[#Headers],[Sep]],AktualKantor[#Headers],0))","v":{"v":40,"d":"Rp40.00"}},{"$f":"INDEX(RencanaKantor[],MATCH(INDEX(SelisihKantor[],ROW()-ROW(SelisihKantor[[#Headers],[Okt]]),1),INDEX(RencanaKantor[],,1),0),MATCH(SelisihKantor[[#Headers],[Okt]],RencanaKantor[#Headers],0))-INDEX(AktualKantor[],MATCH(INDEX(SelisihKantor[],ROW()-ROW(SelisihKantor[[#Headers],[Okt]]),1),INDEX(RencanaKantor[],,1),0),MATCH(SelisihKantor[[#Headers],[Okt]],AktualKantor[#Headers],0))","v":{"v":40,"d":"Rp40.00"}},{"$f":"INDEX(RencanaKantor[],MATCH(INDEX(SelisihKantor[],ROW()-ROW(SelisihKantor[[#Headers],[Nov]]),1),INDEX(RencanaKantor[],,1),0),MATCH(SelisihKantor[[#Headers],[Nov]],RencanaKantor[#Headers],0))-INDEX(AktualKantor[],MATCH(INDEX(SelisihKantor[],ROW()-ROW(SelisihKantor[[#Headers],[Nov]]),1),INDEX(RencanaKantor[],,1),0),MATCH(SelisihKantor[[#Headers],[Nov]],AktualKantor[#Headers],0))","v":{"v":40,"d":"Rp40.00"}},{"$f":"INDEX(RencanaKantor[],MATCH(INDEX(SelisihKantor[],ROW()-ROW(SelisihKantor[[#Headers],[Des]]),1),INDEX(RencanaKantor[],,1),0),MATCH(SelisihKantor[[#Headers],[Des]],RencanaKantor[#Headers],0))-INDEX(AktualKantor[],MATCH(INDEX(SelisihKantor[],ROW()-ROW(SelisihKantor[[#Headers],[Des]]),1),INDEX(RencanaKantor[],,1),0),MATCH(SelisihKantor[[#Headers],[Des]],AktualKantor[#Headers],0))","v":{"v":40,"d":"Rp40.00"}},{"$f":"SUM(SelisihKantor[[#This Row],[Jan]:[Des]])","v":{"v":272,"d":"Rp272.00"}}]
[null,"Telepon",{"$f":"INDEX(RencanaKantor[],MATCH(INDEX(SelisihKantor[],ROW()-ROW(SelisihKantor[[#Headers],[Jan]]),1),INDEX(RencanaKantor[],,1),0),MATCH(SelisihKantor[[#Headers],[Jan]],RencanaKantor[#Headers],0))-INDEX(AktualKantor[],MATCH(INDEX(SelisihKantor[],ROW()-ROW(SelisihKantor[[#Headers],[Jan]]),1),INDEX(RencanaKantor[],,1),0),MATCH(SelisihKantor[[#Headers],[Jan]],AktualKantor[#Headers],0))","v":{"v":26,"d":"Rp26.00"}},{"$f":"INDEX(RencanaKantor[],MATCH(INDEX(SelisihKantor[],ROW()-ROW(SelisihKantor[[#Headers],[Feb]]),1),INDEX(RencanaKantor[],,1),0),MATCH(SelisihKantor[[#Headers],[Feb]],RencanaKantor[#Headers],0))-INDEX(AktualKantor[],MATCH(INDEX(SelisihKantor[],ROW()-ROW(SelisihKantor[[#Headers],[Feb]]),1),INDEX(RencanaKantor[],,1),0),MATCH(SelisihKantor[[#Headers],[Feb]],AktualKantor[#Headers],0))","v":{"v":15,"d":"Rp15.00"}},{"$f":"INDEX(RencanaKantor[],MATCH(INDEX(SelisihKantor[],ROW()-ROW(SelisihKantor[[#Headers],[Mar]]),1),INDEX(RencanaKantor[],,1),0),MATCH(SelisihKantor[[#Headers],[Mar]],RencanaKantor[#Headers],0))-INDEX(AktualKantor[],MATCH(INDEX(SelisihKantor[],ROW()-ROW(SelisihKantor[[#Headers],[Mar]]),1),INDEX(RencanaKantor[],,1),0),MATCH(SelisihKantor[[#Headers],[Mar]],AktualKantor[#Headers],0))","v":{"v":-15,"d":"-Rp15.00"}},{"$f":"INDEX(RencanaKantor[],MATCH(INDEX(SelisihKantor[],ROW()-ROW(SelisihKantor[[#Headers],[Apr]]),1),INDEX(RencanaKantor[],,1),0),MATCH(SelisihKantor[[#Headers],[Apr]],RencanaKantor[#Headers],0))-INDEX(AktualKantor[],MATCH(INDEX(SelisihKantor[],ROW()-ROW(SelisihKantor[[#Headers],[Apr]]),1),INDEX(RencanaKantor[],,1),0),MATCH(SelisihKantor[[#Headers],[Apr]],AktualKantor[#Headers],0))","v":{"v":5,"d":"Rp5.00"}},{"$f":"INDEX(RencanaKantor[],MATCH(INDEX(SelisihKantor[],ROW()-ROW(SelisihKantor[[#Headers],[Mei]]),1),INDEX(RencanaKantor[],,1),0),MATCH(SelisihKantor[[#Headers],[Mei]],RencanaKantor[#Headers],0))-INDEX(AktualKantor[],MATCH(INDEX(SelisihKantor[],ROW()-ROW(SelisihKantor[[#Headers],[Mei]]),1),INDEX(RencanaKantor[],,1),0),MATCH(SelisihKantor[[#Headers],[Mei]],AktualKantor[#Headers],0))","v":{"v":5,"d":"Rp5.00"}},{"$f":"INDEX(RencanaKantor[],MATCH(INDEX(SelisihKantor[],ROW()-ROW(SelisihKantor[[#Headers],[Jun]]),1),INDEX(RencanaKantor[],,1),0),MATCH(SelisihKantor[[#Headers],[Jun]],RencanaKantor[#Headers],0))-INDEX(AktualKantor[],MATCH(INDEX(SelisihKantor[],ROW()-ROW(SelisihKantor[[#Headers],[Jun]]),1),INDEX(RencanaKantor[],,1),0),MATCH(SelisihKantor[[#Headers],[Jun]],AktualKantor[#Headers],0))","v":{"v":30,"d":"Rp30.00"}},{"$f":"INDEX(RencanaKantor[],MATCH(INDEX(SelisihKantor[],ROW()-ROW(SelisihKantor[[#Headers],[Jul]]),1),INDEX(RencanaKantor[],,1),0),MATCH(SelisihKantor[[#Headers],[Jul]],RencanaKantor[#Headers],0))-INDEX(AktualKantor[],MATCH(INDEX(SelisihKantor[],ROW()-ROW(SelisihKantor[[#Headers],[Jul]]),1),INDEX(RencanaKantor[],,1),0),MATCH(SelisihKantor[[#Headers],[Jul]],AktualKantor[#Headers],0))","v":{"v":250,"d":"Rp250.00"}},{"$f":"INDEX(RencanaKantor[],MATCH(INDEX(SelisihKantor[],ROW()-ROW(SelisihKantor[[#Headers],[Agu]]),1),INDEX(RencanaKantor[],,1),0),MATCH(SelisihKantor[[#Headers],[Agu]],RencanaKantor[#Headers],0))-INDEX(AktualKantor[],MATCH(INDEX(SelisihKantor[],ROW()-ROW(SelisihKantor[[#Headers],[Agu]]),1),INDEX(RencanaKantor[],,1),0),MATCH(SelisihKantor[[#Headers],[Agu]],AktualKantor[#Headers],0))","v":{"v":250,"d":"Rp250.00"}},{"$f":"INDEX(RencanaKantor[],MATCH(INDEX(SelisihKantor[],ROW()-ROW(SelisihKantor[[#Headers],[Sep]]),1),INDEX(RencanaKantor[],,1),0),MATCH(SelisihKantor[[#Headers],[Sep]],RencanaKantor[#Headers],0))-INDEX(AktualKantor[],MATCH(INDEX(SelisihKantor[],ROW()-ROW(SelisihKantor[[#Headers],[Sep]]),1),INDEX(RencanaKantor[],,1),0),MATCH(SelisihKantor[[#Headers],[Sep]],AktualKantor[#Headers],0))","v":{"v":250,"d":"Rp250.00"}},{"$f":"INDEX(RencanaKantor[],MATCH(INDEX(SelisihKantor[],ROW()-ROW(SelisihKantor[[#Headers],[Okt]]),1),INDEX(RencanaKantor[],,1),0),MATCH(SelisihKantor[[#Headers],[Okt]],RencanaKantor[#Headers],0))-INDEX(AktualKantor[],MATCH(INDEX(SelisihKantor[],ROW()-ROW(SelisihKantor[[#Headers],[Okt]]),1),INDEX(RencanaKantor[],,1),0),MATCH(SelisihKantor[[#Headers],[Okt]],AktualKantor[#Headers],0))","v":{"v":250,"d":"Rp250.00"}},{"$f":"INDEX(RencanaKantor[],MATCH(INDEX(SelisihKantor[],ROW()-ROW(SelisihKantor[[#Headers],[Nov]]),1),INDEX(RencanaKantor[],,1),0),MATCH(SelisihKantor[[#Headers],[Nov]],RencanaKantor[#Headers],0))-INDEX(AktualKantor[],MATCH(INDEX(SelisihKantor[],ROW()-ROW(SelisihKantor[[#Headers],[Nov]]),1),INDEX(RencanaKantor[],,1),0),MATCH(SelisihKantor[[#Headers],[Nov]],AktualKantor[#Headers],0))","v":{"v":250,"d":"Rp250.00"}},{"$f":"INDEX(RencanaKantor[],MATCH(INDEX(SelisihKantor[],ROW()-ROW(SelisihKantor[[#Headers],[Des]]),1),INDEX(RencanaKantor[],,1),0),MATCH(SelisihKantor[[#Headers],[Des]],RencanaKantor[#Headers],0))-INDEX(AktualKantor[],MATCH(INDEX(SelisihKantor[],ROW()-ROW(SelisihKantor[[#Headers],[Des]]),1),INDEX(RencanaKantor[],,1),0),MATCH(SelisihKantor[[#Headers],[Des]],AktualKantor[#Headers],0))","v":{"v":250,"d":"Rp250.00"}},{"$f":"SUM(SelisihKantor[[#This Row],[Jan]:[Des]])","v":{"v":1566,"d":"Rp1,566.00"}}]
[null,"Akses internet",{"$f":"INDEX(RencanaKantor[],MATCH(INDEX(SelisihKantor[],ROW()-ROW(SelisihKantor[[#Headers],[Jan]]),1),INDEX(RencanaKantor[],,1),0),MATCH(SelisihKantor[[#Headers],[Jan]],RencanaKantor[#Headers],0))-INDEX(AktualKantor[],MATCH(INDEX(SelisihKantor[],ROW()-ROW(SelisihKantor[[#Headers],[Jan]]),1),INDEX(RencanaKantor[],,1),0),MATCH(SelisihKantor[[#Headers],[Jan]],AktualKantor[#Headers],0))","v":{"v":0,"d":"Rp0.00"}},{"$f":"INDEX(RencanaKantor[],MATCH(INDEX(SelisihKantor[],ROW()-ROW(SelisihKantor[[#Headers],[Feb]]),1),INDEX(RencanaKantor[],,1),0),MATCH(SelisihKantor[[#Headers],[Feb]],RencanaKantor[#Headers],0))-INDEX(AktualKantor[],MATCH(INDEX(SelisihKantor[],ROW()-ROW(SelisihKantor[[#Headers],[Feb]]),1),INDEX(RencanaKantor[],,1),0),MATCH(SelisihKantor[[#Headers],[Feb]],AktualKantor[#Headers],0))","v":{"v":0,"d":"Rp0.00"}},{"$f":"INDEX(RencanaKantor[],MATCH(INDEX(SelisihKantor[],ROW()-ROW(SelisihKantor[[#Headers],[Mar]]),1),INDEX(RencanaKantor[],,1),0),MATCH(SelisihKantor[[#Headers],[Mar]],RencanaKantor[#Headers],0))-INDEX(AktualKantor[],MATCH(INDEX(SelisihKantor[],ROW()-ROW(SelisihKantor[[#Headers],[Mar]]),1),INDEX(RencanaKantor[],,1),0),MATCH(SelisihKantor[[#Headers],[Mar]],AktualKantor[#Headers],0))","v":{"v":0,"d":"Rp0.00"}},{"$f":"INDEX(RencanaKantor[],MATCH(INDEX(SelisihKantor[],ROW()-ROW(SelisihKantor[[#Headers],[Apr]]),1),INDEX(RencanaKantor[],,1),0),MATCH(SelisihKantor[[#Headers],[Apr]],RencanaKantor[#Headers],0))-INDEX(AktualKantor[],MATCH(INDEX(SelisihKantor[],ROW()-ROW(SelisihKantor[[#Headers],[Apr]]),1),INDEX(RencanaKantor[],,1),0),MATCH(SelisihKantor[[#Headers],[Apr]],AktualKantor[#Headers],0))","v":{"v":0,"d":"Rp0.00"}},{"$f":"INDEX(RencanaKantor[],MATCH(INDEX(SelisihKantor[],ROW()-ROW(SelisihKantor[[#Headers],[Mei]]),1),INDEX(RencanaKantor[],,1),0),MATCH(SelisihKantor[[#Headers],[Mei]],RencanaKantor[#Headers],0))-INDEX(AktualKantor[],MATCH(INDEX(SelisihKantor[],ROW()-ROW(SelisihKantor[[#Headers],[Mei]]),1),INDEX(RencanaKantor[],,1),0),MATCH(SelisihKantor[[#Headers],[Mei]],AktualKantor[#Headers],0))","v":{"v":0,"d":"Rp0.00"}},{"$f":"INDEX(RencanaKantor[],MATCH(INDEX(SelisihKantor[],ROW()-ROW(SelisihKantor[[#Headers],[Jun]]),1),INDEX(RencanaKantor[],,1),0),MATCH(SelisihKantor[[#Headers],[Jun]],RencanaKantor[#Headers],0))-INDEX(AktualKantor[],MATCH(INDEX(SelisihKantor[],ROW()-ROW(SelisihKantor[[#Headers],[Jun]]),1),INDEX(RencanaKantor[],,1),0),MATCH(SelisihKantor[[#Headers],[Jun]],AktualKantor[#Headers],0))","v":{"v":0,"d":"Rp0.00"}},{"$f":"INDEX(RencanaKantor[],MATCH(INDEX(SelisihKantor[],ROW()-ROW(SelisihKantor[[#Headers],[Jul]]),1),INDEX(RencanaKantor[],,1),0),MATCH(SelisihKantor[[#Headers],[Jul]],RencanaKantor[#Headers],0))-INDEX(AktualKantor[],MATCH(INDEX(SelisihKantor[],ROW()-ROW(SelisihKantor[[#Headers],[Jul]]),1),INDEX(RencanaKantor[],,1),0),MATCH(SelisihKantor[[#Headers],[Jul]],AktualKantor[#Headers],0))","v":{"v":180,"d":"Rp180.00"}},{"$f":"INDEX(RencanaKantor[],MATCH(INDEX(SelisihKantor[],ROW()-ROW(SelisihKantor[[#Headers],[Agu]]),1),INDEX(RencanaKantor[],,1),0),MATCH(SelisihKantor[[#Headers],[Agu]],RencanaKantor[#Headers],0))-INDEX(AktualKantor[],MATCH(INDEX(SelisihKantor[],ROW()-ROW(SelisihKantor[[#Headers],[Agu]]),1),INDEX(RencanaKantor[],,1),0),MATCH(SelisihKantor[[#Headers],[Agu]],AktualKantor[#Headers],0))","v":{"v":180,"d":"Rp180.00"}},{"$f":"INDEX(RencanaKantor[],MATCH(INDEX(SelisihKantor[],ROW()-ROW(SelisihKantor[[#Headers],[Sep]]),1),INDEX(RencanaKantor[],,1),0),MATCH(SelisihKantor[[#Headers],[Sep]],RencanaKantor[#Headers],0))-INDEX(AktualKantor[],MATCH(INDEX(SelisihKantor[],ROW()-ROW(SelisihKantor[[#Headers],[Sep]]),1),INDEX(RencanaKantor[],,1),0),MATCH(SelisihKantor[[#Headers],[Sep]],AktualKantor[#Headers],0))","v":{"v":180,"d":"Rp180.00"}},{"$f":"INDEX(RencanaKantor[],MATCH(INDEX(SelisihKantor[],ROW()-ROW(SelisihKantor[[#Headers],[Okt]]),1),INDEX(RencanaKantor[],,1),0),MATCH(SelisihKantor[[#Headers],[Okt]],RencanaKantor[#Headers],0))-INDEX(AktualKantor[],MATCH(INDEX(SelisihKantor[],ROW()-ROW(SelisihKantor[[#Headers],[Okt]]),1),INDEX(RencanaKantor[],,1),0),MATCH(SelisihKantor[[#Headers],[Okt]],AktualKantor[#Headers],0))","v":{"v":180,"d":"Rp180.00"}},{"$f":"INDEX(RencanaKantor[],MATCH(INDEX(SelisihKantor[],ROW()-ROW(SelisihKantor[[#Headers],[Nov]]),1),INDEX(RencanaKantor[],,1),0),MATCH(SelisihKantor[[#Headers],[Nov]],RencanaKantor[#Headers],0))-INDEX(AktualKantor[],MATCH(INDEX(SelisihKantor[],ROW()-ROW(SelisihKantor[[#Headers],[Nov]]),1),INDEX(RencanaKantor[],,1),0),MATCH(SelisihKantor[[#Headers],[Nov]],AktualKantor[#Headers],0))","v":{"v":180,"d":"Rp180.00"}},{"$f":"INDEX(RencanaKantor[],MATCH(INDEX(SelisihKantor[],ROW()-ROW(SelisihKantor[[#Headers],[Des]]),1),INDEX(RencanaKantor[],,1),0),MATCH(SelisihKantor[[#Headers],[Des]],RencanaKantor[#Headers],0))-INDEX(AktualKantor[],MATCH(INDEX(SelisihKantor[],ROW()-ROW(SelisihKantor[[#Headers],[Des]]),1),INDEX(RencanaKantor[],,1),0),MATCH(SelisihKantor[[#Headers],[Des]],AktualKantor[#Headers],0))","v":{"v":180,"d":"Rp180.00"}},{"$f":"SUM(SelisihKantor[[#This Row],[Jan]:[Des]])","v":{"v":1080,"d":"Rp1,080.00"}}]
[null,"Perlengkapan kantor",{"$f":"INDEX(RencanaKantor[],MATCH(INDEX(SelisihKantor[],ROW()-ROW(SelisihKantor[[#Headers],[Jan]]),1),INDEX(RencanaKantor[],,1),0),MATCH(SelisihKantor[[#Headers],[Jan]],RencanaKantor[#Headers],0))-INDEX(AktualKantor[],MATCH(INDEX(SelisihKantor[],ROW()-ROW(SelisihKantor[[#Headers],[Jan]]),1),INDEX(RencanaKantor[],,1),0),MATCH(SelisihKantor[[#Headers],[Jan]],AktualKantor[#Headers],0))","v":{"v":-56,"d":"-Rp56.00"}},{"$f":"INDEX(RencanaKantor[],MATCH(INDEX(SelisihKantor[],ROW()-ROW(SelisihKantor[[#Headers],[Feb]]),1),INDEX(RencanaKantor[],,1),0),MATCH(SelisihKantor[[#Headers],[Feb]],RencanaKantor[#Headers],0))-INDEX(AktualKantor[],MATCH(INDEX(SelisihKantor[],ROW()-ROW(SelisihKantor[[#Headers],[Feb]]),1),INDEX(RencanaKantor[],,1),0),MATCH(SelisihKantor[[#Headers],[Feb]],AktualKantor[#Headers],0))","v":{"v":58,"d":"Rp58.00"}},{"$f":"INDEX(RencanaKantor[],MATCH(INDEX(SelisihKantor[],ROW()-ROW(SelisihKantor[[#Headers],[Mar]]),1),INDEX(RencanaKantor[],,1),0),MATCH(SelisihKantor[[#Headers],[Mar]],RencanaKantor[#Headers],0))-INDEX(AktualKantor[],MATCH(INDEX(SelisihKantor[],ROW()-ROW(SelisihKantor[[#Headers],[Mar]]),1),INDEX(RencanaKantor[],,1),0),MATCH(SelisihKantor[[#Headers],[Mar]],AktualKantor[#Headers],0))","v":{"v":40,"d":"Rp40.00"}},{"$f":"INDEX(RencanaKantor[],MATCH(INDEX(SelisihKantor[],ROW()-ROW(SelisihKantor[[#Headers],[Apr]]),1),INDEX(RencanaKantor[],,1),0),MATCH(SelisihKantor[[#Headers],[Apr]],RencanaKantor[#Headers],0))-INDEX(AktualKantor[],MATCH(INDEX(SelisihKantor[],ROW()-ROW(SelisihKantor[[#Headers],[Apr]]),1),INDEX(RencanaKantor[],,1),0),MATCH(SelisihKantor[[#Headers],[Apr]],AktualKantor[#Headers],0))","v":{"v":-21,"d":"-Rp21.00"}},{"$f":"INDEX(RencanaKantor[],MATCH(INDEX(SelisihKantor[],ROW()-ROW(SelisihKantor[[#Headers],[Mei]]),1),INDEX(RencanaKantor[],,1),0),MATCH(SelisihKantor[[#Headers],[Mei]],RencanaKantor[#Headers],0))-INDEX(AktualKantor[],MATCH(INDEX(SelisihKantor[],ROW()-ROW(SelisihKantor[[#Headers],[Mei]]),1),INDEX(RencanaKantor[],,1),0),MATCH(SelisihKantor[[#Headers],[Mei]],AktualKantor[#Headers],0))","v":{"v":-56,"d":"-Rp56.00"}},{"$f":"INDEX(RencanaKantor[],MATCH(INDEX(SelisihKantor[],ROW()-ROW(SelisihKantor[[#Headers],[Jun]]),1),INDEX(RencanaKantor[],,1),0),MATCH(SelisihKantor[[#Headers],[Jun]],RencanaKantor[#Headers],0))-INDEX(AktualKantor[],MATCH(INDEX(SelisihKantor[],ROW()-ROW(SelisihKantor[[#Headers],[Jun]]),1),INDEX(RencanaKantor[],,1),0),MATCH(SelisihKantor[[#Headers],[Jun]],AktualKantor[#Headers],0))","v":{"v":-40,"d":"-Rp40.00"}},{"$f":"INDEX(RencanaKantor[],MATCH(INDEX(SelisihKantor[],ROW()-ROW(SelisihKantor[[#Headers],[Jul]]),1),INDEX(RencanaKantor[],,1),0),MATCH(SelisihKantor[[#Headers],[Jul]],RencanaKantor[#Headers],0))-INDEX(AktualKantor[],MATCH(INDEX(SelisihKantor[],ROW()-ROW(SelisihKantor[[#Headers],[Jul]]),1),INDEX(RencanaKantor[],,1),0),MATCH(SelisihKantor[[#Headers],[Jul]],AktualKantor[#Headers],0))","v":{"v":200,"d":"Rp200.00"}},{"$f":"INDEX(RencanaKantor[],MATCH(INDEX(SelisihKantor[],ROW()-ROW(SelisihKantor[[#Headers],[Agu]]),1),INDEX(RencanaKantor[],,1),0),MATCH(SelisihKantor[[#Headers],[Agu]],RencanaKantor[#Headers],0))-INDEX(AktualKantor[],MATCH(INDEX(SelisihKantor[],ROW()-ROW(SelisihKantor[[#Headers],[Agu]]),1),INDEX(RencanaKantor[],,1),0),MATCH(SelisihKantor[[#Headers],[Agu]],AktualKantor[#Headers],0))","v":{"v":200,"d":"Rp200.00"}},{"$f":"INDEX(RencanaKantor[],MATCH(INDEX(SelisihKantor[],ROW()-ROW(SelisihKantor[[#Headers],[Sep]]),1),INDEX(RencanaKantor[],,1),0),MATCH(SelisihKantor[[#Headers],[Sep]],RencanaKantor[#Headers],0))-INDEX(AktualKantor[],MATCH(INDEX(SelisihKantor[],ROW()-ROW(SelisihKantor[[#Headers],[Sep]]),1),INDEX(RencanaKantor[],,1),0),MATCH(SelisihKantor[[#Headers],[Sep]],AktualKantor[#Headers],0))","v":{"v":200,"d":"Rp200.00"}},{"$f":"INDEX(RencanaKantor[],MATCH(INDEX(SelisihKantor[],ROW()-ROW(SelisihKantor[[#Headers],[Okt]]),1),INDEX(RencanaKantor[],,1),0),MATCH(SelisihKantor[[#Headers],[Okt]],RencanaKantor[#Headers],0))-INDEX(AktualKantor[],MATCH(INDEX(SelisihKantor[],ROW()-ROW(SelisihKantor[[#Headers],[Okt]]),1),INDEX(RencanaKantor[],,1),0),MATCH(SelisihKantor[[#Headers],[Okt]],AktualKantor[#Headers],0))","v":{"v":200,"d":"Rp200.00"}},{"$f":"INDEX(RencanaKantor[],MATCH(INDEX(SelisihKantor[],ROW()-ROW(SelisihKantor[[#Headers],[Nov]]),1),INDEX(RencanaKantor[],,1),0),MATCH(SelisihKantor[[#Headers],[Nov]],RencanaKantor[#Headers],0))-INDEX(AktualKantor[],MATCH(INDEX(SelisihKantor[],ROW()-ROW(SelisihKantor[[#Headers],[Nov]]),1),INDEX(RencanaKantor[],,1),0),MATCH(SelisihKantor[[#Headers],[Nov]],AktualKantor[#Headers],0))","v":{"v":200,"d":"Rp200.00"}},{"$f":"INDEX(RencanaKantor[],MATCH(INDEX(SelisihKantor[],ROW()-ROW(SelisihKantor[[#Headers],[Des]]),1),INDEX(RencanaKantor[],,1),0),MATCH(SelisihKantor[[#Headers],[Des]],RencanaKantor[#Headers],0))-INDEX(AktualKantor[],MATCH(INDEX(SelisihKantor[],ROW()-ROW(SelisihKantor[[#Headers],[Des]]),1),INDEX(RencanaKantor[],,1),0),MATCH(SelisihKantor[[#Headers],[Des]],AktualKantor[#Headers],0))","v":{"v":200,"d":"Rp200.00"}},{"$f":"SUM(SelisihKantor[[#This Row],[Jan]:[Des]])","v":{"v":1125,"d":"Rp1,125.00"}}]
[null,"Keamanan",{"$f":"INDEX(RencanaKantor[],MATCH(INDEX(SelisihKantor[],ROW()-ROW(SelisihKantor[[#Headers],[Jan]]),1),INDEX(RencanaKantor[],,1),0),MATCH(SelisihKantor[[#Headers],[Jan]],RencanaKantor[#Headers],0))-INDEX(AktualKantor[],MATCH(INDEX(SelisihKantor[],ROW()-ROW(SelisihKantor[[#Headers],[Jan]]),1),INDEX(RencanaKantor[],,1),0),MATCH(SelisihKantor[[#Headers],[Jan]],AktualKantor[#Headers],0))","v":{"v":0,"d":"Rp0.00"}},{"$f":"INDEX(RencanaKantor[],MATCH(INDEX(SelisihKantor[],ROW()-ROW(SelisihKantor[[#Headers],[Feb]]),1),INDEX(RencanaKantor[],,1),0),MATCH(SelisihKantor[[#Headers],[Feb]],RencanaKantor[#Headers],0))-INDEX(AktualKantor[],MATCH(INDEX(SelisihKantor[],ROW()-ROW(SelisihKantor[[#Headers],[Feb]]),1),INDEX(RencanaKantor[],,1),0),MATCH(SelisihKantor[[#Headers],[Feb]],AktualKantor[#Headers],0))","v":{"v":0,"d":"Rp0.00"}},{"$f":"INDEX(RencanaKantor[],MATCH(INDEX(SelisihKantor[],ROW()-ROW(SelisihKantor[[#Headers],[Mar]]),1),INDEX(RencanaKantor[],,1),0),MATCH(SelisihKantor[[#Headers],[Mar]],RencanaKantor[#Headers],0))-INDEX(AktualKantor[],MATCH(INDEX(SelisihKantor[],ROW()-ROW(SelisihKantor[[#Headers],[Mar]]),1),INDEX(RencanaKantor[],,1),0),MATCH(SelisihKantor[[#Headers],[Mar]],AktualKantor[#Headers],0))","v":{"v":0,"d":"Rp0.00"}},{"$f":"INDEX(RencanaKantor[],MATCH(INDEX(SelisihKantor[],ROW()-ROW(SelisihKantor[[#Headers],[Apr]]),1),INDEX(RencanaKantor[],,1),0),MATCH(SelisihKantor[[#Headers],[Apr]],RencanaKantor[#Headers],0))-INDEX(AktualKantor[],MATCH(INDEX(SelisihKantor[],ROW()-ROW(SelisihKantor[[#Headers],[Apr]]),1),INDEX(RencanaKantor[],,1),0),MATCH(SelisihKantor[[#Headers],[Apr]],AktualKantor[#Headers],0))","v":{"v":0,"d":"Rp0.00"}},{"$f":"INDEX(RencanaKantor[],MATCH(INDEX(SelisihKantor[],ROW()-ROW(SelisihKantor[[#Headers],[Mei]]),1),INDEX(RencanaKantor[],,1),0),MATCH(SelisihKantor[[#Headers],[Mei]],RencanaKantor[#Headers],0))-INDEX(AktualKantor[],MATCH(INDEX(SelisihKantor[],ROW()-ROW(SelisihKantor[[#Headers],[Mei]]),1),INDEX(RencanaKantor[],,1),0),MATCH(SelisihKantor[[#Headers],[Mei]],AktualKantor[#Headers],0))","v":{"v":0,"d":"Rp0.00"}},{"$f":"INDEX(RencanaKantor[],MATCH(INDEX(SelisihKantor[],ROW()-ROW(SelisihKantor[[#Headers],[Jun]]),1),INDEX(RencanaKantor[],,1),0),MATCH(SelisihKantor[[#Headers],[Jun]],RencanaKantor[#Headers],0))-INDEX(AktualKantor[],MATCH(INDEX(SelisihKantor[],ROW()-ROW(SelisihKantor[[#Headers],[Jun]]),1),INDEX(RencanaKantor[],,1),0),MATCH(SelisihKantor[[#Headers],[Jun]],AktualKantor[#Headers],0))","v":{"v":0,"d":"Rp0.00"}},{"$f":"INDEX(RencanaKantor[],MATCH(INDEX(SelisihKantor[],ROW()-ROW(SelisihKantor[[#Headers],[Jul]]),1),INDEX(RencanaKantor[],,1),0),MATCH(SelisihKantor[[#Headers],[Jul]],RencanaKantor[#Headers],0))-INDEX(AktualKantor[],MATCH(INDEX(SelisihKantor[],ROW()-ROW(SelisihKantor[[#Headers],[Jul]]),1),INDEX(RencanaKantor[],,1),0),MATCH(SelisihKantor[[#Headers],[Jul]],AktualKantor[#Headers],0))","v":{"v":600,"d":"Rp600.00"}},{"$f":"INDEX(RencanaKantor[],MATCH(INDEX(SelisihKantor[],ROW()-ROW(SelisihKantor[[#Headers],[Agu]]),1),INDEX(RencanaKantor[],,1),0),MATCH(SelisihKantor[[#Headers],[Agu]],RencanaKantor[#Headers],0))-INDEX(AktualKantor[],MATCH(INDEX(SelisihKantor[],ROW()-ROW(SelisihKantor[[#Headers],[Agu]]),1),INDEX(RencanaKantor[],,1),0),MATCH(SelisihKantor[[#Headers],[Agu]],AktualKantor[#Headers],0))","v":{"v":600,"d":"Rp600.00"}},{"$f":"INDEX(RencanaKantor[],MATCH(INDEX(SelisihKantor[],ROW()-ROW(SelisihKantor[[#Headers],[Sep]]),1),INDEX(RencanaKantor[],,1),0),MATCH(SelisihKantor[[#Headers],[Sep]],RencanaKantor[#Headers],0))-INDEX(AktualKantor[],MATCH(INDEX(SelisihKantor[],ROW()-ROW(SelisihKantor[[#Headers],[Sep]]),1),INDEX(RencanaKantor[],,1),0),MATCH(SelisihKantor[[#Headers],[Sep]],AktualKantor[#Headers],0))","v":{"v":600,"d":"Rp600.00"}},{"$f":"INDEX(RencanaKantor[],MATCH(INDEX(SelisihKantor[],ROW()-ROW(SelisihKantor[[#Headers],[Okt]]),1),INDEX(RencanaKantor[],,1),0),MATCH(SelisihKantor[[#Headers],[Okt]],RencanaKantor[#Headers],0))-INDEX(AktualKantor[],MATCH(INDEX(SelisihKantor[],ROW()-ROW(SelisihKantor[[#Headers],[Okt]]),1),INDEX(RencanaKantor[],,1),0),MATCH(SelisihKantor[[#Headers],[Okt]],AktualKantor[#Headers],0))","v":{"v":600,"d":"Rp600.00"}},{"$f":"INDEX(RencanaKantor[],MATCH(INDEX(SelisihKantor[],ROW()-ROW(SelisihKantor[[#Headers],[Nov]]),1),INDEX(RencanaKantor[],,1),0),MATCH(SelisihKantor[[#Headers],[Nov]],RencanaKantor[#Headers],0))-INDEX(AktualKantor[],MATCH(INDEX(SelisihKantor[],ROW()-ROW(SelisihKantor[[#Headers],[Nov]]),1),INDEX(RencanaKantor[],,1),0),MATCH(SelisihKantor[[#Headers],[Nov]],AktualKantor[#Headers],0))","v":{"v":600,"d":"Rp600.00"}},{"$f":"INDEX(RencanaKantor[],MATCH(INDEX(SelisihKantor[],ROW()-ROW(SelisihKantor[[#Headers],[Des]]),1),INDEX(RencanaKantor[],,1),0),MATCH(SelisihKantor[[#Headers],[Des]],RencanaKantor[#Headers],0))-INDEX(AktualKantor[],MATCH(INDEX(SelisihKantor[],ROW()-ROW(SelisihKantor[[#Headers],[Des]]),1),INDEX(RencanaKantor[],,1),0),MATCH(SelisihKantor[[#Headers],[Des]],AktualKantor[#Headers],0))","v":{"v":600,"d":"Rp600.00"}},{"$f":"SUM(SelisihKantor[[#This Row],[Jan]:[Des]])","v":{"v":3600,"d":"Rp3,600.00"}}]
[null,"Subtotal",{"$f":"SUBTOTAL(109,SelisihKantor[Jan])","v":{"v":-17,"d":"-Rp17.00"}},{"$f":"SUBTOTAL(109,SelisihKantor[Feb])","v":{"v":72,"d":"Rp72.00"}},{"$f":"SUBTOTAL(109,SelisihKantor[Mar])","v":{"v":78,"d":"Rp78.00"}},{"$f":"SUBTOTAL(109,SelisihKantor[Apr])","v":{"v":-141,"d":"-Rp141.00"}},{"$f":"SUBTOTAL(109,SelisihKantor[Mei])","v":{"v":-38,"d":"-Rp38.00"}},{"$f":"SUBTOTAL(109,SelisihKantor[Jun])","v":{"v":16,"d":"Rp16.00"}},{"$f":"SUBTOTAL(109,SelisihKantor[Jul])","v":{"v":11470,"d":"Rp11,470.00"}},{"$f":"SUBTOTAL(109,SelisihKantor[Agu])","v":{"v":11470,"d":"Rp11,470.00"}},{"$f":"SUBTOTAL(109,SelisihKantor[Sep])","v":{"v":11470,"d":"Rp11,470.00"}},{"$f":"SUBTOTAL(109,SelisihKantor[Okt])","v":{"v":11470,"d":"Rp11,470.00"}},{"$f":"SUBTOTAL(109,SelisihKantor[Nov])","v":{"v":11770,"d":"Rp11,770.00"}},{"$f":"SUBTOTAL(109,SelisihKantor[Des])","v":{"v":11770,"d":"Rp11,770.00"}},{"$f":"SUBTOTAL(109,SelisihKantor[TAHUN])","v":{"v":69390,"d":"Rp69,390.00"}}]
[]
["Selisih dalam Biaya Pemasaran akan dihitung secara otomatis dalam tabel Selisih Pemasaran mulai dari sel di sebelah kanan. Instruksi berikutnya berada dalam sel A30.","Biaya Pemasaran","Jan","Feb","Mar","Apr","Mei","Jun","Jul","Agu","Sep","Okt","Nov","Des","TAHUN"]
[null,"Hosting situs web",{"$f":"INDEX(RencanaPemasaran[],MATCH(INDEX(SelisihPemasaran[],ROW()-ROW(SelisihPemasaran[[#Headers],[Jan]]),1),INDEX(RencanaPemasaran[],,1),0),MATCH(SelisihPemasaran[[#Headers],[Jan]],RencanaPemasaran[#Headers],0))-INDEX(AktualPemasaran[],MATCH(INDEX(SelisihPemasaran[],ROW()-ROW(SelisihPemasaran[[#Headers],[Jan]]),1),INDEX(RencanaPemasaran[],,1),0),MATCH(SelisihPemasaran[[#Headers],[Jan]],AktualPemasaran[#Headers],0))","v":{"v":0,"d":"Rp0.00"}},{"$f":"INDEX(RencanaPemasaran[],MATCH(INDEX(SelisihPemasaran[],ROW()-ROW(SelisihPemasaran[[#Headers],[Feb]]),1),INDEX(RencanaPemasaran[],,1),0),MATCH(SelisihPemasaran[[#Headers],[Feb]],RencanaPemasaran[#Headers],0))-INDEX(AktualPemasaran[],MATCH(INDEX(SelisihPemasaran[],ROW()-ROW(SelisihPemasaran[[#Headers],[Feb]]),1),INDEX(RencanaPemasaran[],,1),0),MATCH(SelisihPemasaran[[#Headers],[Feb]],AktualPemasaran[#Headers],0))","v":{"v":0,"d":"Rp0.00"}},{"$f":"INDEX(RencanaPemasaran[],MATCH(INDEX(SelisihPemasaran[],ROW()-ROW(SelisihPemasaran[[#Headers],[Mar]]),1),INDEX(RencanaPemasaran[],,1),0),MATCH(SelisihPemasaran[[#Headers],[Mar]],RencanaPemasaran[#Headers],0))-INDEX(AktualPemasaran[],MATCH(INDEX(SelisihPemasaran[],ROW()-ROW(SelisihPemasaran[[#Headers],[Mar]]),1),INDEX(RencanaPemasaran[],,1),0),MATCH(SelisihPemasaran[[#Headers],[Mar]],AktualPemasaran[#Headers],0))","v":{"v":0,"d":"Rp0.00"}},{"$f":"INDEX(RencanaPemasaran[],MATCH(INDEX(SelisihPemasaran[],ROW()-ROW(SelisihPemasaran[[#Headers],[Apr]]),1),INDEX(RencanaPemasaran[],,1),0),MATCH(SelisihPemasaran[[#Headers],[Apr]],RencanaPemasaran[#Headers],0))-INDEX(AktualPemasaran[],MATCH(INDEX(SelisihPemasaran[],ROW()-ROW(SelisihPemasaran[[#Headers],[Apr]]),1),INDEX(RencanaPemasaran[],,1),0),MATCH(SelisihPemasaran[[#Headers],[Apr]],AktualPemasaran[#Headers],0))","v":{"v":0,"d":"Rp0.00"}},{"$f":"INDEX(RencanaPemasaran[],MATCH(INDEX(SelisihPemasaran[],ROW()-ROW(SelisihPemasaran[[#Headers],[Mei]]),1),INDEX(RencanaPemasaran[],,1),0),MATCH(SelisihPemasaran[[#Headers],[Mei]],RencanaPemasaran[#Headers],0))-INDEX(AktualPemasaran[],MATCH(INDEX(SelisihPemasaran[],ROW()-ROW(SelisihPemasaran[[#Headers],[Mei]]),1),INDEX(RencanaPemasaran[],,1),0),MATCH(SelisihPemasaran[[#Headers],[Mei]],AktualPemasaran[#Headers],0))","v":{"v":0,"d":"Rp0.00"}},{"$f":"INDEX(RencanaPemasaran[],MATCH(INDEX(SelisihPemasaran[],ROW()-ROW(SelisihPemasaran[[#Headers],[Jun]]),1),INDEX(RencanaPemasaran[],,1),0),MATCH(SelisihPemasaran[[#Headers],[Jun]],RencanaPemasaran[#Headers],0))-INDEX(AktualPemasaran[],MATCH(INDEX(SelisihPemasaran[],ROW()-ROW(SelisihPemasaran[[#Headers],[Jun]]),1),INDEX(RencanaPemasaran[],,1),0),MATCH(SelisihPemasaran[[#Headers],[Jun]],AktualPemasaran[#Headers],0))","v":{"v":0,"d":"Rp0.00"}},{"$f":"INDEX(RencanaPemasaran[],MATCH(INDEX(SelisihPemasaran[],ROW()-ROW(SelisihPemasaran[[#Headers],[Jul]]),1),INDEX(RencanaPemasaran[],,1),0),MATCH(SelisihPemasaran[[#Headers],[Jul]],RencanaPemasaran[#Headers],0))-INDEX(AktualPemasaran[],MATCH(INDEX(SelisihPemasaran[],ROW()-ROW(SelisihPemasaran[[#Headers],[Jul]]),1),INDEX(RencanaPemasaran[],,1),0),MATCH(SelisihPemasaran[[#Headers],[Jul]],AktualPemasaran[#Headers],0))","v":{"v":500,"d":"Rp500.00"}},{"$f":"INDEX(RencanaPemasaran[],MATCH(INDEX(SelisihPemasaran[],ROW()-ROW(SelisihPemasaran[[#Headers],[Agu]]),1),INDEX(RencanaPemasaran[],,1),0),MATCH(SelisihPemasaran[[#Headers],[Agu]],RencanaPemasaran[#Headers],0))-INDEX(AktualPemasaran[],MATCH(INDEX(SelisihPemasaran[],ROW()-ROW(SelisihPemasaran[[#Headers],[Agu]]),1),INDEX(RencanaPemasaran[],,1),0),MATCH(SelisihPemasaran[[#Headers],[Agu]],AktualPemasaran[#Headers],0))","v":{"v":500,"d":"Rp500.00"}},{"$f":"INDEX(RencanaPemasaran[],MATCH(INDEX(SelisihPemasaran[],ROW()-ROW(SelisihPemasaran[[#Headers],[Sep]]),1),INDEX(RencanaPemasaran[],,1),0),MATCH(SelisihPemasaran[[#Headers],[Sep]],RencanaPemasaran[#Headers],0))-INDEX(AktualPemasaran[],MATCH(INDEX(SelisihPemasaran[],ROW()-ROW(SelisihPemasaran[[#Headers],[Sep]]),1),INDEX(RencanaPemasaran[],,1),0),MATCH(SelisihPemasaran[[#Headers],[Sep]],AktualPemasaran[#Headers],0))","v":{"v":500,"d":"Rp500.00"}},{"$f":"INDEX(RencanaPemasaran[],MATCH(INDEX(SelisihPemasaran[],ROW()-ROW(SelisihPemasaran[[#Headers],[Okt]]),1),INDEX(RencanaPemasaran[],,1),0),MATCH(SelisihPemasaran[[#Headers],[Okt]],RencanaPemasaran[#Headers],0))-INDEX(AktualPemasaran[],MATCH(INDEX(SelisihPemasaran[],ROW()-ROW(SelisihPemasaran[[#Headers],[Okt]]),1),INDEX(RencanaPemasaran[],,1),0),MATCH(SelisihPemasaran[[#Headers],[Okt]],AktualPemasaran[#Headers],0))","v":{"v":500,"d":"Rp500.00"}},{"$f":"INDEX(RencanaPemasaran[],MATCH(INDEX(SelisihPemasaran[],ROW()-ROW(SelisihPemasaran[[#Headers],[Nov]]),1),INDEX(RencanaPemasaran[],,1),0),MATCH(SelisihPemasaran[[#Headers],[Nov]],RencanaPemasaran[#Headers],0))-INDEX(AktualPemasaran[],MATCH(INDEX(SelisihPemasaran[],ROW()-ROW(SelisihPemasaran[[#Headers],[Nov]]),1),INDEX(RencanaPemasaran[],,1),0),MATCH(SelisihPemasaran[[#Headers],[Nov]],AktualPemasaran[#Headers],0))","v":{"v":500,"d":"Rp500.00"}},{"$f":"INDEX(RencanaPemasaran[],MATCH(INDEX(SelisihPemasaran[],ROW()-ROW(SelisihPemasaran[[#Headers],[Des]]),1),INDEX(RencanaPemasaran[],,1),0),MATCH(SelisihPemasaran[[#Headers],[Des]],RencanaPemasaran[#Headers],0))-INDEX(AktualPemasaran[],MATCH(INDEX(SelisihPemasaran[],ROW()-ROW(SelisihPemasaran[[#Headers],[Des]]),1),INDEX(RencanaPemasaran[],,1),0),MATCH(SelisihPemasaran[[#Headers],[Des]],AktualPemasaran[#Headers],0))","v":{"v":500,"d":"Rp500.00"}},{"$f":"SUM(SelisihPemasaran[[#This Row],[Jan]:[Des]])","v":{"v":3000,"d":"Rp3,000.00"}}]
[null,"Pembaruan situs web",{"$f":"INDEX(RencanaPemasaran[],MATCH(INDEX(SelisihPemasaran[],ROW()-ROW(SelisihPemasaran[[#Headers],[Jan]]),1),INDEX(RencanaPemasaran[],,1),0),MATCH(SelisihPemasaran[[#Headers],[Jan]],RencanaPemasaran[#Headers],0))-INDEX(AktualPemasaran[],MATCH(INDEX(SelisihPemasaran[],ROW()-ROW(SelisihPemasaran[[#Headers],[Jan]]),1),INDEX(RencanaPemasaran[],,1),0),MATCH(SelisihPemasaran[[#Headers],[Jan]],AktualPemasaran[#Headers],0))","v":{"v":0,"d":"Rp0.00"}},{"$f":"INDEX(RencanaPemasaran[],MATCH(INDEX(SelisihPemasaran[],ROW()-ROW(SelisihPemasaran[[#Headers],[Feb]]),1),INDEX(RencanaPemasaran[],,1),0),MATCH(SelisihPemasaran[[#Headers],[Feb]],RencanaPemasaran[#Headers],0))-INDEX(AktualPemasaran[],MATCH(INDEX(SelisihPemasaran[],ROW()-ROW(SelisihPemasaran[[#Headers],[Feb]]),1),INDEX(RencanaPemasaran[],,1),0),MATCH(SelisihPemasaran[[#Headers],[Feb]],AktualPemasaran[#Headers],0))","v":{"v":0,"d":"Rp0.00"}},{"$f":"INDEX(RencanaPemasaran[],MATCH(INDEX(SelisihPemasaran[],ROW()-ROW(SelisihPemasaran[[#Headers],[Mar]]),1),INDEX(RencanaPemasaran[],,1),0),MATCH(SelisihPemasaran[[#Headers],[Mar]],RencanaPemasaran[#Headers],0))-INDEX(AktualPemasaran[],MATCH(INDEX(SelisihPemasaran[],ROW()-ROW(SelisihPemasaran[[#Headers],[Mar]]),1),INDEX(RencanaPemasaran[],,1),0),MATCH(SelisihPemasaran[[#Headers],[Mar]],AktualPemasaran[#Headers],0))","v":{"v":0,"d":"Rp0.00"}},{"$f":"INDEX(RencanaPemasaran[],MATCH(INDEX(SelisihPemasaran[],ROW()-ROW(SelisihPemasaran[[#Headers],[Apr]]),1),INDEX(RencanaPemasaran[],,1),0),MATCH(SelisihPemasaran[[#Headers],[Apr]],RencanaPemasaran[#Headers],0))-INDEX(AktualPemasaran[],MATCH(INDEX(SelisihPemasaran[],ROW()-ROW(SelisihPemasaran[[#Headers],[Apr]]),1),INDEX(RencanaPemasaran[],,1),0),MATCH(SelisihPemasaran[[#Headers],[Apr]],AktualPemasaran[#Headers],0))","v":{"v":0,"d":"Rp0.00"}},{"$f":"INDEX(RencanaPemasaran[],MATCH(INDEX(SelisihPemasaran[],ROW()-ROW(SelisihPemasaran[[#Headers],[Mei]]),1),INDEX(RencanaPemasaran[],,1),0),MATCH(SelisihPemasaran[[#Headers],[Mei]],RencanaPemasaran[#Headers],0))-INDEX(AktualPemasaran[],MATCH(INDEX(SelisihPemasaran[],ROW()-ROW(SelisihPemasaran[[#Headers],[Mei]]),1),INDEX(RencanaPemasaran[],,1),0),MATCH(SelisihPemasaran[[#Headers],[Mei]],AktualPemasaran[#Headers],0))","v":{"v":0,"d":"Rp0.00"}},{"$f":"INDEX(RencanaPemasaran[],MATCH(INDEX(SelisihPemasaran[],ROW()-ROW(SelisihPemasaran[[#Headers],[Jun]]),1),INDEX(RencanaPemasaran[],,1),0),MATCH(SelisihPemasaran[[#Headers],[Jun]],RencanaPemasaran[#Headers],0))-INDEX(AktualPemasaran[],MATCH(INDEX(SelisihPemasaran[],ROW()-ROW(SelisihPemasaran[[#Headers],[Jun]]),1),INDEX(RencanaPemasaran[],,1),0),MATCH(SelisihPemasaran[[#Headers],[Jun]],AktualPemasaran[#Headers],0))","v":{"v":-500,"d":"-Rp500.00"}},{"$f":"INDEX(RencanaPemasaran[],MATCH(INDEX(SelisihPemasaran[],ROW()-ROW(SelisihPemasaran[[#Headers],[Jul]]),1),INDEX(RencanaPemasaran[],,1),0),MATCH(SelisihPemasaran[[#Headers],[Jul]],RencanaPemasaran[#Headers],0))-INDEX(AktualPemasaran[],MATCH(INDEX(SelisihPemasaran[],ROW()-ROW(SelisihPemasaran[[#Headers],[Jul]]),1),INDEX(RencanaPemasaran[],,1),0),MATCH(SelisihPemasaran[[#Headers],[Jul]],AktualPemasaran[#Headers],0))","v":{"v":200,"d":"Rp200.00"}},{"$f":"INDEX(RencanaPemasaran[],MATCH(INDEX(SelisihPemasaran[],ROW()-ROW(SelisihPemasaran[[#Headers],[Agu]]),1),INDEX(RencanaPemasaran[],,1),0),MATCH(SelisihPemasaran[[#Headers],[Agu]],RencanaPemasaran[#Headers],0))-INDEX(AktualPemasaran[],MATCH(INDEX(SelisihPemasaran[],ROW()-ROW(SelisihPemasaran[[#Headers],[Agu]]),1),INDEX(RencanaPemasaran[],,1),0),MATCH(SelisihPemasaran[[#Headers],[Agu]],AktualPemasaran[#Headers],0))","v":{"v":200,"d":"Rp200.00"}},{"$f":"INDEX(RencanaPemasaran[],MATCH(INDEX(SelisihPemasaran[],ROW()-ROW(SelisihPemasaran[[#Headers],[Sep]]),1),INDEX(RencanaPemasaran[],,1),0),MATCH(SelisihPemasaran[[#Headers],[Sep]],RencanaPemasaran[#Headers],0))-INDEX(AktualPemasaran[],MATCH(INDEX(SelisihPemasaran[],ROW()-ROW(SelisihPemasaran[[#Headers],[Sep]]),1),INDEX(RencanaPemasaran[],,1),0),MATCH(SelisihPemasaran[[#Headers],[Sep]],AktualPemasaran[#Headers],0))","v":{"v":200,"d":"Rp200.00"}},{"$f":"INDEX(RencanaPemasaran[],MATCH(INDEX(SelisihPemasaran[],ROW()-ROW(SelisihPemasaran[[#Headers],[Okt]]),1),INDEX(RencanaPemasaran[],,1),0),MATCH(SelisihPemasaran[[#Headers],[Okt]],RencanaPemasaran[#Headers],0))-INDEX(AktualPemasaran[],MATCH(INDEX(SelisihPemasaran[],ROW()-ROW(SelisihPemasaran[[#Headers],[Okt]]),1),INDEX(RencanaPemasaran[],,1),0),MATCH(SelisihPemasaran[[#Headers],[Okt]],AktualPemasaran[#Headers],0))","v":{"v":200,"d":"Rp200.00"}},{"$f":"INDEX(RencanaPemasaran[],MATCH(INDEX(SelisihPemasaran[],ROW()-ROW(SelisihPemasaran[[#Headers],[Nov]]),1),INDEX(RencanaPemasaran[],,1),0),MATCH(SelisihPemasaran[[#Headers],[Nov]],RencanaPemasaran[#Headers],0))-INDEX(AktualPemasaran[],MATCH(INDEX(SelisihPemasaran[],ROW()-ROW(SelisihPemasaran[[#Headers],[Nov]]),1),INDEX(RencanaPemasaran[],,1),0),MATCH(SelisihPemasaran[[#Headers],[Nov]],AktualPemasaran[#Headers],0))","v":{"v":200,"d":"Rp200.00"}},{"$f":"INDEX(RencanaPemasaran[],MATCH(INDEX(SelisihPemasaran[],ROW()-ROW(SelisihPemasaran[[#Headers],[Des]]),1),INDEX(RencanaPemasaran[],,1),0),MATCH(SelisihPemasaran[[#Headers],[Des]],RencanaPemasaran[#Headers],0))-INDEX(AktualPemasaran[],MATCH(INDEX(SelisihPemasaran[],ROW()-ROW(SelisihPemasaran[[#Headers],[Des]]),1),INDEX(RencanaPemasaran[],,1),0),MATCH(SelisihPemasaran[[#Headers],[Des]],AktualPemasaran[#Headers],0))","v":{"v":1000,"d":"Rp1,000.00"}},{"$f":"SUM(SelisihPemasaran[[#This Row],[Jan]:[Des]])","v":{"v":1500,"d":"Rp1,500.00"}}]
[null,"Persiapan media pendukung",{"$f":"INDEX(RencanaPemasaran[],MATCH(INDEX(SelisihPemasaran[],ROW()-ROW(SelisihPemasaran[[#Headers],[Jan]]),1),INDEX(RencanaPemasaran[],,1),0),MATCH(SelisihPemasaran[[#Headers],[Jan]],RencanaPemasaran[#Headers],0))-INDEX(AktualPemasaran[],MATCH(INDEX(SelisihPemasaran[],ROW()-ROW(SelisihPemasaran[[#Headers],[Jan]]),1),INDEX(RencanaPemasaran[],,1),0),MATCH(SelisihPemasaran[[#Headers],[Jan]],AktualPemasaran[#Headers],0))","v":{"v":200,"d":"Rp200.00"}},{"$f":"INDEX(RencanaPemasaran[],MATCH(INDEX(SelisihPemasaran[],ROW()-ROW(SelisihPemasaran[[#Headers],[Feb]]),1),INDEX(RencanaPemasaran[],,1),0),MATCH(SelisihPemasaran[[#Headers],[Feb]],RencanaPemasaran[#Headers],0))-INDEX(AktualPemasaran[],MATCH(INDEX(SelisihPemasaran[],ROW()-ROW(SelisihPemasaran[[#Headers],[Feb]]),1),INDEX(RencanaPemasaran[],,1),0),MATCH(SelisihPemasaran[[#Headers],[Feb]],AktualPemasaran[#Headers],0))","v":{"v":0,"d":"Rp0.00"}},{"$f":"INDEX(RencanaPemasaran[],MATCH(INDEX(SelisihPemasaran[],ROW()-ROW(SelisihPemasaran[[#Headers],[Mar]]),1),INDEX(RencanaPemasaran[],,1),0),MATCH(SelisihPemasaran[[#Headers],[Mar]],RencanaPemasaran[#Headers],0))-INDEX(AktualPemasaran[],MATCH(INDEX(SelisihPemasaran[],ROW()-ROW(SelisihPemasaran[[#Headers],[Mar]]),1),INDEX(RencanaPemasaran[],,1),0),MATCH(SelisihPemasaran[[#Headers],[Mar]],AktualPemasaran[#Headers],0))","v":{"v":0,"d":"Rp0.00"}},{"$f":"INDEX(RencanaPemasaran[],MATCH(INDEX(SelisihPemasaran[],ROW()-ROW(SelisihPemasaran[[#Headers],[Apr]]),1),INDEX(RencanaPemasaran[],,1),0),MATCH(SelisihPemasaran[[#Headers],[Apr]],RencanaPemasaran[#Headers],0))-INDEX(AktualPemasaran[],MATCH(INDEX(SelisihPemasaran[],ROW()-ROW(SelisihPemasaran[[#Headers],[Apr]]),1),INDEX(RencanaPemasaran[],,1),0),MATCH(SelisihPemasaran[[#Headers],[Apr]],AktualPemasaran[#Headers],0))","v":{"v":-500,"d":"-Rp500.00"}},{"$f":"INDEX(RencanaPemasaran[],MATCH(INDEX(SelisihPemasaran[],ROW()-ROW(SelisihPemasaran[[#Headers],[Mei]]),1),INDEX(RencanaPemasaran[],,1),0),MATCH(SelisihPemasaran[[#Headers],[Mei]],RencanaPemasaran[#Headers],0))-INDEX(AktualPemasaran[],MATCH(INDEX(SelisihPemasaran[],ROW()-ROW(SelisihPemasaran[[#Headers],[Mei]]),1),INDEX(RencanaPemasaran[],,1),0),MATCH(SelisihPemasaran[[#Headers],[Mei]],AktualPemasaran[#Headers],0))","v":{"v":0,"d":"Rp0.00"}},{"$f":"INDEX(RencanaPemasaran[],MATCH(INDEX(SelisihPemasaran[],ROW()-ROW(SelisihPemasaran[[#Headers],[Jun]]),1),INDEX(RencanaPemasaran[],,1),0),MATCH(SelisihPemasaran[[#Headers],[Jun]],RencanaPemasaran[#Headers],0))-INDEX(AktualPemasaran[],MATCH(INDEX(SelisihPemasaran[],ROW()-ROW(SelisihPemasaran[[#Headers],[Jun]]),1),INDEX(RencanaPemasaran[],,1),0),MATCH(SelisihPemasaran[[#Headers],[Jun]],AktualPemasaran[#Headers],0))","v":{"v":0,"d":"Rp0.00"}},{"$f":"INDEX(RencanaPemasaran[],MATCH(INDEX(SelisihPemasaran[],ROW()-ROW(SelisihPemasaran[[#Headers],[Jul]]),1),INDEX(RencanaPemasaran[],,1),0),MATCH(SelisihPemasaran[[#Headers],[Jul]],RencanaPemasaran[#Headers],0))-INDEX(AktualPemasaran[],MATCH(INDEX(SelisihPemasaran[],ROW()-ROW(SelisihPemasaran[[#Headers],[Jul]]),1),INDEX(RencanaPemasaran[],,1),0),MATCH(SelisihPemasaran[[#Headers],[Jul]],AktualPemasaran[#Headers],0))","v":{"v":5000,"d":"Rp5,000.00"}},{"$f":"INDEX(RencanaPemasaran[],MATCH(INDEX(SelisihPemasaran[],ROW()-ROW(SelisihPemasaran[[#Headers],[Agu]]),1),INDEX(RencanaPemasaran[],,1),0),MATCH(SelisihPemasaran[[#Headers],[Agu]],RencanaPemasaran[#Headers],0))-INDEX(AktualPemasaran[],MATCH(INDEX(SelisihPemasaran[],ROW()-ROW(SelisihPemasaran[[#Headers],[Agu]]),1),INDEX(RencanaPemasaran[],,1),0),MATCH(SelisihPemasaran[[#Headers],[Agu]],AktualPemasaran[#Headers],0))","v":{"v":0,"d":"Rp0.00"}},{"$f":"INDEX(RencanaPemasaran[],MATCH(INDEX(SelisihPemasaran[],ROW()-ROW(SelisihPemasaran[[#Headers],[Sep]]),1),INDEX(RencanaPemasaran[],,1),0),MATCH(SelisihPemasaran[[#Headers],[Sep]],RencanaPemasaran[#Headers],0))-INDEX(AktualPemasaran[],MATCH(INDEX(SelisihPemasaran[],ROW()-ROW(SelisihPemasaran[[#Headers],[Sep]]),1),INDEX(RencanaPemasaran[],,1),0),MATCH(SelisihPemasaran[[#Headers],[Sep]],AktualPemasaran[#Headers],0))","v":{"v":0,"d":"Rp0.00"}},{"$f":"INDEX(RencanaPemasaran[],MATCH(INDEX(SelisihPemasaran[],ROW()-ROW(SelisihPemasaran[[#Headers],[Okt]]),1),INDEX(RencanaPemasaran[],,1),0),MATCH(SelisihPemasaran[[#Headers],[Okt]],RencanaPemasaran[#Headers],0))-INDEX(AktualPemasaran[],MATCH(INDEX(SelisihPemasaran[],ROW()-ROW(SelisihPemasaran[[#Headers],[Okt]]),1),INDEX(RencanaPemasaran[],,1),0),MATCH(SelisihPemasaran[[#Headers],[Okt]],AktualPemasaran[#Headers],0))","v":{"v":5000,"d":"Rp5,000.00"}},{"$f":"INDEX(RencanaPemasaran[],MATCH(INDEX(SelisihPemasaran[],ROW()-ROW(SelisihPemasaran[[#Headers],[Nov]]),1),INDEX(RencanaPemasaran[],,1),0),MATCH(SelisihPemasaran[[#Headers],[Nov]],RencanaPemasaran[#Headers],0))-INDEX(AktualPemasaran[],MATCH(INDEX(SelisihPemasaran[],ROW()-ROW(SelisihPemasaran[[#Headers],[Nov]]),1),INDEX(RencanaPemasaran[],,1),0),MATCH(SelisihPemasaran[[#Headers],[Nov]],AktualPemasaran[#Headers],0))","v":{"v":0,"d":"Rp0.00"}},{"$f":"INDEX(RencanaPemasaran[],MATCH(INDEX(SelisihPemasaran[],ROW()-ROW(SelisihPemasaran[[#Headers],[Des]]),1),INDEX(RencanaPemasaran[],,1),0),MATCH(SelisihPemasaran[[#Headers],[Des]],RencanaPemasaran[#Headers],0))-INDEX(AktualPemasaran[],MATCH(INDEX(SelisihPemasaran[],ROW()-ROW(SelisihPemasaran[[#Headers],[Des]]),1),INDEX(RencanaPemasaran[],,1),0),MATCH(SelisihPemasaran[[#Headers],[Des]],AktualPemasaran[#Headers],0))","v":{"v":0,"d":"Rp0.00"}},{"$f":"SUM(SelisihPemasaran[[#This Row],[Jan]:[Des]])","v":{"v":9700,"d":"Rp9,700.00"}}]
[null,"Pencetakan media pendukung",{"$f":"INDEX(RencanaPemasaran[],MATCH(INDEX(SelisihPemasaran[],ROW()-ROW(SelisihPemasaran[[#Headers],[Jan]]),1),INDEX(RencanaPemasaran[],,1),0),MATCH(SelisihPemasaran[[#Headers],[Jan]],RencanaPemasaran[#Headers],0))-INDEX(AktualPemasaran[],MATCH(INDEX(SelisihPemasaran[],ROW()-ROW(SelisihPemasaran[[#Headers],[Jan]]),1),INDEX(RencanaPemasaran[],,1),0),MATCH(SelisihPemasaran[[#Headers],[Jan]],AktualPemasaran[#Headers],0))","v":{"v":100,"d":"Rp100.00"}},{"$f":"INDEX(RencanaPemasaran[],MATCH(INDEX(SelisihPemasaran[],ROW()-ROW(SelisihPemasaran[[#Headers],[Feb]]),1),INDEX(RencanaPemasaran[],,1),0),MATCH(SelisihPemasaran[[#Headers],[Feb]],RencanaPemasaran[#Headers],0))-INDEX(AktualPemasaran[],MATCH(INDEX(SelisihPemasaran[],ROW()-ROW(SelisihPemasaran[[#Headers],[Feb]]),1),INDEX(RencanaPemasaran[],,1),0),MATCH(SelisihPemasaran[[#Headers],[Feb]],AktualPemasaran[#Headers],0))","v":{"v":-300,"d":"-Rp300.00"}},{"$f":"INDEX(RencanaPemasaran[],MATCH(INDEX(SelisihPemasaran[],ROW()-ROW(SelisihPemasaran[[#Headers],[Mar]]),1),INDEX(RencanaPemasaran[],,1),0),MATCH(SelisihPemasaran[[#Headers],[Mar]],RencanaPemasaran[#Headers],0))-INDEX(AktualPemasaran[],MATCH(INDEX(SelisihPemasaran[],ROW()-ROW(SelisihPemasaran[[#Headers],[Mar]]),1),INDEX(RencanaPemasaran[],,1),0),MATCH(SelisihPemasaran[[#Headers],[Mar]],AktualPemasaran[#Headers],0))","v":{"v":100,"d":"Rp100.00"}},{"$f":"INDEX(RencanaPemasaran[],MATCH(INDEX(SelisihPemasaran[],ROW()-ROW(SelisihPemasaran[[#Headers],[Apr]]),1),INDEX(RencanaPemasaran[],,1),0),MATCH(SelisihPemasaran[[#Headers],[Apr]],RencanaPemasaran[#Headers],0))-INDEX(AktualPemasaran[],MATCH(INDEX(SelisihPemasaran[],ROW()-ROW(SelisihPemasaran[[#Headers],[Apr]]),1),INDEX(RencanaPemasaran[],,1),0),MATCH(SelisihPemasaran[[#Headers],[Apr]],AktualPemasaran[#Headers],0))","v":{"v":100,"d":"Rp100.00"}},{"$f":"INDEX(RencanaPemasaran[],MATCH(INDEX(SelisihPemasaran[],ROW()-ROW(SelisihPemasaran[[#Headers],[Mei]]),1),INDEX(RencanaPemasaran[],,1),0),MATCH(SelisihPemasaran[[#Headers],[Mei]],RencanaPemasaran[#Headers],0))-INDEX(AktualPemasaran[],MATCH(INDEX(SelisihPemasaran[],ROW()-ROW(SelisihPemasaran[[#Headers],[Mei]]),1),INDEX(RencanaPemasaran[],,1),0),MATCH(SelisihPemasaran[[#Headers],[Mei]],AktualPemasaran[#Headers],0))","v":{"v":-400,"d":"-Rp400.00"}},{"$f":"INDEX(RencanaPemasaran[],MATCH(INDEX(SelisihPemasaran[],ROW()-ROW(SelisihPemasaran[[#Headers],[Jun]]),1),INDEX(RencanaPemasaran[],,1),0),MATCH(SelisihPemasaran[[#Headers],[Jun]],RencanaPemasaran[#Headers],0))-INDEX(AktualPemasaran[],MATCH(INDEX(SelisihPemasaran[],ROW()-ROW(SelisihPemasaran[[#Headers],[Jun]]),1),INDEX(RencanaPemasaran[],,1),0),MATCH(SelisihPemasaran[[#Headers],[Jun]],AktualPemasaran[#Headers],0))","v":{"v":20,"d":"Rp20.00"}},{"$f":"INDEX(RencanaPemasaran[],MATCH(INDEX(SelisihPemasaran[],ROW()-ROW(SelisihPemasaran[[#Headers],[Jul]]),1),INDEX(RencanaPemasaran[],,1),0),MATCH(SelisihPemasaran[[#Headers],[Jul]],RencanaPemasaran[#Headers],0))-INDEX(AktualPemasaran[],MATCH(INDEX(SelisihPemasaran[],ROW()-ROW(SelisihPemasaran[[#Headers],[Jul]]),1),INDEX(RencanaPemasaran[],,1),0),MATCH(SelisihPemasaran[[#Headers],[Jul]],AktualPemasaran[#Headers],0))","v":{"v":200,"d":"Rp200.00"}},{"$f":"INDEX(RencanaPemasaran[],MATCH(INDEX(SelisihPemasaran[],ROW()-ROW(SelisihPemasaran[[#Headers],[Agu]]),1),INDEX(RencanaPemasaran[],,1),0),MATCH(SelisihPemasaran[[#Headers],[Agu]],RencanaPemasaran[#Headers],0))-INDEX(AktualPemasaran[],MATCH(INDEX(SelisihPemasaran[],ROW()-ROW(SelisihPemasaran[[#Headers],[Agu]]),1),INDEX(RencanaPemasaran[],,1),0),MATCH(SelisihPemasaran[[#Headers],[Agu]],AktualPemasaran[#Headers],0))","v":{"v":200,"d":"Rp200.00"}},{"$f":"INDEX(RencanaPemasaran[],MATCH(INDEX(SelisihPemasaran[],ROW()-ROW(SelisihPemasaran[[#Headers],[Sep]]),1),INDEX(RencanaPemasaran[],,1),0),MATCH(SelisihPemasaran[[#Headers],[Sep]],RencanaPemasaran[#Headers],0))-INDEX(AktualPemasaran[],MATCH(INDEX(SelisihPemasaran[],ROW()-ROW(SelisihPemasaran[[#Headers],[Sep]]),1),INDEX(RencanaPemasaran[],,1),0),MATCH(SelisihPemasaran[[#Headers],[Sep]],AktualPemasaran[#Headers],0))","v":{"v":200,"d":"Rp200.00"}},{"$f":"INDEX(RencanaPemasaran[],MATCH(INDEX(SelisihPemasaran[],ROW()-ROW(SelisihPemasaran[[#Headers],[Okt]]),1),INDEX(RencanaPemasaran[],,1),0),MATCH(SelisihPemasaran[[#Headers],[Okt]],RencanaPemasaran[#Headers],0))-INDEX(AktualPemasaran[],MATCH(INDEX(SelisihPemasaran[],ROW()-ROW(SelisihPemasaran[[#Headers],[Okt]]),1),INDEX(RencanaPemasaran[],,1),0),MATCH(SelisihPemasaran[[#Headers],[Okt]],AktualPemasaran[#Headers],0))","v":{"v":200,"d":"Rp200.00"}},{"$f":"INDEX(RencanaPemasaran[],MATCH(INDEX(SelisihPemasaran[],ROW()-ROW(SelisihPemasaran[[#Headers],[Nov]]),1),INDEX(RencanaPemasaran[],,1),0),MATCH(SelisihPemasaran[[#Headers],[Nov]],RencanaPemasaran[#Headers],0))-INDEX(AktualPemasaran[],MATCH(INDEX(SelisihPemasaran[],ROW()-ROW(SelisihPemasaran[[#Headers],[Nov]]),1),INDEX(RencanaPemasaran[],,1),0),MATCH(SelisihPemasaran[[#Headers],[Nov]],AktualPemasaran[#Headers],0))","v":{"v":200,"d":"Rp200.00"}},{"$f":"INDEX(RencanaPemasaran[],MATCH(INDEX(SelisihPemasaran[],ROW()-ROW(SelisihPemasaran[[#Headers],[Des]]),1),INDEX(RencanaPemasaran[],,1),0),MATCH(SelisihPemasaran[[#Headers],[Des]],RencanaPemasaran[#Headers],0))-INDEX(AktualPemasaran[],MATCH(INDEX(SelisihPemasaran[],ROW()-ROW(SelisihPemasaran[[#Headers],[Des]]),1),INDEX(RencanaPemasaran[],,1),0),MATCH(SelisihPemasaran[[#Headers],[Des]],AktualPemasaran[#Headers],0))","v":{"v":200,"d":"Rp200.00"}},{"$f":"SUM(SelisihPemasaran[[#This Row],[Jan]:[Des]])","v":{"v":820,"d":"Rp820.00"}}]
[null,"Acara pemasaran",{"$f":"INDEX(RencanaPemasaran[],MATCH(INDEX(SelisihPemasaran[],ROW()-ROW(SelisihPemasaran[[#Headers],[Jan]]),1),INDEX(RencanaPemasaran[],,1),0),MATCH(SelisihPemasaran[[#Headers],[Jan]],RencanaPemasaran[#Headers],0))-INDEX(AktualPemasaran[],MATCH(INDEX(SelisihPemasaran[],ROW()-ROW(SelisihPemasaran[[#Headers],[Jan]]),1),INDEX(RencanaPemasaran[],,1),0),MATCH(SelisihPemasaran[[#Headers],[Jan]],AktualPemasaran[#Headers],0))","v":{"v":200,"d":"Rp200.00"}},{"$f":"INDEX(RencanaPemasaran[],MATCH(INDEX(SelisihPemasaran[],ROW()-ROW(SelisihPemasaran[[#Headers],[Feb]]),1),INDEX(RencanaPemasaran[],,1),0),MATCH(SelisihPemasaran[[#Headers],[Feb]],RencanaPemasaran[#Headers],0))-INDEX(AktualPemasaran[],MATCH(INDEX(SelisihPemasaran[],ROW()-ROW(SelisihPemasaran[[#Headers],[Feb]]),1),INDEX(RencanaPemasaran[],,1),0),MATCH(SelisihPemasaran[[#Headers],[Feb]],AktualPemasaran[#Headers],0))","v":{"v":-200,"d":"-Rp200.00"}},{"$f":"INDEX(RencanaPemasaran[],MATCH(INDEX(SelisihPemasaran[],ROW()-ROW(SelisihPemasaran[[#Headers],[Mar]]),1),INDEX(RencanaPemasaran[],,1),0),MATCH(SelisihPemasaran[[#Headers],[Mar]],RencanaPemasaran[#Headers],0))-INDEX(AktualPemasaran[],MATCH(INDEX(SelisihPemasaran[],ROW()-ROW(SelisihPemasaran[[#Headers],[Mar]]),1),INDEX(RencanaPemasaran[],,1),0),MATCH(SelisihPemasaran[[#Headers],[Mar]],AktualPemasaran[#Headers],0))","v":{"v":-200,"d":"-Rp200.00"}},{"$f":"INDEX(RencanaPemasaran[],MATCH(INDEX(SelisihPemasaran[],ROW()-ROW(SelisihPemasaran[[#Headers],[Apr]]),1),INDEX(RencanaPemasaran[],,1),0),MATCH(SelisihPemasaran[[#Headers],[Apr]],RencanaPemasaran[#Headers],0))-INDEX(AktualPemasaran[],MATCH(INDEX(SelisihPemasaran[],ROW()-ROW(SelisihPemasaran[[#Headers],[Apr]]),1),INDEX(RencanaPemasaran[],,1),0),MATCH(SelisihPemasaran[[#Headers],[Apr]],AktualPemasaran[#Headers],0))","v":{"v":300,"d":"Rp300.00"}},{"$f":"INDEX(RencanaPemasaran[],MATCH(INDEX(SelisihPemasaran[],ROW()-ROW(SelisihPemasaran[[#Headers],[Mei]]),1),INDEX(RencanaPemasaran[],,1),0),MATCH(SelisihPemasaran[[#Headers],[Mei]],RencanaPemasaran[#Headers],0))-INDEX(AktualPemasaran[],MATCH(INDEX(SelisihPemasaran[],ROW()-ROW(SelisihPemasaran[[#Headers],[Mei]]),1),INDEX(RencanaPemasaran[],,1),0),MATCH(SelisihPemasaran[[#Headers],[Mei]],AktualPemasaran[#Headers],0))","v":{"v":500,"d":"Rp500.00"}},{"$f":"INDEX(RencanaPemasaran[],MATCH(INDEX(SelisihPemasaran[],ROW()-ROW(SelisihPemasaran[[#Headers],[Jun]]),1),INDEX(RencanaPemasaran[],,1),0),MATCH(SelisihPemasaran[[#Headers],[Jun]],RencanaPemasaran[#Headers],0))-INDEX(AktualPemasaran[],MATCH(INDEX(SelisihPemasaran[],ROW()-ROW(SelisihPemasaran[[#Headers],[Jun]]),1),INDEX(RencanaPemasaran[],,1),0),MATCH(SelisihPemasaran[[#Headers],[Jun]],AktualPemasaran[#Headers],0))","v":{"v":-300,"d":"-Rp300.00"}},{"$f":"INDEX(RencanaPemasaran[],MATCH(INDEX(SelisihPemasaran[],ROW()-ROW(SelisihPemasaran[[#Headers],[Jul]]),1),INDEX(RencanaPemasaran[],,1),0),MATCH(SelisihPemasaran[[#Headers],[Jul]],RencanaPemasaran[#Headers],0))-INDEX(AktualPemasaran[],MATCH(INDEX(SelisihPemasaran[],ROW()-ROW(SelisihPemasaran[[#Headers],[Jul]]),1),INDEX(RencanaPemasaran[],,1),0),MATCH(SelisihPemasaran[[#Headers],[Jul]],AktualPemasaran[#Headers],0))","v":{"v":2000,"d":"Rp2,000.00"}},{"$f":"INDEX(RencanaPemasaran[],MATCH(INDEX(SelisihPemasaran[],ROW()-ROW(SelisihPemasaran[[#Headers],[Agu]]),1),INDEX(RencanaPemasaran[],,1),0),MATCH(SelisihPemasaran[[#Headers],[Agu]],RencanaPemasaran[#Headers],0))-INDEX(AktualPemasaran[],MATCH(INDEX(SelisihPemasaran[],ROW()-ROW(SelisihPemasaran[[#Headers],[Agu]]),1),INDEX(RencanaPemasaran[],,1),0),MATCH(SelisihPemasaran[[#Headers],[Agu]],AktualPemasaran[#Headers],0))","v":{"v":5000,"d":"Rp5,000.00"}},{"$f":"INDEX(RencanaPemasaran[],MATCH(INDEX(SelisihPemasaran[],ROW()-ROW(SelisihPemasaran[[#Headers],[Sep]]),1),INDEX(RencanaPemasaran[],,1),0),MATCH(SelisihPemasaran[[#Headers],[Sep]],RencanaPemasaran[#Headers],0))-INDEX(AktualPemasaran[],MATCH(INDEX(SelisihPemasaran[],ROW()-ROW(SelisihPemasaran[[#Headers],[Sep]]),1),INDEX(RencanaPemasaran[],,1),0),MATCH(SelisihPemasaran[[#Headers],[Sep]],AktualPemasaran[#Headers],0))","v":{"v":2000,"d":"Rp2,000.00"}},{"$f":"INDEX(RencanaPemasaran[],MATCH(INDEX(SelisihPemasaran[],ROW()-ROW(SelisihPemasaran[[#Headers],[Okt]]),1),INDEX(RencanaPemasaran[],,1),0),MATCH(SelisihPemasaran[[#Headers],[Okt]],RencanaPemasaran[#Headers],0))-INDEX(AktualPemasaran[],MATCH(INDEX(SelisihPemasaran[],ROW()-ROW(SelisihPemasaran[[#Headers],[Okt]]),1),INDEX(RencanaPemasaran[],,1),0),MATCH(SelisihPemasaran[[#Headers],[Okt]],AktualPemasaran[#Headers],0))","v":{"v":2000,"d":"Rp2,000.00"}},{"$f":"INDEX(RencanaPemasaran[],MATCH(INDEX(SelisihPemasaran[],ROW()-ROW(SelisihPemasaran[[#Headers],[Nov]]),1),INDEX(RencanaPemasaran[],,1),0),MATCH(SelisihPemasaran[[#Headers],[Nov]],RencanaPemasaran[#Headers],0))-INDEX(AktualPemasaran[],MATCH(INDEX(SelisihPemasaran[],ROW()-ROW(SelisihPemasaran[[#Headers],[Nov]]),1),INDEX(RencanaPemasaran[],,1),0),MATCH(SelisihPemasaran[[#Headers],[Nov]],AktualPemasaran[#Headers],0))","v":{"v":2000,"d":"Rp2,000.00"}},{"$f":"INDEX(RencanaPemasaran[],MATCH(INDEX(SelisihPemasaran[],ROW()-ROW(SelisihPemasaran[[#Headers],[Des]]),1),INDEX(RencanaPemasaran[],,1),0),MATCH(SelisihPemasaran[[#Headers],[Des]],RencanaPemasaran[#Headers],0))-INDEX(AktualPemasaran[],MATCH(INDEX(SelisihPemasaran[],ROW()-ROW(SelisihPemasaran[[#Headers],[Des]]),1),INDEX(RencanaPemasaran[],,1),0),MATCH(SelisihPemasaran[[#Headers],[Des]],AktualPemasaran[#Headers],0))","v":{"v":5000,"d":"Rp5,000.00"}},{"$f":"SUM(SelisihPemasaran[[#This Row],[Jan]:[Des]])","v":{"v":18300,"d":"Rp18,300.00"}}]
[null,"Pengeluaran lainnya",{"$f":"INDEX(RencanaPemasaran[],MATCH(INDEX(SelisihPemasaran[],ROW()-ROW(SelisihPemasaran[[#Headers],[Jan]]),1),INDEX(RencanaPemasaran[],,1),0),MATCH(SelisihPemasaran[[#Headers],[Jan]],RencanaPemasaran[#Headers],0))-INDEX(AktualPemasaran[],MATCH(INDEX(SelisihPemasaran[],ROW()-ROW(SelisihPemasaran[[#Headers],[Jan]]),1),INDEX(RencanaPemasaran[],,1),0),MATCH(SelisihPemasaran[[#Headers],[Jan]],AktualPemasaran[#Headers],0))","v":{"v":55,"d":"Rp55.00"}},{"$f":"INDEX(RencanaPemasaran[],MATCH(INDEX(SelisihPemasaran[],ROW()-ROW(SelisihPemasaran[[#Headers],[Feb]]),1),INDEX(RencanaPemasaran[],,1),0),MATCH(SelisihPemasaran[[#Headers],[Feb]],RencanaPemasaran[#Headers],0))-INDEX(AktualPemasaran[],MATCH(INDEX(SelisihPemasaran[],ROW()-ROW(SelisihPemasaran[[#Headers],[Feb]]),1),INDEX(RencanaPemasaran[],,1),0),MATCH(SelisihPemasaran[[#Headers],[Feb]],AktualPemasaran[#Headers],0))","v":{"v":44,"d":"Rp44.00"}},{"$f":"INDEX(RencanaPemasaran[],MATCH(INDEX(SelisihPemasaran[],ROW()-ROW(SelisihPemasaran[[#Headers],[Mar]]),1),INDEX(RencanaPemasaran[],,1),0),MATCH(SelisihPemasaran[[#Headers],[Mar]],RencanaPemasaran[#Headers],0))-INDEX(AktualPemasaran[],MATCH(INDEX(SelisihPemasaran[],ROW()-ROW(SelisihPemasaran[[#Headers],[Mar]]),1),INDEX(RencanaPemasaran[],,1),0),MATCH(SelisihPemasaran[[#Headers],[Mar]],AktualPemasaran[#Headers],0))","v":{"v":77,"d":"Rp77.00"}},{"$f":"INDEX(RencanaPemasaran[],MATCH(INDEX(SelisihPemasaran[],ROW()-ROW(SelisihPemasaran[[#Headers],[Apr]]),1),INDEX(RencanaPemasaran[],,1),0),MATCH(SelisihPemasaran[[#Headers],[Apr]],RencanaPemasaran[#Headers],0))-INDEX(AktualPemasaran[],MATCH(INDEX(SelisihPemasaran[],ROW()-ROW(SelisihPemasaran[[#Headers],[Apr]]),1),INDEX(RencanaPemasaran[],,1),0),MATCH(SelisihPemasaran[[#Headers],[Apr]],AktualPemasaran[#Headers],0))","v":{"v":-23,"d":"-Rp23.00"}},{"$f":"INDEX(RencanaPemasaran[],MATCH(INDEX(SelisihPemasaran[],ROW()-ROW(SelisihPemasaran[[#Headers],[Mei]]),1),INDEX(RencanaPemasaran[],,1),0),MATCH(SelisihPemasaran[[#Headers],[Mei]],RencanaPemasaran[#Headers],0))-INDEX(AktualPemasaran[],MATCH(INDEX(SelisihPemasaran[],ROW()-ROW(SelisihPemasaran[[#Headers],[Mei]]),1),INDEX(RencanaPemasaran[],,1),0),MATCH(SelisihPemasaran[[#Headers],[Mei]],AktualPemasaran[#Headers],0))","v":{"v":13,"d":"Rp13.00"}},{"$f":"INDEX(RencanaPemasaran[],MATCH(INDEX(SelisihPemasaran[],ROW()-ROW(SelisihPemasaran[[#Headers],[Jun]]),1),INDEX(RencanaPemasaran[],,1),0),MATCH(SelisihPemasaran[[#Headers],[Jun]],RencanaPemasaran[#Headers],0))-INDEX(AktualPemasaran[],MATCH(INDEX(SelisihPemasaran[],ROW()-ROW(SelisihPemasaran[[#Headers],[Jun]]),1),INDEX(RencanaPemasaran[],,1),0),MATCH(SelisihPemasaran[[#Headers],[Jun]],AktualPemasaran[#Headers],0))","v":{"v":-45,"d":"-Rp45.00"}},{"$f":"INDEX(RencanaPemasaran[],MATCH(INDEX(SelisihPemasaran[],ROW()-ROW(SelisihPemasaran[[#Headers],[Jul]]),1),INDEX(RencanaPemasaran[],,1),0),MATCH(SelisihPemasaran[[#Headers],[Jul]],RencanaPemasaran[#Headers],0))-INDEX(AktualPemasaran[],MATCH(INDEX(SelisihPemasaran[],ROW()-ROW(SelisihPemasaran[[#Headers],[Jul]]),1),INDEX(RencanaPemasaran[],,1),0),MATCH(SelisihPemasaran[[#Headers],[Jul]],AktualPemasaran[#Headers],0))","v":{"v":200,"d":"Rp200.00"}},{"$f":"INDEX(RencanaPemasaran[],MATCH(INDEX(SelisihPemasaran[],ROW()-ROW(SelisihPemasaran[[#Headers],[Agu]]),1),INDEX(RencanaPemasaran[],,1),0),MATCH(SelisihPemasaran[[#Headers],[Agu]],RencanaPemasaran[#Headers],0))-INDEX(AktualPemasaran[],MATCH(INDEX(SelisihPemasaran[],ROW()-ROW(SelisihPemasaran[[#Headers],[Agu]]),1),INDEX(RencanaPemasaran[],,1),0),MATCH(SelisihPemasaran[[#Headers],[Agu]],AktualPemasaran[#Headers],0))","v":{"v":200,"d":"Rp200.00"}},{"$f":"INDEX(RencanaPemasaran[],MATCH(INDEX(SelisihPemasaran[],ROW()-ROW(SelisihPemasaran[[#Headers],[Sep]]),1),INDEX(RencanaPemasaran[],,1),0),MATCH(SelisihPemasaran[[#Headers],[Sep]],RencanaPemasaran[#Headers],0))-INDEX(AktualPemasaran[],MATCH(INDEX(SelisihPemasaran[],ROW()-ROW(SelisihPemasaran[[#Headers],[Sep]]),1),INDEX(RencanaPemasaran[],,1),0),MATCH(SelisihPemasaran[[#Headers],[Sep]],AktualPemasaran[#Headers],0))","v":{"v":200,"d":"Rp200.00"}},{"$f":"INDEX(RencanaPemasaran[],MATCH(INDEX(SelisihPemasaran[],ROW()-ROW(SelisihPemasaran[[#Headers],[Okt]]),1),INDEX(RencanaPemasaran[],,1),0),MATCH(SelisihPemasaran[[#Headers],[Okt]],RencanaPemasaran[#Headers],0))-INDEX(AktualPemasaran[],MATCH(INDEX(SelisihPemasaran[],ROW()-ROW(SelisihPemasaran[[#Headers],[Okt]]),1),INDEX(RencanaPemasaran[],,1),0),MATCH(SelisihPemasaran[[#Headers],[Okt]],AktualPemasaran[#Headers],0))","v":{"v":200,"d":"Rp200.00"}},{"$f":"INDEX(RencanaPemasaran[],MATCH(INDEX(SelisihPemasaran[],ROW()-ROW(SelisihPemasaran[[#Headers],[Nov]]),1),INDEX(RencanaPemasaran[],,1),0),MATCH(SelisihPemasaran[[#Headers],[Nov]],RencanaPemasaran[#Headers],0))-INDEX(AktualPemasaran[],MATCH(INDEX(SelisihPemasaran[],ROW()-ROW(SelisihPemasaran[[#Headers],[Nov]]),1),INDEX(RencanaPemasaran[],,1),0),MATCH(SelisihPemasaran[[#Headers],[Nov]],AktualPemasaran[#Headers],0))","v":{"v":200,"d":"Rp200.00"}},{"$f":"INDEX(RencanaPemasaran[],MATCH(INDEX(SelisihPemasaran[],ROW()-ROW(SelisihPemasaran[[#Headers],[Des]]),1),INDEX(RencanaPemasaran[],,1),0),MATCH(SelisihPemasaran[[#Headers],[Des]],RencanaPemasaran[#Headers],0))-INDEX(AktualPemasaran[],MATCH(INDEX(SelisihPemasaran[],ROW()-ROW(SelisihPemasaran[[#Headers],[Des]]),1),INDEX(RencanaPemasaran[],,1),0),MATCH(SelisihPemasaran[[#Headers],[Des]],AktualPemasaran[#Headers],0))","v":{"v":200,"d":"Rp200.00"}},{"$f":"SUM(SelisihPemasaran[[#This Row],[Jan]:[Des]])","v":{"v":1321,"d":"Rp1,321.00"}}]
[null,"Subtotal",{"$f":"SUBTOTAL(109,SelisihPemasaran[Jan])","v":{"v":555,"d":"Rp555.00"}},{"$f":"SUBTOTAL(109,SelisihPemasaran[Feb])","v":{"v":-456,"d":"-Rp456.00"}},{"$f":"SUBTOTAL(109,SelisihPemasaran[Mar])","v":{"v":-23,"d":"-Rp23.00"}},{"$f":"SUBTOTAL(109,SelisihPemasaran[Apr])","v":{"v":-123,"d":"-Rp123.00"}},{"$f":"SUBTOTAL(109,SelisihPemasaran[Mei])","v":{"v":113,"d":"Rp113.00"}},{"$f":"SUBTOTAL(109,SelisihPemasaran[Jun])","v":{"v":-825,"d":"-Rp825.00"}},{"$f":"SUBTOTAL(109,SelisihPemasaran[Jul])","v":{"v":8100,"d":"Rp8,100.00"}},{"$f":"SUBTOTAL(109,SelisihPemasaran[Agu])","v":{"v":6100,"d":"Rp6,100.00"}},{"$f":"SUBTOTAL(109,SelisihPemasaran[Sep])","v":{"v":3100,"d":"Rp3,100.00"}},{"$f":"SUBTOTAL(109,SelisihPemasaran[Okt])","v":{"v":8100,"d":"Rp8,100.00"}},{"$f":"SUBTOTAL(109,SelisihPemasaran[Nov])","v":{"v":3100,"d":"Rp3,100.00"}},{"$f":"SUBTOTAL(109,SelisihPemasaran[Des])","v":{"v":6900,"d":"Rp6,900.00"}},{"$f":"SUBTOTAL(109,SelisihPemasaran[TAHUN])","v":{"v":34641,"d":"Rp34,641.00"}}]
[]
["Selisih dalam Biaya Pelatihan atau Perjalanan akan dihitung secara otomatis dalam tabel Selisih Pelatihan dan Perjalanan mulai dari sel di sebelah kanan. Instruksi berikutnya berada dalam sel A35.","Pelatihan/Perjalanan","Jan","Feb","Mar","Apr","Mei","Jun","Jul","Agu","Sep","Okt","Nov","Des","TAHUN"]
[null,"Kelas pelatihan",{"$f":"INDEX(RencanaPelatihanDanPerjalanan[],MATCH(INDEX(SelisihPelatihanDanPerjalanan[],ROW()-ROW(SelisihPelatihanDanPerjalanan[[#Headers],[Jan]]),1),INDEX(RencanaPelatihanDanPerjalanan[],,1),0),MATCH(SelisihPelatihanDanPerjalanan[[#Headers],[Jan]],RencanaPelatihanDanPerjalanan[#Headers],0))-INDEX(AktualPelatihanDanPerjalanan[],MATCH(INDEX(SelisihPelatihanDanPerjalanan[],ROW()-ROW(SelisihPelatihanDanPerjalanan[[#Headers],[Jan]]),1),INDEX(RencanaPelatihanDanPerjalanan[],,1),0),MATCH(SelisihPelatihanDanPerjalanan[[#Headers],[Jan]],AktualPelatihanDanPerjalanan[#Headers],0))","v":{"v":400,"d":"Rp400.00"}},{"$f":"INDEX(RencanaPelatihanDanPerjalanan[],MATCH(INDEX(SelisihPelatihanDanPerjalanan[],ROW()-ROW(SelisihPelatihanDanPerjalanan[[#Headers],[Feb]]),1),INDEX(RencanaPelatihanDanPerjalanan[],,1),0),MATCH(SelisihPelatihanDanPerjalanan[[#Headers],[Feb]],RencanaPelatihanDanPerjalanan[#Headers],0))-INDEX(AktualPelatihanDanPerjalanan[],MATCH(INDEX(SelisihPelatihanDanPerjalanan[],ROW()-ROW(SelisihPelatihanDanPerjalanan[[#Headers],[Feb]]),1),INDEX(RencanaPelatihanDanPerjalanan[],,1),0),MATCH(SelisihPelatihanDanPerjalanan[[#Headers],[Feb]],AktualPelatihanDanPerjalanan[#Headers],0))","v":{"v":-400,"d":"-Rp400.00"}},{"$f":"INDEX(RencanaPelatihanDanPerjalanan[],MATCH(INDEX(SelisihPelatihanDanPerjalanan[],ROW()-ROW(SelisihPelatihanDanPerjalanan[[#Headers],[Mar]]),1),INDEX(RencanaPelatihanDanPerjalanan[],,1),0),MATCH(SelisihPelatihanDanPerjalanan[[#Headers],[Mar]],RencanaPelatihanDanPerjalanan[#Headers],0))-INDEX(AktualPelatihanDanPerjalanan[],MATCH(INDEX(SelisihPelatihanDanPerjalanan[],ROW()-ROW(SelisihPelatihanDanPerjalanan[[#Headers],[Mar]]),1),INDEX(RencanaPelatihanDanPerjalanan[],,1),0),MATCH(SelisihPelatihanDanPerjalanan[[#Headers],[Mar]],AktualPelatihanDanPerjalanan[#Headers],0))","v":{"v":600,"d":"Rp600.00"}},{"$f":"INDEX(RencanaPelatihanDanPerjalanan[],MATCH(INDEX(SelisihPelatihanDanPerjalanan[],ROW()-ROW(SelisihPelatihanDanPerjalanan[[#Headers],[Apr]]),1),INDEX(RencanaPelatihanDanPerjalanan[],,1),0),MATCH(SelisihPelatihanDanPerjalanan[[#Headers],[Apr]],RencanaPelatihanDanPerjalanan[#Headers],0))-INDEX(AktualPelatihanDanPerjalanan[],MATCH(INDEX(SelisihPelatihanDanPerjalanan[],ROW()-ROW(SelisihPelatihanDanPerjalanan[[#Headers],[Apr]]),1),INDEX(RencanaPelatihanDanPerjalanan[],,1),0),MATCH(SelisihPelatihanDanPerjalanan[[#Headers],[Apr]],AktualPelatihanDanPerjalanan[#Headers],0))","v":{"v":400,"d":"Rp400.00"}},{"$f":"INDEX(RencanaPelatihanDanPerjalanan[],MATCH(INDEX(SelisihPelatihanDanPerjalanan[],ROW()-ROW(SelisihPelatihanDanPerjalanan[[#Headers],[Mei]]),1),INDEX(RencanaPelatihanDanPerjalanan[],,1),0),MATCH(SelisihPelatihanDanPerjalanan[[#Headers],[Mei]],RencanaPelatihanDanPerjalanan[#Headers],0))-INDEX(AktualPelatihanDanPerjalanan[],MATCH(INDEX(SelisihPelatihanDanPerjalanan[],ROW()-ROW(SelisihPelatihanDanPerjalanan[[#Headers],[Mei]]),1),INDEX(RencanaPelatihanDanPerjalanan[],,1),0),MATCH(SelisihPelatihanDanPerjalanan[[#Headers],[Mei]],AktualPelatihanDanPerjalanan[#Headers],0))","v":{"v":800,"d":"Rp800.00"}},{"$f":"INDEX(RencanaPelatihanDanPerjalanan[],MATCH(INDEX(SelisihPelatihanDanPerjalanan[],ROW()-ROW(SelisihPelatihanDanPerjalanan[[#Headers],[Jun]]),1),INDEX(RencanaPelatihanDanPerjalanan[],,1),0),MATCH(SelisihPelatihanDanPerjalanan[[#Headers],[Jun]],RencanaPelatihanDanPerjalanan[#Headers],0))-INDEX(AktualPelatihanDanPerjalanan[],MATCH(INDEX(SelisihPelatihanDanPerjalanan[],ROW()-ROW(SelisihPelatihanDanPerjalanan[[#Headers],[Jun]]),1),INDEX(RencanaPelatihanDanPerjalanan[],,1),0),MATCH(SelisihPelatihanDanPerjalanan[[#Headers],[Jun]],AktualPelatihanDanPerjalanan[#Headers],0))","v":{"v":-800,"d":"-Rp800.00"}},{"$f":"INDEX(RencanaPelatihanDanPerjalanan[],MATCH(INDEX(SelisihPelatihanDanPerjalanan[],ROW()-ROW(SelisihPelatihanDanPerjalanan[[#Headers],[Jul]]),1),INDEX(RencanaPelatihanDanPerjalanan[],,1),0),MATCH(SelisihPelatihanDanPerjalanan[[#Headers],[Jul]],RencanaPelatihanDanPerjalanan[#Headers],0))-INDEX(AktualPelatihanDanPerjalanan[],MATCH(INDEX(SelisihPelatihanDanPerjalanan[],ROW()-ROW(SelisihPelatihanDanPerjalanan[[#Headers],[Jul]]),1),INDEX(RencanaPelatihanDanPerjalanan[],,1),0),MATCH(SelisihPelatihanDanPerjalanan[[#Headers],[Jul]],AktualPelatihanDanPerjalanan[#Headers],0))","v":{"v":2000,"d":"Rp2,000.00"}},{"$f":"INDEX(RencanaPelatihanDanPerjalanan[],MATCH(INDEX(SelisihPelatihanDanPerjalanan[],ROW()-ROW(SelisihPelatihanDanPerjalanan[[#Headers],[Agu]]),1),INDEX(RencanaPelatihanDanPerjalanan[],,1),0),MATCH(SelisihPelatihanDanPerjalanan[[#Headers],[Agu]],RencanaPelatihanDanPerjalanan[#Headers],0))-INDEX(AktualPelatihanDanPerjalanan[],MATCH(INDEX(SelisihPelatihanDanPerjalanan[],ROW()-ROW(SelisihPelatihanDanPerjalanan[[#Headers],[Agu]]),1),INDEX(RencanaPelatihanDanPerjalanan[],,1),0),MATCH(SelisihPelatihanDanPerjalanan[[#Headers],[Agu]],AktualPelatihanDanPerjalanan[#Headers],0))","v":{"v":2000,"d":"Rp2,000.00"}},{"$f":"INDEX(RencanaPelatihanDanPerjalanan[],MATCH(INDEX(SelisihPelatihanDanPerjalanan[],ROW()-ROW(SelisihPelatihanDanPerjalanan[[#Headers],[Sep]]),1),INDEX(RencanaPelatihanDanPerjalanan[],,1),0),MATCH(SelisihPelatihanDanPerjalanan[[#Headers],[Sep]],RencanaPelatihanDanPerjalanan[#Headers],0))-INDEX(AktualPelatihanDanPerjalanan[],MATCH(INDEX(SelisihPelatihanDanPerjalanan[],ROW()-ROW(SelisihPelatihanDanPerjalanan[[#Headers],[Sep]]),1),INDEX(RencanaPelatihanDanPerjalanan[],,1),0),MATCH(SelisihPelatihanDanPerjalanan[[#Headers],[Sep]],AktualPelatihanDanPerjalanan[#Headers],0))","v":{"v":2000,"d":"Rp2,000.00"}},{"$f":"INDEX(RencanaPelatihanDanPerjalanan[],MATCH(INDEX(SelisihPelatihanDanPerjalanan[],ROW()-ROW(SelisihPelatihanDanPerjalanan[[#Headers],[Okt]]),1),INDEX(RencanaPelatihanDanPerjalanan[],,1),0),MATCH(SelisihPelatihanDanPerjalanan[[#Headers],[Okt]],RencanaPelatihanDanPerjalanan[#Headers],0))-INDEX(AktualPelatihanDanPerjalanan[],MATCH(INDEX(SelisihPelatihanDanPerjalanan[],ROW()-ROW(SelisihPelatihanDanPerjalanan[[#Headers],[Okt]]),1),INDEX(RencanaPelatihanDanPerjalanan[],,1),0),MATCH(SelisihPelatihanDanPerjalanan[[#Headers],[Okt]],AktualPelatihanDanPerjalanan[#Headers],0))","v":{"v":2000,"d":"Rp2,000.00"}},{"$f":"INDEX(RencanaPelatihanDanPerjalanan[],MATCH(INDEX(SelisihPelatihanDanPerjalanan[],ROW()-ROW(SelisihPelatihanDanPerjalanan[[#Headers],[Nov]]),1),INDEX(RencanaPelatihanDanPerjalanan[],,1),0),MATCH(SelisihPelatihanDanPerjalanan[[#Headers],[Nov]],RencanaPelatihanDanPerjalanan[#Headers],0))-INDEX(AktualPelatihanDanPerjalanan[],MATCH(INDEX(SelisihPelatihanDanPerjalanan[],ROW()-ROW(SelisihPelatihanDanPerjalanan[[#Headers],[Nov]]),1),INDEX(RencanaPelatihanDanPerjalanan[],,1),0),MATCH(SelisihPelatihanDanPerjalanan[[#Headers],[Nov]],AktualPelatihanDanPerjalanan[#Headers],0))","v":{"v":2000,"d":"Rp2,000.00"}},{"$f":"INDEX(RencanaPelatihanDanPerjalanan[],MATCH(INDEX(SelisihPelatihanDanPerjalanan[],ROW()-ROW(SelisihPelatihanDanPerjalanan[[#Headers],[Des]]),1),INDEX(RencanaPelatihanDanPerjalanan[],,1),0),MATCH(SelisihPelatihanDanPerjalanan[[#Headers],[Des]],RencanaPelatihanDanPerjalanan[#Headers],0))-INDEX(AktualPelatihanDanPerjalanan[],MATCH(INDEX(SelisihPelatihanDanPerjalanan[],ROW()-ROW(SelisihPelatihanDanPerjalanan[[#Headers],[Des]]),1),INDEX(RencanaPelatihanDanPerjalanan[],,1),0),MATCH(SelisihPelatihanDanPerjalanan[[#Headers],[Des]],AktualPelatihanDanPerjalanan[#Headers],0))","v":{"v":2000,"d":"Rp2,000.00"}},{"$f":"SUM(SelisihPelatihanDanPerjalanan[[#This Row],[Jan]:[Des]])","v":{"v":13000,"d":"Rp13,000.00"}}]
[null,"Biaya perjalanan terkait pelatihan",{"$f":"INDEX(RencanaPelatihanDanPerjalanan[],MATCH(INDEX(SelisihPelatihanDanPerjalanan[],ROW()-ROW(SelisihPelatihanDanPerjalanan[[#Headers],[Jan]]),1),INDEX(RencanaPelatihanDanPerjalanan[],,1),0),MATCH(SelisihPelatihanDanPerjalanan[[#Headers],[Jan]],RencanaPelatihanDanPerjalanan[#Headers],0))-INDEX(AktualPelatihanDanPerjalanan[],MATCH(INDEX(SelisihPelatihanDanPerjalanan[],ROW()-ROW(SelisihPelatihanDanPerjalanan[[#Headers],[Jan]]),1),INDEX(RencanaPelatihanDanPerjalanan[],,1),0),MATCH(SelisihPelatihanDanPerjalanan[[#Headers],[Jan]],AktualPelatihanDanPerjalanan[#Headers],0))","v":{"v":800,"d":"Rp800.00"}},{"$f":"INDEX(RencanaPelatihanDanPerjalanan[],MATCH(INDEX(SelisihPelatihanDanPerjalanan[],ROW()-ROW(SelisihPelatihanDanPerjalanan[[#Headers],[Feb]]),1),INDEX(RencanaPelatihanDanPerjalanan[],,1),0),MATCH(SelisihPelatihanDanPerjalanan[[#Headers],[Feb]],RencanaPelatihanDanPerjalanan[#Headers],0))-INDEX(AktualPelatihanDanPerjalanan[],MATCH(INDEX(SelisihPelatihanDanPerjalanan[],ROW()-ROW(SelisihPelatihanDanPerjalanan[[#Headers],[Feb]]),1),INDEX(RencanaPelatihanDanPerjalanan[],,1),0),MATCH(SelisihPelatihanDanPerjalanan[[#Headers],[Feb]],AktualPelatihanDanPerjalanan[#Headers],0))","v":{"v":-200,"d":"-Rp200.00"}},{"$f":"INDEX(RencanaPelatihanDanPerjalanan[],MATCH(INDEX(SelisihPelatihanDanPerjalanan[],ROW()-ROW(SelisihPelatihanDanPerjalanan[[#Headers],[Mar]]),1),INDEX(RencanaPelatihanDanPerjalanan[],,1),0),MATCH(SelisihPelatihanDanPerjalanan[[#Headers],[Mar]],RencanaPelatihanDanPerjalanan[#Headers],0))-INDEX(AktualPelatihanDanPerjalanan[],MATCH(INDEX(SelisihPelatihanDanPerjalanan[],ROW()-ROW(SelisihPelatihanDanPerjalanan[[#Headers],[Mar]]),1),INDEX(RencanaPelatihanDanPerjalanan[],,1),0),MATCH(SelisihPelatihanDanPerjalanan[[#Headers],[Mar]],AktualPelatihanDanPerjalanan[#Headers],0))","v":{"v":600,"d":"Rp600.00"}},{"$f":"INDEX(RencanaPelatihanDanPerjalanan[],MATCH(INDEX(SelisihPelatihanDanPerjalanan[],ROW()-ROW(SelisihPelatihanDanPerjalanan[[#Headers],[Apr]]),1),INDEX(RencanaPelatihanDanPerjalanan[],,1),0),MATCH(SelisihPelatihanDanPerjalanan[[#Headers],[Apr]],RencanaPelatihanDanPerjalanan[#Headers],0))-INDEX(AktualPelatihanDanPerjalanan[],MATCH(INDEX(SelisihPelatihanDanPerjalanan[],ROW()-ROW(SelisihPelatihanDanPerjalanan[[#Headers],[Apr]]),1),INDEX(RencanaPelatihanDanPerjalanan[],,1),0),MATCH(SelisihPelatihanDanPerjalanan[[#Headers],[Apr]],AktualPelatihanDanPerjalanan[#Headers],0))","v":{"v":800,"d":"Rp800.00"}},{"$f":"INDEX(RencanaPelatihanDanPerjalanan[],MATCH(INDEX(SelisihPelatihanDanPerjalanan[],ROW()-ROW(SelisihPelatihanDanPerjalanan[[#Headers],[Mei]]),1),INDEX(RencanaPelatihanDanPerjalanan[],,1),0),MATCH(SelisihPelatihanDanPerjalanan[[#Headers],[Mei]],RencanaPelatihanDanPerjalanan[#Headers],0))-INDEX(AktualPelatihanDanPerjalanan[],MATCH(INDEX(SelisihPelatihanDanPerjalanan[],ROW()-ROW(SelisihPelatihanDanPerjalanan[[#Headers],[Mei]]),1),INDEX(RencanaPelatihanDanPerjalanan[],,1),0),MATCH(SelisihPelatihanDanPerjalanan[[#Headers],[Mei]],AktualPelatihanDanPerjalanan[#Headers],0))","v":{"v":1200,"d":"Rp1,200.00"}},{"$f":"INDEX(RencanaPelatihanDanPerjalanan[],MATCH(INDEX(SelisihPelatihanDanPerjalanan[],ROW()-ROW(SelisihPelatihanDanPerjalanan[[#Headers],[Jun]]),1),INDEX(RencanaPelatihanDanPerjalanan[],,1),0),MATCH(SelisihPelatihanDanPerjalanan[[#Headers],[Jun]],RencanaPelatihanDanPerjalanan[#Headers],0))-INDEX(AktualPelatihanDanPerjalanan[],MATCH(INDEX(SelisihPelatihanDanPerjalanan[],ROW()-ROW(SelisihPelatihanDanPerjalanan[[#Headers],[Jun]]),1),INDEX(RencanaPelatihanDanPerjalanan[],,1),0),MATCH(SelisihPelatihanDanPerjalanan[[#Headers],[Jun]],AktualPelatihanDanPerjalanan[#Headers],0))","v":{"v":-1500,"d":"-Rp1,500.00"}},{"$f":"INDEX(RencanaPelatihanDanPerjalanan[],MATCH(INDEX(SelisihPelatihanDanPerjalanan[],ROW()-ROW(SelisihPelatihanDanPerjalanan[[#Headers],[Jul]]),1),INDEX(RencanaPelatihanDanPerjalanan[],,1),0),MATCH(SelisihPelatihanDanPerjalanan[[#Headers],[Jul]],RencanaPelatihanDanPerjalanan[#Headers],0))-INDEX(AktualPelatihanDanPerjalanan[],MATCH(INDEX(SelisihPelatihanDanPerjalanan[],ROW()-ROW(SelisihPelatihanDanPerjalanan[[#Headers],[Jul]]),1),INDEX(RencanaPelatihanDanPerjalanan[],,1),0),MATCH(SelisihPelatihanDanPerjalanan[[#Headers],[Jul]],AktualPelatihanDanPerjalanan[#Headers],0))","v":{"v":2000,"d":"Rp2,000.00"}},{"$f":"INDEX(RencanaPelatihanDanPerjalanan[],MATCH(INDEX(SelisihPelatihanDanPerjalanan[],ROW()-ROW(SelisihPelatihanDanPerjalanan[[#Headers],[Agu]]),1),INDEX(RencanaPelatihanDanPerjalanan[],,1),0),MATCH(SelisihPelatihanDanPerjalanan[[#Headers],[Agu]],RencanaPelatihanDanPerjalanan[#Headers],0))-INDEX(AktualPelatihanDanPerjalanan[],MATCH(INDEX(SelisihPelatihanDanPerjalanan[],ROW()-ROW(SelisihPelatihanDanPerjalanan[[#Headers],[Agu]]),1),INDEX(RencanaPelatihanDanPerjalanan[],,1),0),MATCH(SelisihPelatihanDanPerjalanan[[#Headers],[Agu]],AktualPelatihanDanPerjalanan[#Headers],0))","v":{"v":2000,"d":"Rp2,000.00"}},{"$f":"INDEX(RencanaPelatihanDanPerjalanan[],MATCH(INDEX(SelisihPelatihanDanPerjalanan[],ROW()-ROW(SelisihPelatihanDanPerjalanan[[#Headers],[Sep]]),1),INDEX(RencanaPelatihanDanPerjalanan[],,1),0),MATCH(SelisihPelatihanDanPerjalanan[[#Headers],[Sep]],RencanaPelatihanDanPerjalanan[#Headers],0))-INDEX(AktualPelatihanDanPerjalanan[],MATCH(INDEX(SelisihPelatihanDanPerjalanan[],ROW()-ROW(SelisihPelatihanDanPerjalanan[[#Headers],[Sep]]),1),INDEX(RencanaPelatihanDanPerjalanan[],,1),0),MATCH(SelisihPelatihanDanPerjalanan[[#Headers],[Sep]],AktualPelatihanDanPerjalanan[#Headers],0))","v":{"v":2000,"d":"Rp2,000.00"}},{"$f":"INDEX(RencanaPelatihanDanPerjalanan[],MATCH(INDEX(SelisihPelatihanDanPerjalanan[],ROW()-ROW(SelisihPelatihanDanPerjalanan[[#Headers],[Okt]]),1),INDEX(RencanaPelatihanDanPerjalanan[],,1),0),MATCH(SelisihPelatihanDanPerjalanan[[#Headers],[Okt]],RencanaPelatihanDanPerjalanan[#Headers],0))-INDEX(AktualPelatihanDanPerjalanan[],MATCH(INDEX(SelisihPelatihanDanPerjalanan[],ROW()-ROW(SelisihPelatihanDanPerjalanan[[#Headers],[Okt]]),1),INDEX(RencanaPelatihanDanPerjalanan[],,1),0),MATCH(SelisihPelatihanDanPerjalanan[[#Headers],[Okt]],AktualPelatihanDanPerjalanan[#Headers],0))","v":{"v":2000,"d":"Rp2,000.00"}},{"$f":"INDEX(RencanaPelatihanDanPerjalanan[],MATCH(INDEX(SelisihPelatihanDanPerjalanan[],ROW()-ROW(SelisihPelatihanDanPerjalanan[[#Headers],[Nov]]),1),INDEX(RencanaPelatihanDanPerjalanan[],,1),0),MATCH(SelisihPelatihanDanPerjalanan[[#Headers],[Nov]],RencanaPelatihanDanPerjalanan[#Headers],0))-INDEX(AktualPelatihanDanPerjalanan[],MATCH(INDEX(SelisihPelatihanDanPerjalanan[],ROW()-ROW(SelisihPelatihanDanPerjalanan[[#Headers],[Nov]]),1),INDEX(RencanaPelatihanDanPerjalanan[],,1),0),MATCH(SelisihPelatihanDanPerjalanan[[#Headers],[Nov]],AktualPelatihanDanPerjalanan[#Headers],0))","v":{"v":2000,"d":"Rp2,000.00"}},{"$f":"INDEX(RencanaPelatihanDanPerjalanan[],MATCH(INDEX(SelisihPelatihanDanPerjalanan[],ROW()-ROW(SelisihPelatihanDanPerjalanan[[#Headers],[Des]]),1),INDEX(RencanaPelatihanDanPerjalanan[],,1),0),MATCH(SelisihPelatihanDanPerjalanan[[#Headers],[Des]],RencanaPelatihanDanPerjalanan[#Headers],0))-INDEX(AktualPelatihanDanPerjalanan[],MATCH(INDEX(SelisihPelatihanDanPerjalanan[],ROW()-ROW(SelisihPelatihanDanPerjalanan[[#Headers],[Des]]),1),INDEX(RencanaPelatihanDanPerjalanan[],,1),0),MATCH(SelisihPelatihanDanPerjalanan[[#Headers],[Des]],AktualPelatihanDanPerjalanan[#Headers],0))","v":{"v":2000,"d":"Rp2,000.00"}},{"$f":"SUM(SelisihPelatihanDanPerjalanan[[#This Row],[Jan]:[Des]])","v":{"v":13700,"d":"Rp13,700.00"}}]
[null,"Subtotal",{"$f":"SUBTOTAL(109,SelisihPelatihanDanPerjalanan[Jan])","v":{"v":1200,"d":"Rp1,200.00"}},{"$f":"SUBTOTAL(109,SelisihPelatihanDanPerjalanan[Feb])","v":{"v":-600,"d":"-Rp600.00"}},{"$f":"SUBTOTAL(109,SelisihPelatihanDanPerjalanan[Mar])","v":{"v":1200,"d":"Rp1,200.00"}},{"$f":"SUBTOTAL(109,SelisihPelatihanDanPerjalanan[Apr])","v":{"v":1200,"d":"Rp1,200.00"}},{"$f":"SUBTOTAL(109,SelisihPelatihanDanPerjalanan[Mei])","v":{"v":2000,"d":"Rp2,000.00"}},{"$f":"SUBTOTAL(109,SelisihPelatihanDanPerjalanan[Jun])","v":{"v":-2300,"d":"-Rp2,300.00"}},{"$f":"SUBTOTAL(109,SelisihPelatihanDanPerjalanan[Jul])","v":{"v":4000,"d":"Rp4,000.00"}},{"$f":"SUBTOTAL(109,SelisihPelatihanDanPerjalanan[Agu])","v":{"v":4000,"d":"Rp4,000.00"}},{"$f":"SUBTOTAL(109,SelisihPelatihanDanPerjalanan[Sep])","v":{"v":4000,"d":"Rp4,000.00"}},{"$f":"SUBTOTAL(109,SelisihPelatihanDanPerjalanan[Okt])","v":{"v":4000,"d":"Rp4,000.00"}},{"$f":"SUBTOTAL(109,SelisihPelatihanDanPerjalanan[Nov])","v":{"v":4000,"d":"Rp4,000.00"}},{"$f":"SUBTOTAL(109,SelisihPelatihanDanPerjalanan[Des])","v":{"v":4000,"d":"Rp4,000.00"}},{"$f":"SUBTOTAL(109,SelisihPelatihanDanPerjalanan[TAHUN])","v":{"v":26700,"d":"Rp26,700.00"}}]
[]
["Selisih Pengeluaran akan dihitung secara otomatis dalam tabel Total Selisih mulai dari sel di sebelah kanan.","TOTAL","Jan","Feb","Mar","Apr","Mei","Jun","Jul","Agu","Sep","Okt","Nov","Des","Tahun"]
[null,"Pengeluaran Aktual Bulanan",{"$f":"SelisihPelatihanDanPerjalanan[[#Totals],[Jan]]+SelisihPemasaran[[#Totals],[Jan]]+SelisihKantor[[#Totals],[Jan]]+SelisihKaryawan[[#Totals],[Jan]]","v":{"v":1738,"d":"Rp1,738.00"}},{"$f":"SelisihPelatihanDanPerjalanan[[#Totals],[Feb]]+SelisihPemasaran[[#Totals],[Feb]]+SelisihKantor[[#Totals],[Feb]]+SelisihKaryawan[[#Totals],[Feb]]","v":{"v":-984,"d":"-Rp984.00"}},{"$f":"SelisihPelatihanDanPerjalanan[[#Totals],[Mar]]+SelisihPemasaran[[#Totals],[Mar]]+SelisihKantor[[#Totals],[Mar]]+SelisihKaryawan[[#Totals],[Mar]]","v":{"v":1255,"d":"Rp1,255.00"}},{"$f":"SelisihPelatihanDanPerjalanan[[#Totals],[Apr]]+SelisihPemasaran[[#Totals],[Apr]]+SelisihKantor[[#Totals],[Apr]]+SelisihKaryawan[[#Totals],[Apr]]","v":{"v":301,"d":"Rp301.00"}},{"$f":"SelisihPelatihanDanPerjalanan[[#Totals],[Mei]]+SelisihPemasaran[[#Totals],[Mei]]+SelisihKantor[[#Totals],[Mei]]+SelisihKaryawan[[#Totals],[Mei]]","v":{"v":1440,"d":"Rp1,440.00"}},{"$f":"SelisihPelatihanDanPerjalanan[[#Totals],[Jun]]+SelisihPemasaran[[#Totals],[Jun]]+SelisihKantor[[#Totals],[Jun]]+SelisihKaryawan[[#Totals],[Jun]]","v":{"v":-3744,"d":"-Rp3,744.00"}},{"$f":"SelisihPelatihanDanPerjalanan[[#Totals],[Jul]]+SelisihPemasaran[[#Totals],[Jul]]+SelisihKantor[[#Totals],[Jul]]+SelisihKaryawan[[#Totals],[Jul]]","v":{"v":134695,"d":"Rp134,695.00"}},{"$f":"SelisihPelatihanDanPerjalanan[[#Totals],[Agu]]+SelisihPemasaran[[#Totals],[Agu]]+SelisihKantor[[#Totals],[Agu]]+SelisihKaryawan[[#Totals],[Agu]]","v":{"v":138918,"d":"Rp138,918.00"}},{"$f":"SelisihPelatihanDanPerjalanan[[#Totals],[Sep]]+SelisihPemasaran[[#Totals],[Sep]]+SelisihKantor[[#Totals],[Sep]]+SelisihKaryawan[[#Totals],[Sep]]","v":{"v":135918,"d":"Rp135,918.00"}},{"$f":"SelisihPelatihanDanPerjalanan[[#Totals],[Okt]]+SelisihPemasaran[[#Totals],[Okt]]+SelisihKantor[[#Totals],[Okt]]+SelisihKaryawan[[#Totals],[Okt]]","v":{"v":140918,"d":"Rp140,918.00"}},{"$f":"SelisihPelatihanDanPerjalanan[[#Totals],[Nov]]+SelisihPemasaran[[#Totals],[Nov]]+SelisihKantor[[#Totals],[Nov]]+SelisihKaryawan[[#Totals],[Nov]]","v":{"v":136218,"d":"Rp136,218.00"}},{"$f":"SelisihPelatihanDanPerjalanan[[#Totals],[Des]]+SelisihPemasaran[[#Totals],[Des]]+SelisihKantor[[#Totals],[Des]]+SelisihKaryawan[[#Totals],[Des]]","v":{"v":140018,"d":"Rp140,018.00"}},{"$f":"SelisihPelatihanDanPerjalanan[[#Totals],[TAHUN]]+SelisihPemasaran[[#Totals],[TAHUN]]+SelisihKantor[[#Totals],[TAHUN]]+SelisihKaryawan[[#Totals],[TAHUN]]","v":{"v":826691,"d":"Rp826,691.00"}}]
[null,"TOTAL Pengeluaran Aktual",{"$f":"SUM($C$36:C36)","v":{"v":1738,"d":"Rp1,738.00"}},{"$f":"SUM($C$36:D36)","v":{"v":754,"d":"Rp754.00"}},{"$f":"SUM($C$36:E36)","v":{"v":2009,"d":"Rp2,009.00"}},{"$f":"SUM($C$36:F36)","v":{"v":2310,"d":"Rp2,310.00"}},{"$f":"SUM($C$36:G36)","v":{"v":3750,"d":"Rp3,750.00"}},{"$f":"SUM($C$36:H36)","v":{"v":6,"d":"Rp6.00"}},{"$f":"SUM($C$36:I36)","v":{"v":134701,"d":"Rp134,701.00"}},{"$f":"SUM($C$36:J36)","v":{"v":273619,"d":"Rp273,619.00"}},{"$f":"SUM($C$36:K36)","v":{"v":409537,"d":"Rp409,537.00"}},{"$f":"SUM($C$36:L36)","v":{"v":550455,"d":"Rp550,455.00"}},{"$f":"SUM($C$36:M36)","v":{"v":686673,"d":"Rp686,673.00"}},{"$f":"SUM($C$36:N36)","v":{"v":826691,"d":"Rp826,691.00"}}]

{"sheet":"ANALISIS PENGELUARAN","index":4,"n_rows":14,"n_cols":16,"rows_kept":14,"merged":[[1,1,2,3],[1,5,1,6],[2,4,2,6],[11,1,11,2],[11,3,11,5],[13,1,36,5]]}
["Pengeluaran Aktual dan Rencana Pengeluaran Tahunan, Selisih Pengeluaran, dan Persentase Selisih akan diperbarui secara otomatis untuk setiap Kategori Pengeluaran dalam lembar kerja ini. Instruksi bermanfaat tentang cara menggunakan lembar kerja berada dalam sel di kolom ini Tekan panah bawah untuk memulai. ",{"$nulls":5}," ",{"$nulls":8}," "]
["Nama Perusahaan akan diperbarui secara otomatis dalam sel di sebelah kanan. Masukkan Logo dalam sel F2.",{"$f":"'RENCANA PENGELUARAN'!B2:D3","v":"Nama Perusahaan"},{"$nulls":3},"Tempat penampung Logo berada dalam sel ini."]
["Judul lembar kerja ini berada dalam sel E3. Instruksi berikutnya berada dalam sel A5.",{"$nulls":3},{"$f":"judul_lembar_kerja","v":"Detail Perkiraan Pengeluaran"}]
[]
["Rencana Pengeluaran, Pengeluaran Aktual, Selisih Pengeluaran, dan Persentase Selisih akan dihitung secara otomatis dalam tabel Analisis mulai dari sel di sebelah kanan. Instruksi berikutnya berada dalam sel A12.","Kategori Pengeluaran","Rencana Pengeluaran","Pengeluaran Aktual","Selisih Pengeluaran","Persentase Selisih"]
[null,"Biaya Karyawan",{"$f":"RencanaKaryawan[[#Totals],[TAHUN]]","v":{"v":1355090,"d":"Rp1,355,090.00"}},{"$f":"AktualKaryawan[[#Totals],[TAHUN]]","v":{"v":659130,"d":"Rp659,130.00"}},{"$f":"C6-D6","v":{"v":695960,"d":"Rp695,960.00"}},{"$f":"E6/C6","v":{"v":0.5135895032802249,"d":"51%"}}]
[null,{"$f":"'RENCANA PENGELUARAN'!B10","v":"Biaya Kantor"},{"$f":"RencanaKantor[[#Totals],[TAHUN]]","v":{"v":138740,"d":"Rp138,740.00"}},{"$f":"AktualKantor[[#Totals],[TAHUN]]","v":{"v":69350,"d":"Rp69,350.00"}},{"$f":"C7-D7","v":{"v":69390,"d":"Rp69,390.00"}},{"$f":"E7/C7","v":{"v":0.5001441545336601,"d":"50%"}}]
[null,{"$f":"'RENCANA PENGELUARAN'!B21","v":"Biaya Pemasaran"},{"$f":"RencanaPemasaran[[#Totals],[TAHUN]]","v":{"v":67800,"d":"Rp67,800.00"}},{"$f":"AktualPemasaran[[#Totals],[TAHUN]]","v":{"v":33159,"d":"Rp33,159.00"}},{"$f":"C8-D8","v":{"v":34641,"d":"Rp34,641.00"}},{"$f":"E8/C8","v":{"v":0.510929203539823,"d":"51%"}}]
[null,{"$f":"'RENCANA PENGELUARAN'!B30","v":"Pelatihan/Perjalanan"},{"$f":"RencanaPelatihanDanPerjalanan[[#Totals],[TAHUN]]","v":{"v":48000,"d":"Rp48,000.00"}},{"$f":"AktualPelatihanDanPerjalanan[[#Totals],[TAHUN]]","v":{"v":21300,"d":"Rp21,300.00"}},{"$f":"C9-D9","v":{"v":26700,"d":"Rp26,700.00"}},{"$f":"E9/C9","v":{"v":0.55625,"d":"56%"}}]
[null,{"$f":"'RENCANA PENGELUARAN'!B35","v":"TOTAL"},{"$f":"'RENCANA PENGELUARAN'!O36","v":{"v":1609630,"d":"Rp1,609,630.00"}},{"$f":"'PENGELUARAN AKTUAL'!O36","v":{"v":782939,"d":"Rp782,939.00"}},{"$f":"C10-D10","v":{"v":826691,"d":"Rp826,691.00"}},{"$f":"E10/C10","v":{"v":0.5135907009685455,"d":"51%"}}]
[]
["Bagan pai Rencana Pengeluaran berada dalam sel di sebelah kanan dan bagan pai Pengeluaran Aktual di sel D12. Instruksi berikutnya berada dalam sel A14.","Bagan pai yang memperlihatkan rencana pengeluaran di berbagai kategori berada dalam sel ini.",null,"Bagan pai yang memperlihatkan pengeluaran aktual yang digunakan di berbagai kategori berada dalam sel ini."]
[]
["Bagan yang memperlihatkan Rencana, Aktual, dan Selisih dalam Pengeluaran Bulanan berada di sel di sebelah kanan."]